Local authority department which incurred the expenditure,Service Division,Cost Centre,Summary of the Purpose of Expenditure,Expense Type,Expense Code,Detailed Expense Type,Date of Transaction,Transaction Number,Beneficiary,Merchant Category Number,Merchant Category,Gross Amount,VAT,Net Amount
"Regeneration, Economy and Growth",Business Durham CL0850,030689,Inward Investment and Aftercare,Supplies and Services,342033,Computers and Communications,01-Apr-2021,000009457381001,AdRoll_EMEA,7372,Computer hardware,112.78,0.00,112.78
"Regeneration, Economy and Growth",Business Durham CL0850,030689,Inward Investment and Aftercare,Supplies and Services,342033,Computers and Communications,01-Apr-2021,000009457381003,AdRoll_EMEA,7372,Computer hardware,3.10,0.00,3.10
Children and Young Peoples Services,Head of Early Help Inclusion & Vulnerable Children.,071489,Winter Family Fund,Supplies and Services,364301,Grants to Voluntary Organisations,01-Apr-2021,000009467941241,WILKO.COM,5399,Hardship,52.00,0.00,52.00
Children and Young Peoples Services,Head of Early Help Inclusion & Vulnerable Children.,071489,Winter Family Fund,Supplies and Services,364301,Grants to Voluntary Organisations,01-Apr-2021,000009467941245,ASDA GEORGE COM LEEDS,5411,Hardship,293.41,0.00,293.41
Children and Young Peoples Services,Head of Early Help Inclusion & Vulnerable Children.,071489,Winter Family Fund,Supplies and Services,364301,Grants to Voluntary Organisations,01-Apr-2021,000009467941249,ASDA GEORGE COM LEEDS,5411,Hardship,143.50,0.00,143.50
Children and Young Peoples Services,Head of Early Help Inclusion & Vulnerable Children.,071489,Winter Family Fund,Supplies and Services,364301,Grants to Voluntary Organisations,01-Apr-2021,000009467941251,Amazon.co.uk MU6IC1KY4,5969,Hardship,28.81,4.80,24.01
Children and Young Peoples Services,Head of Early Help Inclusion & Vulnerable Children.,071489,Winter Family Fund,Supplies and Services,364301,Grants to Voluntary Organisations,01-Apr-2021,000009467941255,ARGOS LTD,5310,Hardship,45.95,0.00,45.95
Children and Young Peoples Services,Head of Early Help Inclusion & Vulnerable Children.,071489,Winter Family Fund,Supplies and Services,364301,Grants to Voluntary Organisations,01-Apr-2021,000009467941259,ARGOS LTD,5310,Hardship,58.94,0.00,58.94
Children and Young Peoples Services,Head of Education and Skills,071801,Selby Cottage Childcare Centre,Supplies and Services,324117,Provisions E324,01-Apr-2021,000009467941279,ASDA GROCERIES ONLINE,5411,Catering costs - provisions,30.51,0.00,30.51
Children and Young Peoples Services,Head of Education and Skills,071801,Selby Cottage Childcare Centre,Supplies and Services,324117,Provisions E324,01-Apr-2021,000009467941281,ASDA GROCERIES ONLINE,5411,Catering costs - provisions,103.99,0.00,103.99
Children and Young Peoples Services,Head of Education and Skills,071801,Selby Cottage Childcare Centre,Supplies and Services,324117,Provisions E324,01-Apr-2021,000009467941285,ASDA GROCERIES ONLINE,5411,Catering costs - provisions,-12.28,0.00,-12.28
Adult and Health Services,Head of Adults,051625,Hospital Discharge Team South,Supplies and Services,304403,Equipment and Materials,01-Apr-2021,000009467941317,AMZNMKTPLACE AMAZON.CO,5999,Other consumables,25.99,4.33,21.66
Adult and Health Services,Head of Adults,051625,Hospital Discharge Team South,Supplies and Services,304403,Equipment and Materials,01-Apr-2021,000009467941323,AMZNMKTPLACE AMAZON.CO,5999,Other consumables,25.99,4.33,21.66
"Regeneration, Economy and Growth",Development and Housing,031576,B& B - Temp Accom,Supplies and Services,364320,Grants to Voluntary Organisations,01-Apr-2021,000009467941343,TOAST LETTINGS,7011,Accommodation assistance,455.00,0.00,455.00
Children and Young Peoples Services,Head of Education and Skills,075021,DurhamWorks Progression and Learning,Supplies and Services,364301,Grants to Voluntary Organisations,01-Apr-2021,000009467941381,SCREWFIX DIRECT,5211,Hardship,4.98,0.83,4.15
Children and Young Peoples Services,Head of Education and Skills,075021,DurhamWorks Progression and Learning,Supplies and Services,364301,Grants to Voluntary Organisations,01-Apr-2021,000009467941381 - 1,SCREWFIX DIRECT,5211,Hardship,17.01,,17.01
Neighbourhoods and Climate Change,Environmental Services,010383,C&G - South Street Cleansing,Supplies and Services,328041,Clothing uniforms and laundry E328,01-Apr-2021,000009467941393,THOMAS OWEN & SONS /N/,5611,Clothing uniforms and laundry,37.80,0.00,37.80
Dedicated Schools Grant BG0015,DSG High Needs Block,079050,SENSS-Sensory,Supplies and Services,384999,Miscellaneous Expenses,01-Apr-2021,000009467941455,Amazon.co.uk MU5CI9K54,5969,Other expenses,203.58,33.93,169.65
Dedicated Schools Grant BG0015,DSG High Needs Block,079050,SENSS-Sensory,Supplies and Services,384999,Miscellaneous Expenses,01-Apr-2021,000009467941455 - 1,Amazon.co.uk MU5CI9K54,5969,Other expenses,0.03,,0.03
Neighbourhoods and Climate Change,Environmental Services,010367,C&G - South Grounds Maintenance,Supplies and Services,304221,Equipment and Materials,01-Apr-2021,000009467941555,MKM PETERLEE,5211,Direct materials,18.97,0.00,18.97
"Regeneration, Economy and Growth",Development and Housing,030776,LINKCD Flexible Fund,Supplies and Services,304403,Equipment and Materials,01-Apr-2021,000009467941569,DUOLINGO ENGLISH TEST,5734,Other consumables,35.73,0.00,35.73
Children and Young Peoples Services,Head of Childrens Social Care,085352,New Childrens Home (previously Tow Law),Supplies and Services,324117,Provisions E324,01-Apr-2021,000009467941583,SAINSBURYS LOC4634,5411,Catering costs - provisions,10.00,0.00,10.00
Children and Young Peoples Services,Head of Childrens Social Care,085352,New Childrens Home (previously Tow Law),Supplies and Services,348037,Subsistence E348,01-Apr-2021,000009467941587,KFC DURHAM,5814,Subsistence,1.99,0.00,1.99
Children and Young Peoples Services,Head of Childrens Social Care,085332,Middlestone Moor CU,Supplies and Services,348037,Subsistence E348,01-Apr-2021,000009467941623,MCDONALDS,5812,Subsistence,11.96,0.00,11.96
Children and Young Peoples Services,Head of Childrens Social Care,085362,LAC & Permanence Team 2,Supplies and Services,304403,Equipment and Materials,01-Apr-2021,000009467941699,STOCKTON BOROUGH COUNC,9399,Other consumables,11.00,0.00,11.00
Children and Young Peoples Services,Head of Early Help Inclusion & Vulnerable Children.,073998,TTF-Co-ordinator Grant,Transfer Payments,525033,Other,01-Apr-2021,000009467941727,J DODDS CARPETS LTD,5713,Grants to individuals,248.00,0.00,248.00
Resources BK0010,Digital and Customer Services,065481,Technical Services 065481,Supplies and Services,372009,Subscriptions E372,01-Apr-2021,000009467941795,WEB NETWORKSOLUTIONS,5968,Subscriptions 372009,107.60,0.00,107.60
Children and Young Peoples Services,Head of Childrens Social Care,085332,Middlestone Moor CU,Supplies and Services,348037,Subsistence E348,01-Apr-2021,000009467941883,GREGGS,5812,Subsistence,4.75,0.00,4.75
"Regeneration, Economy and Growth",Development and Housing,031576,B& B - Temp Accom,Supplies and Services,352001,Conference Expenses,01-Apr-2021,000009467941941,AYCLIFFE BIZ,7011,Conferencesseminars fees etc,114.00,0.00,114.00
"Regeneration, Economy and Growth",Development and Housing,031576,B& B - Temp Accom,Supplies and Services,352001,Conference Expenses,01-Apr-2021,000009467941947,AYCLIFFE BIZ,7011,Conferencesseminars fees etc,152.00,0.00,152.00
"Regeneration, Economy and Growth",Development and Housing,031576,B& B - Temp Accom,Supplies and Services,352001,Conference Expenses,01-Apr-2021,000009467941951,AYCLIFFE BIZ,7011,Conferencesseminars fees etc,152.00,0.00,152.00
"Regeneration, Economy and Growth",Development and Housing,031576,B& B - Temp Accom,Supplies and Services,352001,Conference Expenses,01-Apr-2021,000009467941955,AYCLIFFE BIZ,7011,Conferencesseminars fees etc,380.00,0.00,380.00
"Regeneration, Economy and Growth",Development and Housing,031576,B& B - Temp Accom,Supplies and Services,352001,Conference Expenses,01-Apr-2021,000009467941957,TRAVELODGE,3615,Conferencesseminars fees etc,33.99,0.00,33.99
"Regeneration, Economy and Growth",Development and Housing,031576,B& B - Temp Accom,Supplies and Services,352001,Conference Expenses,01-Apr-2021,000009467941961,TRAVELODGE,3615,Conferencesseminars fees etc,166.70,0.00,166.70
Children and Young Peoples Services,Head of Early Help Inclusion & Vulnerable Children.,085810,CDYJS - Interventions Team,Supplies and Services,348037,Subsistence E348,01-Apr-2021,000009467941973,KFC PETERLEE,5814,Subsistence,27.87,0.00,27.87
Neighbourhoods and Climate Change,Environmental Services,011060,C&G - Hardwick Park Catering,Supplies and Services,324117,Provisions E324,01-Apr-2021,000009467942053,FREEMAN CATERING BUTCH,5422,Catering costs - provisions,25.05,0.00,25.05
Neighbourhoods and Climate Change,Environmental Services,011060,C&G - Hardwick Park Catering,Supplies and Services,324117,Provisions E324,01-Apr-2021,000009467942059,FREEMAN CATERING BUTCH,5422,Catering costs - provisions,65.36,0.00,65.36
"Regeneration, Economy and Growth",Development and Housing,031576,B& B - Temp Accom,Supplies and Services,364320,Grants to Voluntary Organisations,01-Apr-2021,000009467942115,THE HONEST LAWYER,7011,Accommodation assistance,500.00,0.00,500.00
"Regeneration, Economy and Growth",Development and Housing,031581,Prevention Fund,Supplies and Services,384999,Miscellaneous Expenses,01-Apr-2021,000009467942127,TESCO STORES 2371,5411,Other expenses,16.99,0.00,16.99
"Regeneration, Economy and Growth",Development and Housing,031576,B& B - Temp Accom,Supplies and Services,364320,Grants to Voluntary Organisations,01-Apr-2021,000009467942133,HI NEWCASTLE WASHI,7011,Accommodation assistance,400.00,0.00,400.00
Neighbourhoods and Climate Change,Environmental Services,010367,C&G - South Grounds Maintenance,Supplies and Services,304221,Equipment and Materials,01-Apr-2021,000009467942215,JEWSON LTD,5211,Direct materials,432.53,0.00,432.53
"Regeneration, Economy and Growth",Development and Housing,030777,FLEX,Supplies and Services,324117,Provisions E324,01-Apr-2021,000009467942299,TESCO GIFT CARD,5411,Catering costs - provisions,40.00,0.00,40.00
Resources BK0010,Procurement Sales & Business Services,065504,Business Support - Meadowfield,Supplies and Services,304259,Equipment and Materials,01-Apr-2021,000009467942427,Amazon Music MU9OQ1KJ4,5735,Equipment-purchase and rental,7.99,0.00,7.99
Children and Young Peoples Services,Head of Childrens Social Care,085332,Middlestone Moor CU,Supplies and Services,328041,Clothing uniforms and laundry E328,01-Apr-2021,000009467942453,eBay O 17-06835-72745,5311,Clothing uniforms and laundry,56.98,0.00,56.98
Children and Young Peoples Services,Head of Childrens Social Care,085332,Middlestone Moor CU,Supplies and Services,328041,Clothing uniforms and laundry E328,01-Apr-2021,000009467942459,eBay O 17-06835-72746,5311,Clothing uniforms and laundry,8.99,0.00,8.99
Children and Young Peoples Services,Head of Childrens Social Care,085332,Middlestone Moor CU,Supplies and Services,324117,Provisions E324,01-Apr-2021,000009467942463,TESCO STORES 2371,5411,Catering costs - provisions,28.00,0.00,28.00
Children and Young Peoples Services,Head of Childrens Social Care,085332,Middlestone Moor CU,Supplies and Services,324117,Provisions E324,01-Apr-2021,000009467942467,TESCO STORES 2371,5411,Catering costs - provisions,160.28,0.00,160.28
Children and Young Peoples Services,Head of Childrens Social Care,085332,Middlestone Moor CU,Supplies and Services,324117,Provisions E324,01-Apr-2021,000009467942471,CO-OP GROUP 310016,5411,Catering costs - provisions,5.30,0.00,5.30
Children and Young Peoples Services,Head of Childrens Social Care,085332,Middlestone Moor CU,Supplies and Services,304221,Equipment and Materials,01-Apr-2021,000009467942475,PAYPAL XIAGEMAOYIY EB,5085,Direct materials,7.39,0.00,7.39
Children and Young Peoples Services,Head of Childrens Social Care,085332,Middlestone Moor CU,Supplies and Services,304403,Equipment and Materials,01-Apr-2021,000009467942477,PAYPAL ESTHERFISHE EB,5999,Other consumables,19.99,0.00,19.99
Children and Young Peoples Services,Head of Early Help Inclusion & Vulnerable Children.,088115,Young Parents Programme 088115,Supplies and Services,384302,Miscellaneous Expenses,01-Apr-2021,000009467942495,AMZNMKTPLACE AMAZON.CO,5999,Activity expenses,13.90,2.32,11.58
Children and Young Peoples Services,Head of Early Help Inclusion & Vulnerable Children.,088115,Young Parents Programme 088115,Supplies and Services,384302,Miscellaneous Expenses,01-Apr-2021,000009467942499,AMZNMKTPLACE AMAZON.CO,5999,Activity expenses,140.88,23.48,117.40
Children and Young Peoples Services,Head of Early Help Inclusion & Vulnerable Children.,088115,Young Parents Programme 088115,Supplies and Services,384302,Miscellaneous Expenses,01-Apr-2021,000009467942499 - 1,AMZNMKTPLACE AMAZON.CO,5999,Activity expenses,0.03,,0.03
Children and Young Peoples Services,Head of Early Help Inclusion & Vulnerable Children.,088115,Young Parents Programme 088115,Supplies and Services,384302,Miscellaneous Expenses,01-Apr-2021,000009467942501,ASDA GEORGE COM LEEDS,5411,Activity expenses,150.00,0.00,150.00
Adult and Health Services,Head of Adults,055643,Hawthorn House LD Respite Unit,Supplies and Services,324117,Provisions E324,01-Apr-2021,000009467942529,FREEMAN CATERING BUTCH,5422,Catering costs - provisions,24.36,0.00,24.36
Resources BK0010,Procurement Sales & Business Services,065503,Business Support - Spectrum,Supplies and Services,304259,Equipment and Materials,01-Apr-2021,000009467942625,HM PASSPORT OFFICE,9399,Equipment-purchase and rental,75.50,0.00,75.50
Children and Young Peoples Services,Head of Early Help Inclusion & Vulnerable Children.,088110,Easington & Peterlee 0-19 Targeted Family Support,Supplies and Services,364301,Grants to Voluntary Organisations,01-Apr-2021,000009467942637,WILKO.COM,5399,Hardship,82.00,0.00,82.00
Children and Young Peoples Services,Head of Early Help Inclusion & Vulnerable Children.,088110,Easington & Peterlee 0-19 Targeted Family Support,Supplies and Services,364301,Grants to Voluntary Organisations,01-Apr-2021,000009467942643,WILKO.COM,5399,Hardship,75.50,0.00,75.50
Children and Young Peoples Services,Head of Early Help Inclusion & Vulnerable Children.,071489,Winter Family Fund,Supplies and Services,364301,Grants to Voluntary Organisations,01-Apr-2021,000009467942645,ASDA GEORGE COM LEEDS,5411,Hardship,77.00,0.00,77.00
Children and Young Peoples Services,Head of Childrens Social Care,085631,Families First Peterlee,Supplies and Services,384302,Miscellaneous Expenses,01-Apr-2021,000009467942651,ARGOS LTD,5310,Activity expenses,269.98,0.00,269.98
Children and Young Peoples Services,Head of Childrens Social Care,085332,Middlestone Moor CU,Supplies and Services,304999,Equipment and Materials,01-Apr-2021,000009467942687,Microsoft Console 1-Mo,5816,Misc equipment tools and materials,7.99,0.00,7.99
Children and Young Peoples Services,Head of Childrens Social Care,085332,Middlestone Moor CU,Supplies and Services,324117,Provisions E324,01-Apr-2021,000009467942693,TESCO STORES 2916,5411,Catering costs - provisions,8.33,0.00,8.33
Children and Young Peoples Services,Head of Early Help Inclusion & Vulnerable Children.,085801,CDYJS - Support,Supplies and Services,324117,Provisions E324,01-Apr-2021,000009467942753,ASDA SUPERSTORE,5411,Catering costs - provisions,24.00,0.00,24.00
Children and Young Peoples Services,Head of Early Help Inclusion & Vulnerable Children.,085801,CDYJS - Support,Supplies and Services,324117,Provisions E324,01-Apr-2021,000009467942755,ASDA SUPERSTORE,5411,Catering costs - provisions,4.40,0.00,4.40
Neighbourhoods and Climate Change,Environmental Services,031238,North Pennines - Tees Swale,Employees,040149,Recruitment Instruction and Training,01-Apr-2021,000009467942843,VOLUNTARY ORGANISATION,8398,Training-all costs,120.00,0.00,120.00
Resources BK0010,Procurement Sales & Business Services,065501,Business Support - Executive Support,Supplies and Services,340001,Postages E340,01-Apr-2021,000009467942901,ROYAL MAIL ONLINE SHOP,9402,Postages,14.80,0.00,14.80
"Regeneration, Economy and Growth",Corporate Property and Land,021235,Catering - Wharton Park,Supplies and Services,324117,Provisions E324,01-Apr-2021,000009467942957,JR HOLLAND FOODSERVICE,5499,Catering costs - provisions,27.27,0.00,27.27
Children and Young Peoples Services,Head of Childrens Social Care,085334,West Rainton Satelite Home,Supplies and Services,304259,Equipment and Materials,01-Apr-2021,000009467943017,CURRYS ONLINE,5732,Equipment-purchase and rental,249.99,0.00,249.99
"Regeneration, Economy and Growth",Development and Housing,030777,FLEX,Supplies and Services,324117,Provisions E324,01-Apr-2021,000009470096853,TESCO GIFT CARD,5411,Catering costs - provisions,-40.00,0.00,-40.00
Resources BK0010,Procurement Sales & Business Services,065504,Business Support - Meadowfield,Supplies and Services,304259,Equipment and Materials,01-Apr-2021,000009530997589,Amazon Music MU9OQ1KJ4,5735,Equipment-purchase and rental,-7.99,0.00,-7.99
Neighbourhoods and Climate Change,Environmental Services,011060,C&G - Hardwick Park Catering,Supplies and Services,324117,Provisions E324,01-Apr-2021,000009530998541,BATLEYS PERTH,5300,Catering costs - provisions,324.18,54.03,270.15
Neighbourhoods and Climate Change,Environmental Services,011060,C&G - Hardwick Park Catering,Supplies and Services,324117,Provisions E324,01-Apr-2021,000009530998541 - 1,BATLEYS PERTH,5300,Catering costs - provisions,164.05,,164.05
Neighbourhoods and Climate Change,Environmental Services,011060,C&G - Hardwick Park Catering,Supplies and Services,324117,Provisions E324,01-Apr-2021,000009530998563,BATLEYS PERTH,5300,Catering costs - provisions,14.76,2.46,12.30
Neighbourhoods and Climate Change,Environmental Services,011060,C&G - Hardwick Park Catering,Supplies and Services,324117,Provisions E324,01-Apr-2021,000009530998563 - 1,BATLEYS PERTH,5300,Catering costs - provisions,11.88,,11.88
"Regeneration, Economy and Growth",Business Durham CL0850,030689,Inward Investment and Aftercare,Supplies and Services,304403,Equipment and Materials,02-Apr-2021,000009467941151,ADOBE CREATIVE CLOUD,5734,Other consumables,49.94,0.00,49.94
"Regeneration, Economy and Growth",Business Durham CL0850,030689,Inward Investment and Aftercare,Supplies and Services,342222,Computers and Communications,02-Apr-2021,000009467941155,FASTHOSTS INTERNET,4816,Comp hardware purch-network servers,72.66,0.00,72.66
"Regeneration, Economy and Growth",Business Durham CL0850,030689,Inward Investment and Aftercare,Supplies and Services,342222,Computers and Communications,02-Apr-2021,000009467941159,FASTHOSTS INTERNET,4816,Comp hardware purch-network servers,67.20,0.00,67.20
"Regeneration, Economy and Growth",Culture Sport and Tourism,030712,VCD - Project Delivery,Supplies and Services,384199,Miscellaneous Expenses,02-Apr-2021,000009467941397,MAILCHIMP MONTHLY,5968,Other hired and contracted services,205.26,0.00,205.26
Children and Young Peoples Services,Head of Childrens Social Care,085341,High Etherley Satelite Home,Supplies and Services,324117,Provisions E324,02-Apr-2021,000009467941495,TESCO STORES 6329,5411,Catering costs - provisions,10.00,0.00,10.00
Children and Young Peoples Services,Head of Childrens Social Care,085341,High Etherley Satelite Home,Supplies and Services,324117,Provisions E324,02-Apr-2021,000009467941499,TESCO STORES 6329,5411,Catering costs - provisions,68.32,0.00,68.32
Children and Young Peoples Services,Head of Childrens Social Care,085352,New Childrens Home (previously Tow Law),Supplies and Services,324117,Provisions E324,02-Apr-2021,000009467941759,ASDA GROCERIES ONLINE,5411,Catering costs - provisions,167.01,0.00,167.01
Children and Young Peoples Services,Head of Childrens Social Care,085352,New Childrens Home (previously Tow Law),Supplies and Services,324117,Provisions E324,02-Apr-2021,000009467941763,ASDA GROCERIES ONLINE,5411,Catering costs - provisions,-0.25,0.00,-0.25
Children and Young Peoples Services,Head of Education and Skills,071903,Early Years Sustainability,Supplies and Services,304999,Equipment and Materials,02-Apr-2021,000009467941895,Adobe.com,5817,Misc equipment tools and materials,23.99,0.00,23.99
Children and Young Peoples Services,Head of Early Help Inclusion & Vulnerable Children.,085965,Barnard,Supplies and Services,324117,Provisions E324,02-Apr-2021,000009467941991,TESCO STORES 6329,5411,Catering costs - provisions,58.04,0.00,58.04
Children and Young Peoples Services,Head of Early Help Inclusion & Vulnerable Children.,085956,Lumley,Supplies and Services,308011,Furniture,02-Apr-2021,000009467941993,WWW.THERANGE.CO.UK,5712,Furniture repair and replacement,43.94,0.00,43.94
Children and Young Peoples Services,Head of Early Help Inclusion & Vulnerable Children.,085965,Barnard,Supplies and Services,324117,Provisions E324,02-Apr-2021,000009467941995,TESCO STORES 6329,5411,Catering costs - provisions,-6.50,0.00,-6.50
Dedicated Schools Grant BG0015,DSG High Needs Block,077099,Special-INMSS,Supplies and Services,384999,Miscellaneous Expenses,02-Apr-2021,000009467942147,AMZ Amazon.co.uk,5969,Other expenses,-30.08,0.00,-30.08
Dedicated Schools Grant BG0015,DSG High Needs Block,077099,Special-INMSS,Supplies and Services,304403,Equipment and Materials,02-Apr-2021,000009467942151,AMZ Amazon.co.uk,5999,Other consumables,-34.98,0.00,-34.98
Adult and Health Services,Head of Adults,055643,Hawthorn House LD Respite Unit,Supplies and Services,324117,Provisions E324,02-Apr-2021,000009467942237,SAINSBURYS SACAT 0776,5411,Catering costs - provisions,4.00,0.00,4.00
Children and Young Peoples Services,Head of Childrens Social Care,085342,16 Hickstead Rise (previously 9 Cedar Ave),Supplies and Services,324117,Provisions E324,02-Apr-2021,000009467942361,WILKO RETAIL LIMITED,5399,Catering costs - provisions,28.50,0.00,28.50
Children and Young Peoples Services,Head of Childrens Social Care,085342,16 Hickstead Rise (previously 9 Cedar Ave),Supplies and Services,324117,Provisions E324,02-Apr-2021,000009467942365,SAINSBURYS SACAT 2199,5411,Catering costs - provisions,4.95,0.00,4.95
Children and Young Peoples Services,Head of Childrens Social Care,085342,16 Hickstead Rise (previously 9 Cedar Ave),Supplies and Services,324117,Provisions E324,02-Apr-2021,000009467942367,SAINSBURYS SACAT 2199,5411,Catering costs - provisions,2.00,0.00,2.00
Children and Young Peoples Services,Head of Childrens Social Care,085342,16 Hickstead Rise (previously 9 Cedar Ave),Supplies and Services,324117,Provisions E324,02-Apr-2021,000009467942371,ASDA STORES,5411,Catering costs - provisions,12.50,0.00,12.50
Children and Young Peoples Services,Head of Early Help Inclusion & Vulnerable Children.,088115,Young Parents Programme 088115,Supplies and Services,384302,Miscellaneous Expenses,02-Apr-2021,000009467942505,AMZNMKTPLACE AMAZON.CO,5999,Activity expenses,89.90,15.00,74.90
Children and Young Peoples Services,Head of Childrens Social Care,085332,Middlestone Moor CU,Supplies and Services,348037,Subsistence E348,02-Apr-2021,000009467942699,GA GA LTD T/A SUNSHINE,5814,Subsistence,26.90,0.00,26.90
Children and Young Peoples Services,Head of Childrens Social Care,085332,Middlestone Moor CU,Supplies and Services,348037,Subsistence E348,02-Apr-2021,000009467942703,MCDONALDS,5812,Subsistence,6.68,0.00,6.68
Children and Young Peoples Services,Head of Childrens Social Care,085332,Middlestone Moor CU,Supplies and Services,328041,Clothing uniforms and laundry E328,02-Apr-2021,000009467942817,SP ISAWITFIRST.COM,5691,Clothing uniforms and laundry,12.99,0.00,12.99
Children and Young Peoples Services,Head of Childrens Social Care,085332,Middlestone Moor CU,Supplies and Services,328041,Clothing uniforms and laundry E328,02-Apr-2021,000009467942821,BOOHOO.COM,5691,Clothing uniforms and laundry,37.99,0.00,37.99
Children and Young Peoples Services,Head of Childrens Social Care,085332,Middlestone Moor CU,Supplies and Services,304259,Equipment and Materials,02-Apr-2021,000009467942823,JD SPORTS INTERNET,5941,Equipment-purchase and rental,31.99,0.00,31.99
Children and Young Peoples Services,Head of Childrens Social Care,085341,High Etherley Satelite Home,Supplies and Services,324117,Provisions E324,03-Apr-2021,000009467941191,TESCO STORES 6329,5411,Catering costs - provisions,15.20,0.00,15.20
Children and Young Peoples Services,Head of Childrens Social Care,085341,High Etherley Satelite Home,Supplies and Services,324117,Provisions E324,03-Apr-2021,000009467941195,TESCO STORES 6329,5411,Catering costs - provisions,4.39,0.00,4.39
Children and Young Peoples Services,Head of Childrens Social Care,085341,High Etherley Satelite Home,Supplies and Services,324117,Provisions E324,03-Apr-2021,000009467941199,TESCO STORES 6329,5411,Catering costs - provisions,8.00,0.00,8.00
Children and Young Peoples Services,Head of Childrens Social Care,085341,High Etherley Satelite Home,Supplies and Services,324117,Provisions E324,03-Apr-2021,000009467941201,TESCO STORES 6329,5411,Catering costs - provisions,7.75,0.00,7.75
Children and Young Peoples Services,Head of Early Help Inclusion & Vulnerable Children.,071489,Winter Family Fund,Supplies and Services,364301,Grants to Voluntary Organisations,03-Apr-2021,000009467941263,ASDA GROCERIES ONLINE,5411,Hardship,58.95,0.00,58.95
Children and Young Peoples Services,Head of Early Help Inclusion & Vulnerable Children.,071489,Winter Family Fund,Supplies and Services,364301,Grants to Voluntary Organisations,03-Apr-2021,000009467941265,ASDA GROCERIES ONLINE,5411,Hardship,-0.76,0.00,-0.76
Children and Young Peoples Services,Head of Education and Skills,071801,Selby Cottage Childcare Centre,Supplies and Services,304999,Equipment and Materials,03-Apr-2021,000009467941287,APPLE.COM/BILL,5815,Misc equipment tools and materials,9.99,0.00,9.99
"Regeneration, Economy and Growth",Culture Sport and Tourism,030705,Visit County Durham 030705,Supplies and Services,384199,Miscellaneous Expenses,03-Apr-2021,000009467941399,FASTHOSTS INTERNET,4816,Other hired and contracted services,6.34,1.06,5.28
Children and Young Peoples Services,Head of Childrens Social Care,085342,16 Hickstead Rise (previously 9 Cedar Ave),Supplies and Services,324117,Provisions E324,03-Apr-2021,000009467941419,STARBUCKS BISHOP AUCKL,5499,Catering costs - provisions,4.90,0.00,4.90
Children and Young Peoples Services,Head of Childrens Social Care,085342,16 Hickstead Rise (previously 9 Cedar Ave),Supplies and Services,328041,Clothing uniforms and laundry E328,03-Apr-2021,000009467941423,POUNDLAND LTD 1554,5310,Clothing uniforms and laundry,10.00,0.00,10.00
Children and Young Peoples Services,Head of Childrens Social Care,085342,16 Hickstead Rise (previously 9 Cedar Ave),Supplies and Services,304999,Equipment and Materials,03-Apr-2021,000009467941427,HOME BARGAINS,5251,Misc equipment tools and materials,7.66,0.00,7.66
Children and Young Peoples Services,Head of Childrens Social Care,085342,16 Hickstead Rise (previously 9 Cedar Ave),Supplies and Services,324117,Provisions E324,03-Apr-2021,000009467941431,TESCO STORES 6329,5411,Catering costs - provisions,41.10,0.00,41.10
Children and Young Peoples Services,Head of Childrens Social Care,085342,16 Hickstead Rise (previously 9 Cedar Ave),Supplies and Services,304999,Equipment and Materials,03-Apr-2021,000009467941433,SUPERDRUG STORES PLC,5912,Misc equipment tools and materials,11.81,0.00,11.81
Children and Young Peoples Services,Head of Childrens Social Care,085332,Middlestone Moor CU,Supplies and Services,324117,Provisions E324,03-Apr-2021,000009467941627,ASDA SUPERSTORE 4987,5411,Catering costs - provisions,76.82,0.00,76.82
Children and Young Peoples Services,Head of Early Help Inclusion & Vulnerable Children.,085956,Lumley,Supplies and Services,324117,Provisions E324,03-Apr-2021,000009467942001,TESCO STORES 6329,5411,Catering costs - provisions,61.93,0.00,61.93
Children and Young Peoples Services,Head of Childrens Social Care,085331,New Lea Childrens Home,Supplies and Services,304999,Equipment and Materials,03-Apr-2021,000009467942139,HOME BARGAINS,5251,Misc equipment tools and materials,38.94,0.00,38.94
Children and Young Peoples Services,Head of Childrens Social Care,085331,New Lea Childrens Home,Supplies and Services,304999,Equipment and Materials,03-Apr-2021,000009467942141,HOME BARGAINS,5251,Misc equipment tools and materials,9.44,0.00,9.44
Children and Young Peoples Services,Head of Childrens Social Care,085331,New Lea Childrens Home,Supplies and Services,328041,Clothing uniforms and laundry E328,03-Apr-2021,000009467942143,SP SPIFFY,5691,Clothing uniforms and laundry,74.44,0.00,74.44
Adult and Health Services,Head of Adults,055643,Hawthorn House LD Respite Unit,Supplies and Services,324117,Provisions E324,03-Apr-2021,000009467942241,CO-OP GROUP 010465,5411,Catering costs - provisions,5.00,0.00,5.00
Children and Young Peoples Services,Head of Childrens Social Care,085342,16 Hickstead Rise (previously 9 Cedar Ave),Supplies and Services,304221,Equipment and Materials,03-Apr-2021,000009467942589,SCREWFIX DIRECT,5211,Direct materials,54.99,0.00,54.99
Children and Young Peoples Services,Head of Childrens Social Care,085332,Middlestone Moor CU,Supplies and Services,348037,Subsistence E348,03-Apr-2021,000009467942705,KFC THINFORD DURHAM PR,5814,Subsistence,33.94,0.00,33.94
Children and Young Peoples Services,Head of Childrens Social Care,085351,Framwellgate Moor CU,Supplies and Services,328041,Clothing uniforms and laundry E328,03-Apr-2021,000009467942763,FLANNELS.COM,5691,Clothing uniforms and laundry,86.99,0.00,86.99
Children and Young Peoples Services,Head of Childrens Social Care,085334,West Rainton Satelite Home,Supplies and Services,324117,Provisions E324,03-Apr-2021,000009467943021,ASDA GROCERIES ONLINE,5411,Catering costs - provisions,51.06,0.00,51.06
Children and Young Peoples Services,Head of Childrens Social Care,085333,Coxhoe Satelite Home,Supplies and Services,324117,Provisions E324,03-Apr-2021,000009467943063,PPOINT_ COSTCUTTER 108,5499,Catering costs - provisions,6.20,0.00,6.20
"Regeneration, Economy and Growth",Business Durham CL0850,030689,Inward Investment and Aftercare,Supplies and Services,342222,Computers and Communications,04-Apr-2021,000009467941163,FASTHOSTS INTERNET,4816,Comp hardware purch-network servers,7.54,0.00,7.54
Resources BK0010,Legal & Democratic Services,069551,By-Elections,Supplies and Services,304403,Equipment and Materials,04-Apr-2021,000009467941325,AMZNMktplace,5999,Other consumables,21.98,3.66,18.32
Children and Young Peoples Services,Head of Childrens Social Care,085342,16 Hickstead Rise (previously 9 Cedar Ave),Supplies and Services,324117,Provisions E324,04-Apr-2021,000009467941437,SAINSBURYS LOC4622,5411,Catering costs - provisions,5.00,0.00,5.00
Children and Young Peoples Services,Head of Childrens Social Care,085341,High Etherley Satelite Home,Supplies and Services,348037,Subsistence E348,04-Apr-2021,000009467941501,SUBWAY 45256 Auckland,5814,Subsistence,7.16,0.00,7.16
Children and Young Peoples Services,Head of Childrens Social Care,085341,High Etherley Satelite Home,Supplies and Services,348037,Subsistence E348,04-Apr-2021,000009467941503,DOMINOS PIZZA,5812,Subsistence,28.57,0.00,28.57
Children and Young Peoples Services,Head of Early Help Inclusion & Vulnerable Children.,088115,Young Parents Programme 088115,Supplies and Services,304403,Equipment and Materials,04-Apr-2021,000009467942035,AMZNMKTPLACE AMAZON.CO,5999,Other consumables,277.30,0.00,277.30
Children and Young Peoples Services,Head of Early Help Inclusion & Vulnerable Children.,088115,Young Parents Programme 088115,Supplies and Services,384302,Miscellaneous Expenses,04-Apr-2021,000009467942511,AMZNMKTPLACE AMAZON.CO,5999,Activity expenses,31.35,5.25,26.10
Children and Young Peoples Services,Head of Early Help Inclusion & Vulnerable Children.,088115,Young Parents Programme 088115,Supplies and Services,384302,Miscellaneous Expenses,04-Apr-2021,000009467942655,Amazon.co.uk MU8E09IM4,5969,Activity expenses,42.48,7.08,35.40
Children and Young Peoples Services,Head of Early Help Inclusion & Vulnerable Children.,088115,Young Parents Programme 088115,Supplies and Services,384302,Miscellaneous Expenses,04-Apr-2021,000009467942655 - 1,Amazon.co.uk MU8E09IM4,5969,Activity expenses,0.18,,0.18
Children and Young Peoples Services,Head of Early Help Inclusion & Vulnerable Children.,088115,Young Parents Programme 088115,Supplies and Services,384302,Miscellaneous Expenses,04-Apr-2021,000009467942657,AMZNMktplace,5999,Activity expenses,15.38,2.56,12.82
"Regeneration, Economy and Growth",Business Durham CL0850,030689,Inward Investment and Aftercare,Supplies and Services,336005,Advertising E336,05-Apr-2021,000009467941167,GOOGLE ADS6853017821,7311,Advertising other than for staff,104.06,0.00,104.06
Children and Young Peoples Services,Head of Childrens Social Care,085342,16 Hickstead Rise (previously 9 Cedar Ave),Supplies and Services,384999,Miscellaneous Expenses,05-Apr-2021,000009467941439,THE RABY ESTATES,5970,Other expenses,8.60,0.00,8.60
Children and Young Peoples Services,Head of Childrens Social Care,085342,16 Hickstead Rise (previously 9 Cedar Ave),Supplies and Services,348037,Subsistence E348,05-Apr-2021,000009467941443,SumUp Shake It Shir,5812,Subsistence,7.25,0.00,7.25
Children and Young Peoples Services,Head of Childrens Social Care,085342,16 Hickstead Rise (previously 9 Cedar Ave),Supplies and Services,304999,Equipment and Materials,05-Apr-2021,000009467941445,SUPERDRUG STORES PLC,5912,Misc equipment tools and materials,5.23,0.00,5.23
Children and Young Peoples Services,Head of Childrens Social Care,085342,16 Hickstead Rise (previously 9 Cedar Ave),Supplies and Services,304999,Equipment and Materials,05-Apr-2021,000009467941449,SUPERDRUG STORES PLC,5912,Misc equipment tools and materials,11.97,0.00,11.97
Children and Young Peoples Services,Head of Childrens Social Care,085511,Emergency Duty Team,Transport,235057,Public Transport,05-Apr-2021,000009467941663,BLUE LINE TAXIS,4121,Staff travelling,45.50,0.00,45.50
Children and Young Peoples Services,Head of Early Help Inclusion & Vulnerable Children.,085955,Auckland,Supplies and Services,324117,Provisions E324,05-Apr-2021,000009467942003,TESCO STORES 6329,5411,Catering costs - provisions,53.47,0.00,53.47
Dedicated Schools Grant BG0015,DSG High Needs Block,077099,Special-INMSS,Supplies and Services,384999,Miscellaneous Expenses,05-Apr-2021,000009467942153,Amazon.co.uk MU31G1RP4,5969,Other expenses,234.50,0.00,234.50
Dedicated Schools Grant BG0015,DSG High Needs Block,077099,Special-INMSS,Supplies and Services,384999,Miscellaneous Expenses,05-Apr-2021,000009467942155,Amazon.co.uk MU4VM7RH4,5969,Other expenses,117.25,0.00,117.25
Dedicated Schools Grant BG0015,DSG High Needs Block,077099,Special-INMSS,Supplies and Services,384999,Miscellaneous Expenses,05-Apr-2021,000009467942157,Amazon.co.uk MU0G90WL4,5969,Other expenses,168.84,0.00,168.84
"Regeneration, Economy and Growth",Development and Housing,031500,Housing Solutions - Core,Supplies and Services,338066,Services,05-Apr-2021,000009467942231,HF RESOLUTION LTD,8999,Professional fees 338066,238.80,39.80,199.00
Children and Young Peoples Services,Head of Childrens Social Care,085351,Framwellgate Moor CU,Supplies and Services,304221,Equipment and Materials,05-Apr-2021,000009467942767,B & Q 1343,5200,Direct materials,70.00,0.00,70.00
"Regeneration, Economy and Growth",Development and Housing,030776,LINKCD Flexible Fund,Supplies and Services,304403,Equipment and Materials,06-Apr-2021,000009467941571,DUOLINGO ENGLISH TEST,5734,Other consumables,0.98,0.00,0.98
Resources BK0010,Digital and Customer Services,065481,Technical Services 065481,Supplies and Services,372009,Subscriptions E372,06-Apr-2021,000009467941799,WEB NETWORKSOLUTIONS,5968,Subscriptions 372009,2.96,0.00,2.96
"Regeneration, Economy and Growth",Business Durham CL0850,030689,Inward Investment and Aftercare,Supplies and Services,342033,Computers and Communications,06-Apr-2021,000009470096291,STK Shutterstock,7333,Computer hardware,19.00,0.00,19.00
Children and Young Peoples Services,Head of Education and Skills,071801,Selby Cottage Childcare Centre,Supplies and Services,324117,Provisions E324,06-Apr-2021,000009470096307,TESCO STORES 2278,5411,Catering costs - provisions,12.08,0.00,12.08
Adult and Health Services,Head of Adults,060702,Local Safeguarding Adults Board,Supplies and Services,304259,Equipment and Materials,06-Apr-2021,000009470096331,WWW.ICO.ORG.UK,9399,Equipment-purchase and rental,40.00,0.00,40.00
"Regeneration, Economy and Growth",Development and Housing,030777,FLEX,Supplies and Services,304403,Equipment and Materials,06-Apr-2021,000009470096343,AMZNMktplace,5999,Other consumables,89.99,15.00,74.99
"Regeneration, Economy and Growth",Development and Housing,030773,CLLD North,Supplies and Services,384999,Miscellaneous Expenses,06-Apr-2021,000009470096353,WWW.PARKCAMERAS.CO.UK,5946,Other expenses,229.00,0.00,229.00
Neighbourhoods and Climate Change,Environmental Services,010383,C&G - South Street Cleansing,Supplies and Services,304999,Equipment and Materials,06-Apr-2021,000009470096361,WWW.LSC-UK.COM,5251,Misc equipment tools and materials,285.71,0.00,285.71
"Regeneration, Economy and Growth",Culture Sport and Tourism,010661,Meadowfield Leisure Centre,Supplies and Services,304259,Equipment and Materials,06-Apr-2021,000009470096373,AMZ Amazon.co.uk,5969,Equipment-purchase and rental,-176.08,-29.35,-146.73
Children and Young Peoples Services,Head of Childrens Social Care,085332,Middlestone Moor CU,Supplies and Services,324117,Provisions E324,06-Apr-2021,000009470096391,HOME BARGAINS SPENNYMO,5251,Catering costs - provisions,36.54,0.00,36.54
Children and Young Peoples Services,Head of Childrens Social Care,085332,Middlestone Moor CU,Supplies and Services,324117,Provisions E324,06-Apr-2021,000009470096399,TESCO STORES 2371,5411,Catering costs - provisions,190.96,0.00,190.96
Children and Young Peoples Services,Head of Childrens Social Care,085332,Middlestone Moor CU,Supplies and Services,324117,Provisions E324,06-Apr-2021,000009470096407,TESCO STORES 6329,5411,Catering costs - provisions,33.14,0.00,33.14
Children and Young Peoples Services,Head of Childrens Social Care,085341,High Etherley Satelite Home,Supplies and Services,324117,Provisions E324,06-Apr-2021,000009470096411,SAINSBURYS 2199,5411,Catering costs - provisions,61.60,0.00,61.60
Children and Young Peoples Services,Head of Childrens Social Care,085341,High Etherley Satelite Home,Supplies and Services,324117,Provisions E324,06-Apr-2021,000009470096421,SAINSBURYS 2199,5411,Catering costs - provisions,23.03,0.00,23.03
"Regeneration, Economy and Growth",Culture Sport and Tourism,054967,Theatre - Technical Staffing,Supplies and Services,304403,Equipment and Materials,06-Apr-2021,000009470096547,AMZNMktplace,5999,Other consumables,12.99,0.00,12.99
Children and Young Peoples Services,Head of Childrens Social Care,085334,West Rainton Satelite Home,Supplies and Services,324117,Provisions E324,06-Apr-2021,000009470096565,TESCO STORES 2371,5411,Catering costs - provisions,95.09,0.00,95.09
Neighbourhoods and Climate Change,Environmental Services,011058,C&G - Wharton Park,Supplies and Services,304259,Equipment and Materials,06-Apr-2021,000009470096581,AMZNMKTPLACE AMAZON.CO,5999,Equipment-purchase and rental,94.40,0.00,94.40
Neighbourhoods and Climate Change,Environmental Services,026591,C&G - Hardwick Park,Supplies and Services,304259,Equipment and Materials,06-Apr-2021,000009470096587,LINERSBAGSSACKS,5131,Equipment-purchase and rental,163.30,0.00,163.30
"Regeneration, Economy and Growth",Development and Housing,030771,Durham Advance Flexible Fund,Supplies and Services,304999,Equipment and Materials,06-Apr-2021,000009470096633,AMZNMKTPLACE AMAZON.CO,5999,Misc equipment tools and materials,9.99,1.67,8.32
"Regeneration, Economy and Growth",Development and Housing,030771,Durham Advance Flexible Fund,Transport,235057,Public Transport,06-Apr-2021,000009470096649,GO NORTH EAST LIMITED,4131,Staff travelling,7.00,0.00,7.00
Children and Young Peoples Services,Head of Early Help Inclusion & Vulnerable Children.,085956,Lumley,Transfer Payments,515002,Social Services Clients,06-Apr-2021,000009470096653,SP ISAWITFIRST.COM,5691,Pocket money,6.00,0.00,6.00
Children and Young Peoples Services,Head of Early Help Inclusion & Vulnerable Children.,085956,Lumley,Transfer Payments,515002,Social Services Clients,06-Apr-2021,000009470096659,PRETTYLITTLETHING.COM,5691,Pocket money,15.20,0.00,15.20
Children and Young Peoples Services,Head of Early Help Inclusion & Vulnerable Children.,085954,Walworth,Supplies and Services,324117,Provisions E324,06-Apr-2021,000009470096661,TESCO STORES 6329,5411,Catering costs - provisions,68.45,0.00,68.45
Children and Young Peoples Services,Head of Early Help Inclusion & Vulnerable Children.,085956,Lumley,Transfer Payments,515002,Social Services Clients,06-Apr-2021,000009470096667,SUPERDRUG STORES PLC,5912,Pocket money,16.99,0.00,16.99
Children and Young Peoples Services,Head of Early Help Inclusion & Vulnerable Children.,085956,Lumley,Transfer Payments,515002,Social Services Clients,06-Apr-2021,000009470096671,www.asos.com,5651,Pocket money,29.94,0.00,29.94
Children and Young Peoples Services,Head of Early Help Inclusion & Vulnerable Children.,085954,Walworth,Transfer Payments,515002,Social Services Clients,06-Apr-2021,000009470096675,JD SPORTS INTERNET,5941,Pocket money,28.99,0.00,28.99
Children and Young Peoples Services,Head of Early Help Inclusion & Vulnerable Children.,085956,Lumley,Transfer Payments,515002,Social Services Clients,06-Apr-2021,000009470096683,JD SPORTS INTERNET,5941,Pocket money,51.99,0.00,51.99
Children and Young Peoples Services,Head of Early Help Inclusion & Vulnerable Children.,085962,Aycliffe Secure - Durham,Transfer Payments,515002,Social Services Clients,06-Apr-2021,000009470096685,JD SPORTS INTERNET,5941,Pocket money,85.00,0.00,85.00
Children and Young Peoples Services,Head of Early Help Inclusion & Vulnerable Children.,085954,Walworth,Transfer Payments,515002,Social Services Clients,06-Apr-2021,000009470096689,JD SPORTS INTERNET,5941,Pocket money,-20.00,0.00,-20.00
Children and Young Peoples Services,Head of Early Help Inclusion & Vulnerable Children.,088115,Young Parents Programme 088115,Supplies and Services,324117,Provisions E324,06-Apr-2021,000009470096701,WILKO.COM,5399,Catering costs - provisions,57.50,0.00,57.50
Children and Young Peoples Services,Head of Early Help Inclusion & Vulnerable Children.,088115,Young Parents Programme 088115,Supplies and Services,324117,Provisions E324,06-Apr-2021,000009470096707,ASDA GROCERIES ONLINE,5411,Catering costs - provisions,20.60,0.00,20.60
Children and Young Peoples Services,Head of Early Help Inclusion & Vulnerable Children.,088115,Young Parents Programme 088115,Supplies and Services,328041,Clothing uniforms and laundry E328,06-Apr-2021,000009470096709,WWW.THEWORKS.CO.UK,5310,Clothing uniforms and laundry,69.90,0.00,69.90
Neighbourhoods and Climate Change,Environmental Services,011060,C&G - Hardwick Park Catering,Supplies and Services,324117,Provisions E324,06-Apr-2021,000009470096717,JR HOLLAND FOODSERVICE,5499,Catering costs - provisions,15.08,0.00,15.08
Neighbourhoods and Climate Change,Environmental Services,011060,C&G - Hardwick Park Catering,Supplies and Services,324117,Provisions E324,06-Apr-2021,000009470096725,JR HOLLAND FOODSERVICE,5499,Catering costs - provisions,1.81,0.00,1.81
Neighbourhoods and Climate Change,Environmental Services,011060,C&G - Hardwick Park Catering,Supplies and Services,324117,Provisions E324,06-Apr-2021,000009470096729,JR HOLLAND FOODSERVICE,5499,Catering costs - provisions,67.68,0.00,67.68
Children and Young Peoples Services,Head of Education and Skills,075021,DurhamWorks Progression and Learning,Supplies and Services,364301,Grants to Voluntary Organisations,06-Apr-2021,000009470096735,GO NORTH EAST LIMITED,4131,Hardship,17.00,0.00,17.00
Children and Young Peoples Services,Head of Education and Skills,075021,DurhamWorks Progression and Learning,Supplies and Services,364301,Grants to Voluntary Organisations,06-Apr-2021,000009470096739,HARTLEPOOL BC,9399,Hardship,11.00,0.00,11.00
Dedicated Schools Grant BG0015,DSG High Needs Block,077099,Special-INMSS,Supplies and Services,384999,Miscellaneous Expenses,06-Apr-2021,000009470096747,Amazon.co.uk M42CA1C24,5969,Other expenses,56.28,0.00,56.28
Dedicated Schools Grant BG0015,DSG High Needs Block,077099,Special-INMSS,Supplies and Services,384999,Miscellaneous Expenses,06-Apr-2021,000009470096753,Amazon.co.uk M48G35CS4,5969,Other expenses,178.22,0.00,178.22
Children and Young Peoples Services,Head of Early Help Inclusion & Vulnerable Children.,071489,Winter Family Fund,Supplies and Services,364301,Grants to Voluntary Organisations,06-Apr-2021,000009470096793,ASDA GROCERIES ONLINE,5411,Hardship,55.78,0.00,55.78
Children and Young Peoples Services,Head of Early Help Inclusion & Vulnerable Children.,071489,Winter Family Fund,Supplies and Services,364301,Grants to Voluntary Organisations,06-Apr-2021,000009470096799,ASDA GROCERIES ONLINE,5411,Hardship,42.55,0.00,42.55
Children and Young Peoples Services,Head of Early Help Inclusion & Vulnerable Children.,071489,Winter Family Fund,Supplies and Services,364301,Grants to Voluntary Organisations,06-Apr-2021,000009470096803,ASDA GROCERIES ONLINE,5411,Hardship,-0.31,0.00,-0.31
Adult and Health Services,Head of Adults,055643,Hawthorn House LD Respite Unit,Supplies and Services,324117,Provisions E324,06-Apr-2021,000009470096831,SAINSBURYS SACAT 0776,5411,Catering costs - provisions,10.30,0.00,10.30
Adult and Health Services,Head of Adults,055643,Hawthorn House LD Respite Unit,Supplies and Services,324117,Provisions E324,06-Apr-2021,000009470096839,SAINSBURYS SACAT 0776,5411,Catering costs - provisions,6.00,0.00,6.00
"Regeneration, Economy and Growth",Development and Housing,030777,FLEX,Supplies and Services,324117,Provisions E324,06-Apr-2021,000009470096845,TESCO GIFT CARD,5411,Catering costs - provisions,40.00,0.00,40.00
Neighbourhoods and Climate Change,Environmental Services,010367,C&G - South Grounds Maintenance,Supplies and Services,304221,Equipment and Materials,06-Apr-2021,000009470096865,MACHINE MART WEB,7394,Direct materials,52.95,0.00,52.95
Neighbourhoods and Climate Change,Environmental Services,019100,Fleet - Strategic Fleet,Supplies and Services,304259,Equipment and Materials,06-Apr-2021,000009470096877,DVSA,9399,Equipment-purchase and rental,"1,000.00",0.00,1000.00
Neighbourhoods and Climate Change,Environmental Services,010367,C&G - South Grounds Maintenance,Supplies and Services,304221,Equipment and Materials,06-Apr-2021,000009470096921,SCREWFIX DIRECT,5211,Direct materials,47.98,0.00,47.98
Adult and Health Services,Head of Adults,055643,Hawthorn House LD Respite Unit,Supplies and Services,324117,Provisions E324,06-Apr-2021,000009470096931,JR HOLLAND FOODSERVICE,5499,Catering costs - provisions,15.98,0.00,15.98
Adult and Health Services,Head of Adults,055643,Hawthorn House LD Respite Unit,Supplies and Services,324117,Provisions E324,06-Apr-2021,000009470096937,JR HOLLAND FOODSERVICE,5499,Catering costs - provisions,19.13,0.00,19.13
Adult and Health Services,Head of Adults,055643,Hawthorn House LD Respite Unit,Supplies and Services,324117,Provisions E324,06-Apr-2021,000009470096943,JR HOLLAND FOODSERVICE,5499,Catering costs - provisions,7.32,0.00,7.32
Adult and Health Services,Head of Adults,055643,Hawthorn House LD Respite Unit,Supplies and Services,324117,Provisions E324,06-Apr-2021,000009470096951,JR HOLLAND FOODSERVICE,5499,Catering costs - provisions,25.64,0.00,25.64
"Regeneration, Economy and Growth",Culture Sport and Tourism,011263,Louisa Centre 011263,Supplies and Services,304403,Equipment and Materials,06-Apr-2021,000009470096975,MARGIN SERVICES LIMITE,5065,Other consumables,18.98,0.00,18.98
Neighbourhoods and Climate Change,Environmental Services,010301,C&G - North Grounds Maintenance,Supplies and Services,304221,Equipment and Materials,06-Apr-2021,000009470096981,TRAVIS PERKINS,5211,Direct materials,34.15,5.69,28.46
Children and Young Peoples Services,Head of Childrens Social Care,085342,16 Hickstead Rise (previously 9 Cedar Ave),Supplies and Services,304403,Equipment and Materials,06-Apr-2021,000009470096991,AMZNMktplace,5999,Other consumables,7.58,0.00,7.58
Children and Young Peoples Services,Head of Childrens Social Care,085342,16 Hickstead Rise (previously 9 Cedar Ave),Supplies and Services,384999,Miscellaneous Expenses,06-Apr-2021,000009470096995,Amazon.co.uk MU2LJ2YW4,5969,Other expenses,11.42,0.00,11.42
Children and Young Peoples Services,Head of Early Help Inclusion & Vulnerable Children.,088115,Young Parents Programme 088115,Supplies and Services,384302,Miscellaneous Expenses,06-Apr-2021,000009470097037,AMZNMktplace,5999,Activity expenses,118.38,19.80,98.58
Children and Young Peoples Services,Head of Early Help Inclusion & Vulnerable Children.,071489,Winter Family Fund,Supplies and Services,364301,Grants to Voluntary Organisations,06-Apr-2021,000009470097043,ASDA GROCERIES ONLINE,5411,Hardship,53.12,0.00,53.12
Children and Young Peoples Services,Head of Early Help Inclusion & Vulnerable Children.,088115,Young Parents Programme 088115,Supplies and Services,384302,Miscellaneous Expenses,06-Apr-2021,000009470097051,ASDA GROCERIES ONLINE,5411,Activity expenses,88.70,0.00,88.70
Children and Young Peoples Services,Head of Early Help Inclusion & Vulnerable Children.,088115,Young Parents Programme 088115,Supplies and Services,384302,Miscellaneous Expenses,06-Apr-2021,000009470097055,ASDA GROCERIES ONLINE,5411,Activity expenses,82.58,0.00,82.58
Children and Young Peoples Services,Head of Early Help Inclusion & Vulnerable Children.,071489,Winter Family Fund,Supplies and Services,364301,Grants to Voluntary Organisations,06-Apr-2021,000009470097063,ASDA GROCERIES ONLINE,5411,Hardship,0.40,0.00,0.40
Children and Young Peoples Services,Head of Early Help Inclusion & Vulnerable Children.,088107,Ferryhill & Newton Aycliffe 0-19 Community Family Hub,Supplies and Services,364301,Grants to Voluntary Organisations,06-Apr-2021,000009470097069,ARGOS LTD,5310,Hardship,59.45,0.00,59.45
Children and Young Peoples Services,Head of Early Help Inclusion & Vulnerable Children.,088115,Young Parents Programme 088115,Supplies and Services,384302,Miscellaneous Expenses,06-Apr-2021,000009470097079,ASDA GROCERIES ONLINE,5411,Activity expenses,-9.60,0.00,-9.60
Children and Young Peoples Services,Head of Early Help Inclusion & Vulnerable Children.,088115,Young Parents Programme 088115,Supplies and Services,384302,Miscellaneous Expenses,06-Apr-2021,000009470097085,ASDA GROCERIES ONLINE,5411,Activity expenses,-9.60,0.00,-9.60
Neighbourhoods and Climate Change,Environmental Services,010301,C&G - North Grounds Maintenance,Supplies and Services,304221,Equipment and Materials,06-Apr-2021,000009470097105,BREWERS,5211,Direct materials,91.03,0.00,91.03
Children and Young Peoples Services,Head of Childrens Social Care,085351,Framwellgate Moor CU,Supplies and Services,304221,Equipment and Materials,06-Apr-2021,000009470097111,B & Q 1343,5200,Direct materials,15.98,0.00,15.98
Children and Young Peoples Services,Head of Education and Skills,071802,Louisa Cent Nursery,Supplies and Services,324117,Provisions E324,06-Apr-2021,000009470097121,ASDA GROCERIES ONLINE,5411,Catering costs - provisions,135.06,0.00,135.06
Children and Young Peoples Services,Head of Childrens Social Care,085333,Coxhoe Satelite Home,Supplies and Services,328041,Clothing uniforms and laundry E328,06-Apr-2021,000009470097151,JustFab by TechStyle,5631,Clothing uniforms and laundry,35.00,0.00,35.00
Adult and Health Services,Head of Adults,055310,Positive Journeys (Tudhoe),Supplies and Services,324117,Provisions E324,06-Apr-2021,000009470097163,ASDA SUPERSTORE 4987,5411,Catering costs - provisions,1.09,0.00,1.09
Children and Young Peoples Services,Head of Childrens Social Care,085551,Short Break Services-Park Hse Sher,Supplies and Services,304999,Equipment and Materials,06-Apr-2021,000009470097201,HOME BARGAINS,5251,Misc equipment tools and materials,41.89,0.00,41.89
Children and Young Peoples Services,Head of Childrens Social Care,085551,Short Break Services-Park Hse Sher,Supplies and Services,348037,Subsistence E348,06-Apr-2021,000009470097209,MCDONALDS,5814,Subsistence,4.69,0.00,4.69
Children and Young Peoples Services,Head of Childrens Social Care,085341,High Etherley Satelite Home,Supplies and Services,304403,Equipment and Materials,06-Apr-2021,000009472926189,AMZNMKTPLACE AMAZON.CO,5999,Other consumables,21.93,0.00,21.93
Children and Young Peoples Services,Head of Childrens Social Care,085332,Middlestone Moor CU,Supplies and Services,304403,Equipment and Materials,06-Apr-2021,000009472926261,AMZNMKTPLACE AMAZON.CO,5999,Other consumables,11.98,2.00,9.98
"Regeneration, Economy and Growth",Development and Housing,031576,B& B - Temp Accom,Employees,040149,Recruitment Instruction and Training,06-Apr-2021,000009472926597,PREMIER INN,3811,Training-all costs,30.00,5.00,25.00
"Regeneration, Economy and Growth",Development and Housing,031576,B& B - Temp Accom,Employees,040149,Recruitment Instruction and Training,06-Apr-2021,000009472926597 - 1,PREMIER INN,3811,Training-all costs,75.00,,75.00
"Regeneration, Economy and Growth",Development and Housing,030771,Durham Advance Flexible Fund,Supplies and Services,304999,Equipment and Materials,06-Apr-2021,000009472926633,AMZNMKTPLACE AMAZON.CO,5999,Misc equipment tools and materials,106.94,17.82,89.12
Children and Young Peoples Services,Head of Education and Skills,078554,Adult Skills-Main,Supplies and Services,304403,Equipment and Materials,06-Apr-2021,000009472926899,AMZNMKTPLACE AMAZON.CO,5999,Other consumables,27.98,4.66,23.32
"Regeneration, Economy and Growth",Development and Housing,031500,Housing Solutions - Core,Supplies and Services,348037,Subsistence E348,06-Apr-2021,000009480198341,CROXDALE INN,5812,Subsistence,150.00,0.00,150.00
Children and Young Peoples Services,Head of Education and Skills,071801,Selby Cottage Childcare Centre,Supplies and Services,324117,Provisions E324,07-Apr-2021,000009472925955,TESCO STORES 2371,5411,Catering costs - provisions,54.38,0.00,54.38
Children and Young Peoples Services,Head of Education and Skills,071801,Selby Cottage Childcare Centre,Supplies and Services,384999,Miscellaneous Expenses,07-Apr-2021,000009472925963,Amazon.co.uk M45DF8F74,5969,Other expenses,3.00,0.00,3.00
Children and Young Peoples Services,Head of Childrens Social Care - Excluded Services,085001,Durham Safeguarding Childrens Partnership,Supplies and Services,342053,Computers and Communications,07-Apr-2021,000009472926001,PADDLE.NET SHAPEDPLUG,5817,Computer software,25.19,0.00,25.19
Resources BK0010,Digital and Customer Services,065432,Web Development Group,Supplies and Services,342053,Computers and Communications,07-Apr-2021,000009472926007,WORDFENCE.COM,5045,Computer software,"1,074.71",0.00,1074.71
Children and Young Peoples Services,Head of Childrens Social Care - Excluded Services,085001,Durham Safeguarding Childrens Partnership,Supplies and Services,342053,Computers and Communications,07-Apr-2021,000009472926013,WWW.WPDOWNLOADMANAGER.,5734,Computer software,42.70,0.00,42.70
Resources BK0010,Digital and Customer Services,065432,Web Development Group,Supplies and Services,342033,Computers and Communications,07-Apr-2021,000009472926017,WPMU DEV INCSUBFEE.COM,7372,Computer hardware,13.75,0.00,13.75
"Regeneration, Economy and Growth",Development and Housing,030777,FLEX,Supplies and Services,304403,Equipment and Materials,07-Apr-2021,000009472926033,AMZNMktplace,5999,Other consumables,13.99,0.00,13.99
"Regeneration, Economy and Growth",Development and Housing,030777,FLEX,Supplies and Services,304403,Equipment and Materials,07-Apr-2021,000009472926043,AMZNMktplace,5999,Other consumables,19.98,3.34,16.64
"Regeneration, Economy and Growth",Development and Housing,031576,B& B - Temp Accom,Supplies and Services,364320,Grants to Voluntary Organisations,07-Apr-2021,000009472926053,HI NEWCASTLE WASHI,7011,Accommodation assistance,450.00,0.00,450.00
"Regeneration, Economy and Growth",Development and Housing,031576,B& B - Temp Accom,Supplies and Services,364320,Grants to Voluntary Organisations,07-Apr-2021,000009472926059,HI NEWCASTLE WASHI,7011,Accommodation assistance,450.00,0.00,450.00
"Regeneration, Economy and Growth",Development and Housing,031576,B& B - Temp Accom,Supplies and Services,364320,Grants to Voluntary Organisations,07-Apr-2021,000009472926069,HI NEWCASTLE WASHI,7011,Accommodation assistance,220.00,0.00,220.00
Children and Young Peoples Services,Head of Childrens Social Care,085501,Child Care Cases Legal Expenses,Supplies and Services,304403,Equipment and Materials,07-Apr-2021,000009472926081,SUNDERLAND CC,7523,Other consumables,22.00,0.00,22.00
"Regeneration, Economy and Growth",Development and Housing,030773,CLLD North,Transport,235057,Public Transport,07-Apr-2021,000009472926093,GO NORTH EAST LIMITED,4131,Staff travelling,75.00,0.00,75.00
Neighbourhoods and Climate Change,Environmental Services,010383,C&G - South Street Cleansing,Supplies and Services,304999,Equipment and Materials,07-Apr-2021,000009472926101,Snowballs,5251,Misc equipment tools and materials,295.67,0.00,295.67
Children and Young Peoples Services,Head of Childrens Social Care,085342,16 Hickstead Rise (previously 9 Cedar Ave),Supplies and Services,304999,Equipment and Materials,07-Apr-2021,000009472926115,HOME BARGAINS,5251,Misc equipment tools and materials,1.98,0.00,1.98
Children and Young Peoples Services,Head of Childrens Social Care,085342,16 Hickstead Rise (previously 9 Cedar Ave),Supplies and Services,304999,Equipment and Materials,07-Apr-2021,000009472926121,HOME BARGAINS,5251,Misc equipment tools and materials,2.88,0.00,2.88
Children and Young Peoples Services,Head of Childrens Social Care,085342,16 Hickstead Rise (previously 9 Cedar Ave),Supplies and Services,304999,Equipment and Materials,07-Apr-2021,000009472926133,SUPERDRUG STORES PLC,5912,Misc equipment tools and materials,10.50,0.00,10.50
Children and Young Peoples Services,Head of Childrens Social Care,085342,16 Hickstead Rise (previously 9 Cedar Ave),Supplies and Services,328041,Clothing uniforms and laundry E328,07-Apr-2021,000009472926139,POUNDLAND LTD 1554,5310,Clothing uniforms and laundry,5.00,0.00,5.00
Children and Young Peoples Services,Head of Childrens Social Care,085342,16 Hickstead Rise (previously 9 Cedar Ave),Supplies and Services,328041,Clothing uniforms and laundry E328,07-Apr-2021,000009472926147,POUNDLAND LTD 1554,5310,Clothing uniforms and laundry,2.00,0.00,2.00
Children and Young Peoples Services,Head of Childrens Social Care,085342,16 Hickstead Rise (previously 9 Cedar Ave),Supplies and Services,324117,Provisions E324,07-Apr-2021,000009472926157,WM MORRISONS STORE,5411,Catering costs - provisions,2.30,0.00,2.30
Children and Young Peoples Services,Head of Childrens Social Care,085332,Middlestone Moor CU,Supplies and Services,304999,Equipment and Materials,07-Apr-2021,000009472926169,WWW.ONLYOILCLOTHS.CO.U,5714,Misc equipment tools and materials,40.28,0.00,40.28
Children and Young Peoples Services,Head of Childrens Social Care,085332,Middlestone Moor CU,Supplies and Services,324117,Provisions E324,07-Apr-2021,000009472926177,WWW.ICELAND.CO.UK,5411,Catering costs - provisions,80.60,0.00,80.60
Children and Young Peoples Services,Head of Childrens Social Care,085332,Middlestone Moor CU,Supplies and Services,324117,Provisions E324,07-Apr-2021,000009472926187,WWW.ICELAND.CO.UK,5411,Catering costs - provisions,-6.00,0.00,-6.00
"Regeneration, Economy and Growth",Development and Housing,030776,LINKCD Flexible Fund,Supplies and Services,344033,Telephones,07-Apr-2021,000009472926219,VODAFONE LTD,4814,Telephones general-all costs,25.00,0.00,25.00
Neighbourhoods and Climate Change,Environmental Services,010367,C&G - South Grounds Maintenance,Supplies and Services,304221,Equipment and Materials,07-Apr-2021,000009472926343,BTL TIMBER AND HARDWAR,5099,Direct materials,141.32,0.00,141.32
Children and Young Peoples Services,Head of Early Help Inclusion & Vulnerable Children.,085965,Barnard,Supplies and Services,384999,Miscellaneous Expenses,07-Apr-2021,000009472926359,Amazon.co.uk M47UA9FS4,5969,Other expenses,67.99,11.33,56.66
Children and Young Peoples Services,Head of Early Help Inclusion & Vulnerable Children.,073998,TTF-Co-ordinator Grant,Transfer Payments,525033,Other,07-Apr-2021,000009472926377,FRANKS THE FLOORIN,5713,Grants to individuals,400.00,0.00,400.00
Neighbourhoods and Climate Change,Environmental Services,019100,Fleet - Strategic Fleet,Supplies and Services,384999,Miscellaneous Expenses,07-Apr-2021,000009472926427,DVSA,9399,Other expenses,500.00,0.00,500.00
"Regeneration, Economy and Growth",Culture Sport and Tourism,054967,Theatre - Technical Staffing,Supplies and Services,384999,Miscellaneous Expenses,07-Apr-2021,000009472926483,Amazon.co.uk M42MD0F14,5969,Other expenses,7.51,0.00,7.51
Children and Young Peoples Services,Head of Childrens Social Care,085341,High Etherley Satelite Home,Supplies and Services,348037,Subsistence E348,07-Apr-2021,000009472926533,DOWNEYS,5814,Subsistence,30.30,0.00,30.30
"Regeneration, Economy and Growth",Development and Housing,031500,Housing Solutions - Core,Supplies and Services,352001,Conference Expenses,07-Apr-2021,000009472926543,TRAVELODGE,3615,Conferencesseminars fees etc,30.58,0.00,30.58
Children and Young Peoples Services,Head of Childrens Social Care,085332,Middlestone Moor CU,Supplies and Services,324117,Provisions E324,07-Apr-2021,000009472926551,TESCO STORES 6329,5411,Catering costs - provisions,45.10,0.00,45.10
"Regeneration, Economy and Growth",Development and Housing,031576,B& B - Temp Accom,Supplies and Services,352001,Conference Expenses,07-Apr-2021,000009472926575,TOAST LETTINGS,7011,Conferencesseminars fees etc,400.00,0.00,400.00
"Regeneration, Economy and Growth",Development and Housing,031576,B& B - Temp Accom,Supplies and Services,352001,Conference Expenses,07-Apr-2021,000009472926581,TOAST LETTINGS,7011,Conferencesseminars fees etc,420.00,0.00,420.00
"Regeneration, Economy and Growth",Development and Housing,031576,B& B - Temp Accom,Supplies and Services,352001,Conference Expenses,07-Apr-2021,000009472926587,TOAST LETTINGS,7011,Conferencesseminars fees etc,420.00,0.00,420.00
"Regeneration, Economy and Growth",Development and Housing,031576,B& B - Temp Accom,Supplies and Services,352001,Conference Expenses,07-Apr-2021,000009472926593,TOAST LETTINGS,7011,Conferencesseminars fees etc,420.00,0.00,420.00
"Regeneration, Economy and Growth",Development and Housing,030771,Durham Advance Flexible Fund,Supplies and Services,304999,Equipment and Materials,07-Apr-2021,000009472926625,AMZNMKTPLACE AMAZON.CO,5999,Misc equipment tools and materials,16.99,2.83,14.16
"Regeneration, Economy and Growth",Development and Housing,030771,Durham Advance Flexible Fund,Supplies and Services,304403,Equipment and Materials,07-Apr-2021,000009472926643,AMZNMKTPLACE AMAZON.CO,5999,Other consumables,160.86,26.81,134.05
"Regeneration, Economy and Growth",Development and Housing,030771,Durham Advance Flexible Fund,Supplies and Services,304403,Equipment and Materials,07-Apr-2021,000009472926643 - 1,AMZNMKTPLACE AMAZON.CO,5999,Other consumables,0.07,,0.07
"Regeneration, Economy and Growth",Development and Housing,030771,Durham Advance Flexible Fund,Supplies and Services,304403,Equipment and Materials,07-Apr-2021,000009472926655,AMZNMKTPLACE AMAZON.CO,5999,Other consumables,13.95,2.33,11.62
"Regeneration, Economy and Growth",Development and Housing,030771,Durham Advance Flexible Fund,Supplies and Services,304999,Equipment and Materials,07-Apr-2021,000009472926661,AMZNMKTPLACE AMAZON.CO,5999,Misc equipment tools and materials,4.72,0.79,3.93
"Regeneration, Economy and Growth",Development and Housing,031576,B& B - Temp Accom,Supplies and Services,352001,Conference Expenses,07-Apr-2021,000009472926671,AYCLIFFE BIZ,7011,Conferencesseminars fees etc,380.00,0.00,380.00
"Regeneration, Economy and Growth",Development and Housing,031576,B& B - Temp Accom,Supplies and Services,352001,Conference Expenses,07-Apr-2021,000009472926677,AYCLIFFE BIZ,7011,Conferencesseminars fees etc,266.00,0.00,266.00
"Regeneration, Economy and Growth",Development and Housing,031576,B& B - Temp Accom,Supplies and Services,352001,Conference Expenses,07-Apr-2021,000009472926683,AYCLIFFE BIZ,7011,Conferencesseminars fees etc,418.00,0.00,418.00
"Regeneration, Economy and Growth",Development and Housing,031576,B& B - Temp Accom,Supplies and Services,352001,Conference Expenses,07-Apr-2021,000009472926693,AYCLIFFE BIZ,7011,Conferencesseminars fees etc,152.00,0.00,152.00
"Regeneration, Economy and Growth",Development and Housing,031576,B& B - Temp Accom,Supplies and Services,352001,Conference Expenses,07-Apr-2021,000009472926701,AYCLIFFE BIZ,7011,Conferencesseminars fees etc,418.00,0.00,418.00
"Regeneration, Economy and Growth",Development and Housing,031576,B& B - Temp Accom,Supplies and Services,352001,Conference Expenses,07-Apr-2021,000009472926707,AYCLIFFE BIZ,7011,Conferencesseminars fees etc,152.00,0.00,152.00
"Regeneration, Economy and Growth",Development and Housing,031576,B& B - Temp Accom,Supplies and Services,352001,Conference Expenses,07-Apr-2021,000009472926713,AYCLIFFE BIZ,7011,Conferencesseminars fees etc,380.00,0.00,380.00
Children and Young Peoples Services,Head of Early Help Inclusion & Vulnerable Children.,085962,Aycliffe Secure - Durham,Transfer Payments,515002,Social Services Clients,07-Apr-2021,000009472926723,AMZNMktplace,5999,Pocket money,14.90,0.00,14.90
Children and Young Peoples Services,Head of Early Help Inclusion & Vulnerable Children.,085956,Lumley,Transfer Payments,515002,Social Services Clients,07-Apr-2021,000009472926725,AMZNMKTPLACE AMAZON.CO,5999,Pocket money,7.69,1.28,6.41
Children and Young Peoples Services,Head of Early Help Inclusion & Vulnerable Children.,085962,Aycliffe Secure - Durham,Supplies and Services,324117,Provisions E324,07-Apr-2021,000009472926731,TESCO STORES 6329,5411,Catering costs - provisions,75.13,0.00,75.13
Children and Young Peoples Services,Head of Early Help Inclusion & Vulnerable Children.,071489,Winter Family Fund,Supplies and Services,328041,Clothing uniforms and laundry E328,07-Apr-2021,000009472926737,PAYPAL ARGOSDIRECT,5331,Clothing uniforms and laundry,199.99,0.00,199.99
Neighbourhoods and Climate Change,Environmental Services,010367,C&G - South Grounds Maintenance,Supplies and Services,304221,Equipment and Materials,07-Apr-2021,000009472926743,MKM PETERLEE,5211,Direct materials,168.50,0.00,168.50
Neighbourhoods and Climate Change,Environmental Services,011060,C&G - Hardwick Park Catering,Supplies and Services,324117,Provisions E324,07-Apr-2021,000009472926751,JR HOLLAND FOODSERVICE,5499,Catering costs - provisions,17.87,0.00,17.87
"Regeneration, Economy and Growth",Development and Housing,031576,B& B - Temp Accom,Supplies and Services,364320,Grants to Voluntary Organisations,07-Apr-2021,000009472926787,HI NEWCASTLE WASHI,7011,Accommodation assistance,"1,200.00",0.00,1200.00
"Regeneration, Economy and Growth",Development and Housing,031576,B& B - Temp Accom,Supplies and Services,364320,Grants to Voluntary Organisations,07-Apr-2021,000009472926793,HI NEWCASTLE WASHI,7011,Accommodation assistance,710.00,0.00,710.00
"Regeneration, Economy and Growth",Development and Housing,031576,B& B - Temp Accom,Supplies and Services,364320,Grants to Voluntary Organisations,07-Apr-2021,000009472926799,HI NEWCASTLE WASHI,7011,Accommodation assistance,835.00,0.00,835.00
"Regeneration, Economy and Growth",Development and Housing,031576,B& B - Temp Accom,Supplies and Services,364320,Grants to Voluntary Organisations,07-Apr-2021,000009472926803,HI NEWCASTLE WASHI,7011,Accommodation assistance,720.00,0.00,720.00
"Regeneration, Economy and Growth",Development and Housing,031576,B& B - Temp Accom,Supplies and Services,364320,Grants to Voluntary Organisations,07-Apr-2021,000009472926809,HI NEWCASTLE WASHI,7011,Accommodation assistance,"1,430.00",0.00,1430.00
"Regeneration, Economy and Growth",Development and Housing,031576,B& B - Temp Accom,Supplies and Services,364320,Grants to Voluntary Organisations,07-Apr-2021,000009472926813,HI NEWCASTLE WASHI,7011,Accommodation assistance,"1,040.00",0.00,1040.00
"Regeneration, Economy and Growth",Development and Housing,031576,B& B - Temp Accom,Supplies and Services,364320,Grants to Voluntary Organisations,07-Apr-2021,000009472926819,HI NEWCASTLE WASHI,7011,Accommodation assistance,720.00,0.00,720.00
Children and Young Peoples Services,Head of Childrens Social Care,085341,High Etherley Satelite Home,Supplies and Services,324117,Provisions E324,07-Apr-2021,000009472926861,MARKS&SPENCER PLC SF,5411,Catering costs - provisions,16.00,0.00,16.00
Children and Young Peoples Services,Head of Childrens Social Care,085613,Families First Durham Central,Transport,235073,Public Transport,07-Apr-2021,000009472926915,GO NORTH EAST LIMITED,4131,Travel-clients/students/children,143.00,0.00,143.00
Children and Young Peoples Services,Head of Early Help Inclusion & Vulnerable Children.,071489,Winter Family Fund,Supplies and Services,364301,Grants to Voluntary Organisations,07-Apr-2021,000009472926917,ASDA GEORGE COM LEEDS,5411,Hardship,53.00,0.00,53.00
Children and Young Peoples Services,Head of Early Help Inclusion & Vulnerable Children.,071489,Winter Family Fund,Supplies and Services,364301,Grants to Voluntary Organisations,07-Apr-2021,000009472926923,ASDA GEORGE COM LEEDS,5411,Hardship,53.00,0.00,53.00
Adult and Health Services,Head of Adults,055643,Hawthorn House LD Respite Unit,Supplies and Services,324117,Provisions E324,07-Apr-2021,000009472926925,JR HOLLAND FOODSERVICE,5499,Catering costs - provisions,9.46,0.00,9.46
Adult and Health Services,Head of Adults,055643,Hawthorn House LD Respite Unit,Supplies and Services,324117,Provisions E324,07-Apr-2021,000009472926931,JR HOLLAND FOODSERVICE,5499,Catering costs - provisions,8.01,0.00,8.01
Children and Young Peoples Services,Head of Education and Skills,078100,Curric and Professional Development 078100,Supplies and Services,384999,Miscellaneous Expenses,07-Apr-2021,000009472926937,Amazon.co.uk M47G15FL4,5969,Other expenses,16.19,0.00,16.19
Children and Young Peoples Services,Head of Childrens Social Care,085334,West Rainton Satelite Home,Supplies and Services,348037,Subsistence E348,07-Apr-2021,000009472926943,KINGS CAFE,5812,Subsistence,5.00,0.00,5.00
Children and Young Peoples Services,Head of Childrens Social Care,085363,LAC & Permanence Team 3,Supplies and Services,338045,Services,07-Apr-2021,000009472926949,SUNDERLAND CC,9399,Legal expenses 338045,22.00,0.00,22.00
Children and Young Peoples Services,Head of Childrens Social Care,085363,LAC & Permanence Team 3,Supplies and Services,338045,Services,07-Apr-2021,000009472926955,TUNBRIDGE WELLS REG OF,9399,Legal expenses 338045,22.00,0.00,22.00
Children and Young Peoples Services,Head of Childrens Social Care,085342,16 Hickstead Rise (previously 9 Cedar Ave),Supplies and Services,324117,Provisions E324,07-Apr-2021,000009472926961,TESCO STORES 2916,5411,Catering costs - provisions,11.65,0.00,11.65
Children and Young Peoples Services,Head of Early Help Inclusion & Vulnerable Children.,085957,Secure Management,Supplies and Services,304259,Equipment and Materials,07-Apr-2021,000009472926985,Amazon.co.uk M40K13O74,5969,Equipment-purchase and rental,198.00,33.00,165.00
Children and Young Peoples Services,Head of Early Help Inclusion & Vulnerable Children.,085957,Secure Management,Supplies and Services,304259,Equipment and Materials,07-Apr-2021,000009472926989,Amazon.co.uk M403C0OB4,5969,Equipment-purchase and rental,99.00,16.50,82.50
Children and Young Peoples Services,Head of Early Help Inclusion & Vulnerable Children.,085957,Secure Management,Supplies and Services,384302,Miscellaneous Expenses,07-Apr-2021,000009472926993,AMZNMktplace,5999,Activity expenses,35.98,0.00,35.98
Adult and Health Services,Head of Adults,052229,Countywide AMHP Team,Supplies and Services,338048,Services,07-Apr-2021,000009472926997,HMCOURTS-SERVICE.G,9222,Court costs 338048,75.00,0.00,75.00
Resources BK0010,Procurement Sales & Business Services,065503,Business Support - Spectrum,Supplies and Services,304259,Equipment and Materials,07-Apr-2021,000009472927005,HM PASSPORT OFFICE,9399,Equipment-purchase and rental,75.50,0.00,75.50
Children and Young Peoples Services,Head of Education and Skills,071903,Early Years Sustainability,Supplies and Services,384999,Miscellaneous Expenses,07-Apr-2021,000009472927013,Amazon.co.uk M44UG3FD4,5969,Other expenses,16.61,0.00,16.61
Children and Young Peoples Services,Head of Education and Skills,071802,Louisa Cent Nursery,Supplies and Services,324117,Provisions E324,07-Apr-2021,000009472927049,ASDA SUPERSTORE,5411,Catering costs - provisions,37.26,0.00,37.26
Resources BK0010,Procurement Sales & Business Services,069800,Corporate Procurement 069800,Employees,040149,Recruitment Instruction and Training,07-Apr-2021,000009472927059,WWW.CIPS.ORG,8699,Training-all costs,137.00,0.00,137.00
"Regeneration, Economy and Growth",Development and Housing,031500,Housing Solutions - Core,Supplies and Services,352001,Conference Expenses,07-Apr-2021,000009472927063,HI NEWCASTLE WASHI,7011,Conferencesseminars fees etc,450.00,0.00,450.00
"Regeneration, Economy and Growth",Development and Housing,031500,Housing Solutions - Core,Supplies and Services,352001,Conference Expenses,07-Apr-2021,000009472927067,HI NEWCASTLE WASHI,7011,Conferencesseminars fees etc,450.00,0.00,450.00
"Regeneration, Economy and Growth",Development and Housing,031500,Housing Solutions - Core,Supplies and Services,352001,Conference Expenses,07-Apr-2021,000009472927073,HI NEWCASTLE WASHI,7011,Conferencesseminars fees etc,300.00,0.00,300.00
"Regeneration, Economy and Growth",Development and Housing,031500,Housing Solutions - Core,Supplies and Services,352001,Conference Expenses,07-Apr-2021,000009472927081,HI NEWCASTLE WASHI,7011,Conferencesseminars fees etc,450.00,0.00,450.00
"Regeneration, Economy and Growth",Corporate Property and Land,021235,Catering - Wharton Park,Supplies and Services,324117,Provisions E324,07-Apr-2021,000009472927119,JR HOLLAND FOODSERVICE,5499,Catering costs - provisions,40.19,0.00,40.19
Adult and Health Services,Head of Adults,055309,Peterlee Pathways,Supplies and Services,324117,Provisions E324,07-Apr-2021,000009472927131,ASDA SUPERSTORE 4987,5411,Catering costs - provisions,11.60,0.00,11.60
Children and Young Peoples Services,Head of Childrens Social Care,085551,Short Break Services-Park Hse Sher,Supplies and Services,324117,Provisions E324,07-Apr-2021,000009472927153,ICELAND,5411,Catering costs - provisions,98.64,0.00,98.64
Resources BK0010,Digital and Customer Services,065481,Technical Services 065481,Supplies and Services,372009,Subscriptions E372,07-Apr-2021,000009476304363,ISO/CS,2741,Subscriptions 372009,367.09,0.00,367.09
"Regeneration, Economy and Growth",Development and Housing,031576,B& B - Temp Accom,Employees,040149,Recruitment Instruction and Training,07-Apr-2021,000009476304699,PREMIER INN,3811,Training-all costs,55.00,0.00,55.00
"Regeneration, Economy and Growth",Development and Housing,031576,B& B - Temp Accom,Supplies and Services,364320,Grants to Voluntary Organisations,07-Apr-2021,000009480197631,CROXDALE INN,5812,Accommodation assistance,270.00,0.00,270.00
"Regeneration, Economy and Growth",Development and Housing,031500,Housing Solutions - Core,Supplies and Services,348037,Subsistence E348,07-Apr-2021,000009480198343,CROXDALE INN,5812,Subsistence,135.00,0.00,135.00
"Regeneration, Economy and Growth",Culture Sport and Tourism,010661,Meadowfield Leisure Centre,Supplies and Services,338057,Services,08-Apr-2021,000007504153522,Podobrace B.V.,5047,Medical fees 338057,268.00,0.00,268.00
"Regeneration, Economy and Growth",Culture Sport and Tourism,010661,Meadowfield Leisure Centre,Supplies and Services,304259,Equipment and Materials,08-Apr-2021,000007573243280,Podobrace B.V.,5047,Equipment-purchase and rental,-268.00,0.00,-268.00
"Regeneration, Economy and Growth",Business Durham CL0850,030689,Inward Investment and Aftercare,Supplies and Services,342033,Computers and Communications,08-Apr-2021,000009472925925,AdRoll_EMEA,7372,Computer hardware,105.08,0.00,105.08
"Regeneration, Economy and Growth",Business Durham CL0850,030689,Inward Investment and Aftercare,Supplies and Services,342033,Computers and Communications,08-Apr-2021,000009472925935,AdRoll_EMEA,7372,Computer hardware,2.89,0.00,2.89
Children and Young Peoples Services,Head of Education and Skills,071801,Selby Cottage Childcare Centre,Supplies and Services,304403,Equipment and Materials,08-Apr-2021,000009472925971,AMZNMktplace,5999,Other consumables,13.48,2.25,11.23
Children and Young Peoples Services,Head of Childrens Social Care - Excluded Services,085001,Durham Safeguarding Childrens Partnership,Supplies and Services,342053,Computers and Communications,08-Apr-2021,000009472926023,PADDLE.NET SHAPEDPLUG,5817,Computer software,0.69,0.00,0.69
Resources BK0010,Digital and Customer Services,065432,Web Development Group,Supplies and Services,342053,Computers and Communications,08-Apr-2021,000009472926025,WORDFENCE.COM,5045,Computer software,29.55,0.00,29.55
Children and Young Peoples Services,Head of Childrens Social Care - Excluded Services,085001,Durham Safeguarding Childrens Partnership,Supplies and Services,304403,Equipment and Materials,08-Apr-2021,000009472926029,WWW.WPDOWNLOADMANAGER.,5734,Other consumables,1.17,0.00,1.17
Resources BK0010,Digital and Customer Services,065432,Web Development Group,Supplies and Services,342033,Computers and Communications,08-Apr-2021,000009472926031,WPMU DEV INCSUBFEE.COM,7372,Computer hardware,0.38,0.00,0.38
"Regeneration, Economy and Growth",Communications Management,060270,Communications and Marketing,Supplies and Services,336005,Advertising E336,08-Apr-2021,000009472927089,FACEBK K6A9LZ65B2,7311,Advertising other than for staff,500.00,0.00,500.00
"Regeneration, Economy and Growth",Business Durham CL0850,030689,Inward Investment and Aftercare,Supplies and Services,336005,Advertising E336,08-Apr-2021,000009476304321,LINKEDIN-649 8947874,7311,Advertising other than for staff,21.02,0.00,21.02
Children and Young Peoples Services,Head of Early Help Inclusion & Vulnerable Children.,071489,Winter Family Fund,Supplies and Services,364301,Grants to Voluntary Organisations,08-Apr-2021,000009476304329,ASDA GEORGE COM LEEDS,5411,Hardship,218.46,0.00,218.46
Children and Young Peoples Services,Head of Education and Skills,071801,Selby Cottage Childcare Centre,Supplies and Services,304999,Equipment and Materials,08-Apr-2021,000009476304337,Amazon Prime M40H474R4,5968,Misc equipment tools and materials,7.99,0.00,7.99
Resources BK0010,Digital and Customer Services,065481,Technical Services 065481,Supplies and Services,342033,Computers and Communications,08-Apr-2021,000009476304359,SP SWITCH SFP LTD,5732,Computer hardware,500.40,0.00,500.40
"Regeneration, Economy and Growth",Development and Housing,030777,FLEX,Supplies and Services,304403,Equipment and Materials,08-Apr-2021,000009476304377,AMZNMktplace,5999,Other consumables,12.74,2.12,10.62
Children and Young Peoples Services,Head of Childrens Social Care,085357,LAC Bespoke Placements,Supplies and Services,352001,Conference Expenses,08-Apr-2021,000009476304387,Hotel on Booking.com,7011,Conferencesseminars fees etc,723.00,0.00,723.00
Children and Young Peoples Services,Head of Childrens Social Care,085357,LAC Bespoke Placements,Supplies and Services,352001,Conference Expenses,08-Apr-2021,000009476304391,Hotel on Booking.com,7011,Conferencesseminars fees etc,488.80,0.00,488.80
"Regeneration, Economy and Growth",Development and Housing,030773,CLLD North,Supplies and Services,324117,Provisions E324,08-Apr-2021,000009476304399,ASDA GEORGE COM LEEDS,5411,Catering costs - provisions,34.95,0.00,34.95
"Regeneration, Economy and Growth",Development and Housing,030773,CLLD North,Supplies and Services,304403,Equipment and Materials,08-Apr-2021,000009476304407,AMZNMktplace,5999,Other consumables,149.99,0.00,149.99
Children and Young Peoples Services,Head of Childrens Social Care,085332,Middlestone Moor CU,Supplies and Services,304999,Equipment and Materials,08-Apr-2021,000009476304421,WILKO RETAIL LIMITED,5399,Misc equipment tools and materials,40.60,0.00,40.60
Children and Young Peoples Services,Head of Childrens Social Care,085341,High Etherley Satelite Home,Supplies and Services,348037,Subsistence E348,08-Apr-2021,000009476304431,GREGGS THINFORD,5812,Subsistence,10.60,0.00,10.60
Children and Young Peoples Services,Head of Childrens Social Care,085341,High Etherley Satelite Home,Supplies and Services,324117,Provisions E324,08-Apr-2021,000009476304439,ASDA STORES,5411,Catering costs - provisions,12.60,0.00,12.60
"Regeneration, Economy and Growth",Development and Housing,030776,LINKCD Flexible Fund,Supplies and Services,304259,Equipment and Materials,08-Apr-2021,000009476304473,WWW.DURHAM.GOV.UK,9399,Equipment-purchase and rental,11.00,0.00,11.00
Children and Young Peoples Services,Head of Childrens Social Care,085352,New Childrens Home (previously Tow Law),Supplies and Services,304999,Equipment and Materials,08-Apr-2021,000009476304479,HOME BARGAINS,5251,Misc equipment tools and materials,0.55,0.00,0.55
Children and Young Peoples Services,Head of Childrens Social Care,085352,New Childrens Home (previously Tow Law),Supplies and Services,324117,Provisions E324,08-Apr-2021,000009476304487,ASDA SUPERSTORE,5411,Catering costs - provisions,20.58,0.00,20.58
Children and Young Peoples Services,Head of Early Help Inclusion & Vulnerable Children.,088115,Young Parents Programme 088115,Supplies and Services,384302,Miscellaneous Expenses,08-Apr-2021,000009476304517,ROBERT DYAS HOLDNG LTD,5251,Activity expenses,68.43,0.00,68.43
Children and Young Peoples Services,Head of Early Help Inclusion & Vulnerable Children.,088115,Young Parents Programme 088115,Supplies and Services,384302,Miscellaneous Expenses,08-Apr-2021,000009476304525,BOX LIMITED,5732,Activity expenses,359.88,59.98,299.90
Children and Young Peoples Services,Head of Early Help Inclusion & Vulnerable Children.,088106,Ferryhill & N.Aycliffe 0-19 Targeted Family Support,Supplies and Services,338045,Services,08-Apr-2021,000009476304529,Durham County CNCL,9399,Legal expenses 338045,35.00,0.00,35.00
Neighbourhoods and Climate Change,Environmental Services,010367,C&G - South Grounds Maintenance,Supplies and Services,304221,Equipment and Materials,08-Apr-2021,000009476304539,BTL TIMBER AND HARDWAR,5099,Direct materials,16.90,0.00,16.90
Children and Young Peoples Services,Head of Early Help Inclusion & Vulnerable Children.,085957,Secure Management,Supplies and Services,332047,Printing Stationery and Gen Off Exps,08-Apr-2021,000009476304567,AMZNMktplace,5999,Stationery,8.99,1.50,7.49
Children and Young Peoples Services,Head of Childrens Social Care,085361,LAC & Permanence Team 1,Supplies and Services,304403,Equipment and Materials,08-Apr-2021,000009476304589,HM PASSPORT OFFICE,9399,Other consumables,49.00,0.00,49.00
Children and Young Peoples Services,Head of Childrens Social Care,085362,LAC & Permanence Team 2,Supplies and Services,304403,Equipment and Materials,08-Apr-2021,000009476304595,HM PASSPORT OFFICE,9399,Other consumables,49.00,0.00,49.00
Neighbourhoods and Climate Change,Environmental Services,026591,C&G - Hardwick Park,Supplies and Services,304259,Equipment and Materials,08-Apr-2021,000009476304641,AMZNMktplace,5999,Equipment-purchase and rental,11.96,2.00,9.96
Neighbourhoods and Climate Change,Environmental Services,026591,C&G - Hardwick Park,Supplies and Services,304337,Equipment and Materials,08-Apr-2021,000009476304649,ANGEL WHOLESALE,5970,Consumables/items for resale,184.25,0.00,184.25
Neighbourhoods and Climate Change,Environmental Services,011058,C&G - Wharton Park,Supplies and Services,304259,Equipment and Materials,08-Apr-2021,000009476304653,WILKO.COM,5399,Equipment-purchase and rental,15.00,0.00,15.00
Neighbourhoods and Climate Change,Environmental Services,011058,C&G - Wharton Park,Supplies and Services,304259,Equipment and Materials,08-Apr-2021,000009476304659,AMZNMKTPLACE AMAZON.CO,5999,Equipment-purchase and rental,23.98,4.00,19.98
"Regeneration, Economy and Growth",Development and Housing,031500,Housing Solutions - Core,Supplies and Services,352001,Conference Expenses,08-Apr-2021,000009476304665,TRAVELODGE,3615,Conferencesseminars fees etc,111.13,0.00,111.13
Children and Young Peoples Services,Head of Childrens Social Care,085332,Middlestone Moor CU,Supplies and Services,348037,Subsistence E348,08-Apr-2021,000009476304671,GREGGS PLC,5812,Subsistence,5.84,0.00,5.84
Children and Young Peoples Services,Head of Early Help Inclusion & Vulnerable Children.,085810,CDYJS - Interventions Team,Supplies and Services,348037,Subsistence E348,08-Apr-2021,000009476304705,KFC THINFORD DURHAM PR,5814,Subsistence,37.03,0.00,37.03
"Regeneration, Economy and Growth",Development and Housing,030771,Durham Advance Flexible Fund,Supplies and Services,352001,Conference Expenses,08-Apr-2021,000009476304711,GET LICENSED,7392,Conferencesseminars fees etc,213.98,0.00,213.98
Children and Young Peoples Services,Head of Early Help Inclusion & Vulnerable Children.,085962,Aycliffe Secure - Durham,Supplies and Services,384302,Miscellaneous Expenses,08-Apr-2021,000009476304721,AMZNMktplace,5999,Activity expenses,12.99,2.17,10.82
Children and Young Peoples Services,Head of Early Help Inclusion & Vulnerable Children.,085962,Aycliffe Secure - Durham,Supplies and Services,384302,Miscellaneous Expenses,08-Apr-2021,000009476304723,AMZNMktplace,5999,Activity expenses,12.99,0.00,12.99
Children and Young Peoples Services,Head of Early Help Inclusion & Vulnerable Children.,088115,Young Parents Programme 088115,Supplies and Services,304403,Equipment and Materials,08-Apr-2021,000009476304731,AMZNMktplace,5999,Other consumables,243.70,0.00,243.70
Children and Young Peoples Services,Head of Education and Skills,075021,DurhamWorks Progression and Learning,Supplies and Services,364301,Grants to Voluntary Organisations,08-Apr-2021,000009476304735,DARLINGTON BC INTERNET,9399,Hardship,11.00,0.00,11.00
Resources BK0010,People & Talent Management,066895,Advice & Guidance,Third Party Payments,430100,Rendered by Private Contractors,08-Apr-2021,000009476304743,EB BEYOND CORONAVIRUS,7399,Payments to sub-contractors,168.00,0.00,168.00
Children and Young Peoples Services,Head of Childrens Social Care,085341,High Etherley Satelite Home,Supplies and Services,324117,Provisions E324,08-Apr-2021,000009476304771,LIDL GB SPENNYMOOR,5411,Catering costs - provisions,14.35,0.00,14.35
"Regeneration, Economy and Growth",Corporate Property and Land,020079,Bldg Serv - R&M Div 79- Electrical,Supplies and Services,304221,Equipment and Materials,08-Apr-2021,000009476304793,AMZNMktplace,5999,Direct materials,17.40,2.90,14.50
Children and Young Peoples Services,Head of Childrens Social Care,085352,New Childrens Home (previously Tow Law),Supplies and Services,304403,Equipment and Materials,08-Apr-2021,000009476304817,SP THE SCHOOL OUTFIT,5734,Other consumables,25.99,0.00,25.99
Children and Young Peoples Services,Head of Childrens Social Care,085352,New Childrens Home (previously Tow Law),Supplies and Services,304403,Equipment and Materials,08-Apr-2021,000009476304821,SumUp Gary Bolton Be,5999,Other consumables,320.00,0.00,320.00
Children and Young Peoples Services,Head of Childrens Social Care,085352,New Childrens Home (previously Tow Law),Supplies and Services,324117,Provisions E324,08-Apr-2021,000009476304829,SAINSBURYS 0776,5411,Catering costs - provisions,34.55,0.00,34.55
Children and Young Peoples Services,Head of Childrens Social Care,085352,New Childrens Home (previously Tow Law),Supplies and Services,324117,Provisions E324,08-Apr-2021,000009476304835,SAINSBURYS 0776,5411,Catering costs - provisions,65.54,0.00,65.54
Children and Young Peoples Services,Head of Childrens Social Care,085352,New Childrens Home (previously Tow Law),Supplies and Services,304403,Equipment and Materials,08-Apr-2021,000009476304843,AMZNMKTPLACE AMAZON.CO,5999,Other consumables,15.99,2.67,13.32
Children and Young Peoples Services,Head of Early Help Inclusion & Vulnerable Children.,071489,Winter Family Fund,Supplies and Services,364301,Grants to Voluntary Organisations,08-Apr-2021,000009476304847,AMZNMktplace,5999,Hardship,65.97,11.01,54.96
Children and Young Peoples Services,Head of Early Help Inclusion & Vulnerable Children.,071489,Winter Family Fund,Supplies and Services,364301,Grants to Voluntary Organisations,08-Apr-2021,000009476304853,AMZNMktplace,5999,Hardship,50.15,0.00,50.15
Children and Young Peoples Services,Head of Early Help Inclusion & Vulnerable Children.,071489,Winter Family Fund,Supplies and Services,364301,Grants to Voluntary Organisations,08-Apr-2021,000009476304859,AMZNMktplace,5999,Hardship,26.00,4.33,21.67
Children and Young Peoples Services,Head of Early Help Inclusion & Vulnerable Children.,071489,Winter Family Fund,Supplies and Services,364301,Grants to Voluntary Organisations,08-Apr-2021,000009476304865,AMZNMktplace,5999,Hardship,17.99,3.00,14.99
Children and Young Peoples Services,Head of Early Help Inclusion & Vulnerable Children.,088102,Consett & Stanley 0-19 Targeted Family Support,Supplies and Services,364301,Grants to Voluntary Organisations,08-Apr-2021,000009476304871,WILKO.COM,5399,Hardship,60.50,0.00,60.50
Children and Young Peoples Services,Head of Early Help Inclusion & Vulnerable Children.,088115,Young Parents Programme 088115,Supplies and Services,384302,Miscellaneous Expenses,08-Apr-2021,000009476304877,HOME BARGAINS,5251,Activity expenses,180.50,0.00,180.50
Children and Young Peoples Services,Head of Early Help Inclusion & Vulnerable Children.,088102,Consett & Stanley 0-19 Targeted Family Support,Supplies and Services,384302,Miscellaneous Expenses,08-Apr-2021,000009476304883,AMZNMktplace,5999,Activity expenses,32.89,5.49,27.40
Children and Young Peoples Services,Head of Early Help Inclusion & Vulnerable Children.,085957,Secure Management,Supplies and Services,384302,Miscellaneous Expenses,08-Apr-2021,000009476304909,Amazon MP3,5735,Activity expenses,7.99,0.00,7.99
Resources BK0010,Procurement Sales & Business Services,065503,Business Support - Spectrum,Supplies and Services,328041,Clothing uniforms and laundry E328,08-Apr-2021,000009476304915,ARGOS LTD,5310,Clothing uniforms and laundry,357.93,0.00,357.93
Resources BK0010,Procurement Sales & Business Services,065503,Business Support - Spectrum,Supplies and Services,328041,Clothing uniforms and laundry E328,08-Apr-2021,000009476304925,ARGOS LTD,5310,Clothing uniforms and laundry,206.95,0.00,206.95
Resources BK0010,Procurement Sales & Business Services,065503,Business Support - Spectrum,Supplies and Services,328041,Clothing uniforms and laundry E328,08-Apr-2021,000009476304929,ARGOS LTD,5310,Clothing uniforms and laundry,127.50,0.00,127.50
Resources BK0010,Procurement Sales & Business Services,065503,Business Support - Spectrum,Supplies and Services,328041,Clothing uniforms and laundry E328,08-Apr-2021,000009476304933,ARGOS LTD,5310,Clothing uniforms and laundry,177.93,0.00,177.93
Resources BK0010,Procurement Sales & Business Services,065503,Business Support - Spectrum,Supplies and Services,328041,Clothing uniforms and laundry E328,08-Apr-2021,000009476304937,ARGOS LTD,5310,Clothing uniforms and laundry,-206.95,0.00,-206.95
Children and Young Peoples Services,Head of Early Help Inclusion & Vulnerable Children.,071489,Winter Family Fund,Supplies and Services,364301,Grants to Voluntary Organisations,08-Apr-2021,000009476304943,WILKO.COM,5399,Hardship,79.00,0.00,79.00
Children and Young Peoples Services,Head of Early Help Inclusion & Vulnerable Children.,071489,Winter Family Fund,Supplies and Services,364301,Grants to Voluntary Organisations,08-Apr-2021,000009476304949,ASDA GEORGE COM LEEDS,5411,Hardship,118.00,0.00,118.00
Children and Young Peoples Services,Head of Early Help Inclusion & Vulnerable Children.,088110,Easington & Peterlee 0-19 Targeted Family Support,Supplies and Services,304259,Equipment and Materials,08-Apr-2021,000009476304953,Amazon.co.uk M45YJ7LP4,5969,Equipment-purchase and rental,49.14,8.19,40.95
Children and Young Peoples Services,Head of Early Help Inclusion & Vulnerable Children.,088110,Easington & Peterlee 0-19 Targeted Family Support,Supplies and Services,304259,Equipment and Materials,08-Apr-2021,000009476304953 - 1,Amazon.co.uk M45YJ7LP4,5969,Equipment-purchase and rental,122.31,,122.31
Children and Young Peoples Services,Head of Early Help Inclusion & Vulnerable Children.,088110,Easington & Peterlee 0-19 Targeted Family Support,Supplies and Services,304259,Equipment and Materials,08-Apr-2021,000009476304957,Amazon.co.uk M48W66ZL4,5969,Equipment-purchase and rental,22.32,3.72,18.60
Children and Young Peoples Services,Head of Early Help Inclusion & Vulnerable Children.,088110,Easington & Peterlee 0-19 Targeted Family Support,Supplies and Services,304259,Equipment and Materials,08-Apr-2021,000009476304957 - 1,Amazon.co.uk M48W66ZL4,5969,Equipment-purchase and rental,17.37,,17.37
Children and Young Peoples Services,Head of Education and Skills,071903,Early Years Sustainability,Supplies and Services,384999,Miscellaneous Expenses,08-Apr-2021,000009476304961,Amazon.co.uk M49XH54N4,5969,Other expenses,16.61,0.00,16.61
"Regeneration, Economy and Growth",REG - Central Costs,091004,COVID19 - Regeneration Economy and Growth,Supplies and Services,304259,Equipment and Materials,08-Apr-2021,000009476304969,AMZNMKTPLACE AMAZON.CO,5999,Equipment-purchase and rental,8.99,1.50,7.49
"Regeneration, Economy and Growth",Transport and Contracted Services,031704,Care Connect - CCTV Countywide,Supplies and Services,384956,Miscellaneous Expenses,08-Apr-2021,000009476304973,SECURITY INDUSTRY,7393,Licences,190.00,0.00,190.00
Neighbourhoods and Climate Change,Technical Services CM0300,010010,Gilesgate DSHI 08/09,Employees,040149,Recruitment Instruction and Training,08-Apr-2021,000009476305037,CREATIVE_FED,8699,Training-all costs,25.00,0.00,25.00
Resources BK0010,Procurement Sales & Business Services,065501,Business Support - Executive Support,Supplies and Services,384999,Miscellaneous Expenses,08-Apr-2021,000009476305045,Amazon.co.uk M49YE3LU4,5969,Other expenses,7.45,1.24,6.21
Children and Young Peoples Services,Head of Childrens Social Care,085332,Middlestone Moor CU,Supplies and Services,324117,Provisions E324,08-Apr-2021,000009476305083,CO-OP GROUP FOOD,5411,Catering costs - provisions,9.70,0.00,9.70
"Regeneration, Economy and Growth",Development and Housing,030771,Durham Advance Flexible Fund,Transport,235057,Public Transport,08-Apr-2021,000009476305089,GO NORTH EAST LIMITED,4131,Staff travelling,7.00,0.00,7.00
Children and Young Peoples Services,Head of Childrens Social Care,085333,Coxhoe Satelite Home,Supplies and Services,328041,Clothing uniforms and laundry E328,08-Apr-2021,000009476305095,ARGOS LTD,5310,Clothing uniforms and laundry,199.99,0.00,199.99
"Regeneration, Economy and Growth",Development and Housing,031500,Housing Solutions - Core,Supplies and Services,348037,Subsistence E348,08-Apr-2021,000009480197361,CROXDALE INN,5812,Subsistence,200.00,0.00,200.00
"Regeneration, Economy and Growth",Development and Housing,031500,Housing Solutions - Core,Supplies and Services,348037,Subsistence E348,08-Apr-2021,000009480197365,CROXDALE INN,5812,Subsistence,200.00,0.00,200.00
"Regeneration, Economy and Growth",Development and Housing,031500,Housing Solutions - Core,Supplies and Services,348037,Subsistence E348,08-Apr-2021,000009480197371,CROXDALE INN,5812,Subsistence,150.00,0.00,150.00
"Regeneration, Economy and Growth",Development and Housing,031500,Housing Solutions - Core,Supplies and Services,348037,Subsistence E348,08-Apr-2021,000009480197375,CROXDALE INN,5812,Subsistence,180.00,0.00,180.00
Neighbourhoods and Climate Change,Environmental Services,011060,C&G - Hardwick Park Catering,Supplies and Services,324117,Provisions E324,08-Apr-2021,000009480197563,BATLEYS PERTH,5300,Catering costs - provisions,420.78,70.13,350.65
Neighbourhoods and Climate Change,Environmental Services,011060,C&G - Hardwick Park Catering,Supplies and Services,324117,Provisions E324,08-Apr-2021,000009480197563 - 1,BATLEYS PERTH,5300,Catering costs - provisions,119.31,,119.31
Neighbourhoods and Climate Change,Environmental Services,011060,C&G - Hardwick Park Catering,Supplies and Services,324117,Provisions E324,08-Apr-2021,000009480197581,BATLEYS PERTH,5300,Catering costs - provisions,11.28,1.88,9.40
Neighbourhoods and Climate Change,Environmental Services,011060,C&G - Hardwick Park Catering,Supplies and Services,324117,Provisions E324,08-Apr-2021,000009480197581 - 1,BATLEYS PERTH,5300,Catering costs - provisions,111.41,,111.41
"Regeneration, Economy and Growth",Corporate Property and Land,030691,Catering - Durham Dales Centre,Supplies and Services,324117,Provisions E324,08-Apr-2021,000009480197847,BATLEYS PERTH,5300,Catering costs - provisions,251.22,41.87,209.35
"Regeneration, Economy and Growth",Corporate Property and Land,030691,Catering - Durham Dales Centre,Supplies and Services,324117,Provisions E324,08-Apr-2021,000009480197847 - 1,BATLEYS PERTH,5300,Catering costs - provisions,82.49,,82.49
Resources BK0010,Procurement Sales & Business Services,065503,Business Support - Spectrum,Supplies and Services,308011,Furniture,08-Apr-2021,000009480197989,IKEA LTD SHOP ONLINE,5712,Furniture repair and replacement,449.00,0.00,449.00
"Regeneration, Economy and Growth",Corporate Property and Land,021235,Catering - Wharton Park,Supplies and Services,324117,Provisions E324,08-Apr-2021,000009480198349,BATLEYS PERTH,5300,Catering costs - provisions,104.40,17.40,87.00
"Regeneration, Economy and Growth",Corporate Property and Land,021235,Catering - Wharton Park,Supplies and Services,324117,Provisions E324,08-Apr-2021,000009480198349 - 1,BATLEYS PERTH,5300,Catering costs - provisions,22.57,,22.57
Children and Young Peoples Services,Head of Childrens Social Care,085333,Coxhoe Satelite Home,Supplies and Services,328041,Clothing uniforms and laundry E328,08-Apr-2021,000009480198501,ARGOS LTD,5310,Clothing uniforms and laundry,17.99,0.00,17.99
Resources BK0010,Digital and Customer Services,065481,Technical Services 065481,Supplies and Services,372009,Subscriptions E372,09-Apr-2021,000009476304365,ISO/CS,2741,Subscriptions 372009,10.09,0.00,10.09
"Regeneration, Economy and Growth",Business Durham CL0850,030689,Inward Investment and Aftercare,Supplies and Services,304999,Equipment and Materials,09-Apr-2021,000009480196843,MAILCHIMP MONTHLY,5968,Misc equipment tools and materials,76.97,0.00,76.97
Children and Young Peoples Services,Head of Early Help Inclusion & Vulnerable Children.,071489,Winter Family Fund,Supplies and Services,364301,Grants to Voluntary Organisations,09-Apr-2021,000009480196875,ASDA GEORGE COM LEEDS,5411,Hardship,296.41,0.00,296.41
Children and Young Peoples Services,Head of Early Help Inclusion & Vulnerable Children.,071489,Winter Family Fund,Supplies and Services,364301,Grants to Voluntary Organisations,09-Apr-2021,000009480196879,ASDA GEORGE COM LEEDS,5411,Hardship,81.50,0.00,81.50
Children and Young Peoples Services,Head of Early Help Inclusion & Vulnerable Children.,071489,Winter Family Fund,Supplies and Services,364301,Grants to Voluntary Organisations,09-Apr-2021,000009480196883,ASDA GEORGE COM LEEDS,5411,Hardship,41.95,0.00,41.95
Children and Young Peoples Services,Head of Early Help Inclusion & Vulnerable Children.,071489,Winter Family Fund,Supplies and Services,364301,Grants to Voluntary Organisations,09-Apr-2021,000009480196889,ASDA GEORGE COM LEEDS,5411,Hardship,249.45,0.00,249.45
Children and Young Peoples Services,Head of Education and Skills,071801,Selby Cottage Childcare Centre,Supplies and Services,324117,Provisions E324,09-Apr-2021,000009480196903,TESCO STORES 2278,5411,Catering costs - provisions,3.78,0.00,3.78
"Regeneration, Economy and Growth",Development and Housing,031576,B& B - Temp Accom,Supplies and Services,364320,Grants to Voluntary Organisations,09-Apr-2021,000009480196939,TOAST LETTINGS,7011,Accommodation assistance,455.00,0.00,455.00
"Regeneration, Economy and Growth",Development and Housing,031576,B& B - Temp Accom,Supplies and Services,364320,Grants to Voluntary Organisations,09-Apr-2021,000009480196945,CROXDALE INN,5812,Accommodation assistance,270.00,0.00,270.00
Children and Young Peoples Services,Head of Childrens Social Care,085357,LAC Bespoke Placements,Supplies and Services,352001,Conference Expenses,09-Apr-2021,000009480196959,Hotel on Booking.com,7011,Conferencesseminars fees etc,724.74,0.00,724.74
Children and Young Peoples Services,Head of Childrens Social Care,085341,High Etherley Satelite Home,Supplies and Services,324117,Provisions E324,09-Apr-2021,000009480196971,TESCO STORES 6329,5411,Catering costs - provisions,10.93,0.00,10.93
Children and Young Peoples Services,Head of Education and Skills,075021,DurhamWorks Progression and Learning,Supplies and Services,364301,Grants to Voluntary Organisations,09-Apr-2021,000009480196987,HARTLEPOOL BC,9399,Hardship,11.00,0.00,11.00
Children and Young Peoples Services,Head of Education and Skills,075021,DurhamWorks Progression and Learning,Supplies and Services,364301,Grants to Voluntary Organisations,09-Apr-2021,000009480196991,SCREWFIX DIRECT,5211,Hardship,24.97,4.16,20.81
"Regeneration, Economy and Growth",Culture Sport and Tourism,010601,Spennymoor Leisure Cr - General,Supplies and Services,304259,Equipment and Materials,09-Apr-2021,000009480196997,AMZNMktplace,5999,Equipment-purchase and rental,2.98,0.50,2.48
"Regeneration, Economy and Growth",Culture Sport and Tourism,010601,Spennymoor Leisure Cr - General,Supplies and Services,304259,Equipment and Materials,09-Apr-2021,000009480197003,AMZNMKTPLACE AMAZON.CO,5999,Equipment-purchase and rental,121.98,20.34,101.64
"Regeneration, Economy and Growth",Culture Sport and Tourism,010661,Meadowfield Leisure Centre,Supplies and Services,304259,Equipment and Materials,09-Apr-2021,000009480197009,AMZNMktplace,5999,Equipment-purchase and rental,8.99,1.50,7.49
Children and Young Peoples Services,Head of Early Help Inclusion & Vulnerable Children.,073998,TTF-Co-ordinator Grant,Transfer Payments,525033,Other,09-Apr-2021,000009480197211,ASDA GEORGE COM LEEDS,5411,Grants to individuals,2.94,0.49,2.45
Children and Young Peoples Services,Head of Early Help Inclusion & Vulnerable Children.,073998,TTF-Co-ordinator Grant,Transfer Payments,525033,Other,09-Apr-2021,000009480197211 - 1,ASDA GEORGE COM LEEDS,5411,Grants to individuals,39.01,,39.01
Children and Young Peoples Services,Head of Early Help Inclusion & Vulnerable Children.,073998,TTF-Co-ordinator Grant,Transfer Payments,525033,Other,09-Apr-2021,000009480197213,ASDA GEORGE COM LEEDS,5411,Grants to individuals,-15.00,0.00,-15.00
Children and Young Peoples Services,Head of Early Help Inclusion & Vulnerable Children.,073998,TTF-Co-ordinator Grant,Transfer Payments,525033,Other,09-Apr-2021,000009480197215,ARGOS LTD,5310,Grants to individuals,136.28,0.00,136.28
Children and Young Peoples Services,Head of Early Help Inclusion & Vulnerable Children.,073998,TTF-Co-ordinator Grant,Transfer Payments,525033,Other,09-Apr-2021,000009480197221,ARGOS LTD,5310,Grants to individuals,92.28,0.00,92.28
Children and Young Peoples Services,Head of Early Help Inclusion & Vulnerable Children.,073998,TTF-Co-ordinator Grant,Transfer Payments,525033,Other,09-Apr-2021,000009480197227,ARGOS LTD,5310,Grants to individuals,-136.28,0.00,-136.28
"Regeneration, Economy and Growth",Development and Housing,031576,B& B - Temp Accom,Supplies and Services,364320,Grants to Voluntary Organisations,09-Apr-2021,000009480197257,HI NEWCASTLE WASHI,7011,Accommodation assistance,45.72,7.62,38.10
"Regeneration, Economy and Growth",Development and Housing,031576,B& B - Temp Accom,Supplies and Services,364320,Grants to Voluntary Organisations,09-Apr-2021,000009480197257 - 1,HI NEWCASTLE WASHI,7011,Accommodation assistance,114.28,,114.28
Children and Young Peoples Services,Head of Childrens Social Care,085352,New Childrens Home (previously Tow Law),Supplies and Services,324117,Provisions E324,09-Apr-2021,000009480197265,ASDA GROCERIES ONLINE,5411,Catering costs - provisions,182.21,0.00,182.21
Resources BK0010,Digital and Customer Services,065481,Technical Services 065481,Supplies and Services,372009,Subscriptions E372,09-Apr-2021,000009480197271,NOMINET UK,7392,Subscriptions 372009,23.40,3.90,19.50
Resources BK0010,Digital and Customer Services,065481,Technical Services 065481,Supplies and Services,372009,Subscriptions E372,09-Apr-2021,000009480197277,NOMINET UK,7392,Subscriptions 372009,28.08,4.68,23.40
Children and Young Peoples Services,Head of Childrens Social Care,085342,16 Hickstead Rise (previously 9 Cedar Ave),Supplies and Services,348037,Subsistence E348,09-Apr-2021,000009480197287,Pizza Go,5812,Subsistence,17.92,0.00,17.92
Children and Young Peoples Services,Head of Education and Skills,071732,Dean Bank Childcare,Supplies and Services,304259,Equipment and Materials,09-Apr-2021,000009480197309,Amazon Music M44850ZD4,5735,Equipment-purchase and rental,14.99,0.00,14.99
Neighbourhoods and Climate Change,Environmental Services,026591,C&G - Hardwick Park,Supplies and Services,304337,Equipment and Materials,09-Apr-2021,000009480197351,WWW.KEYCRAFTUK.COM,5945,Consumables/items for resale,594.79,0.00,594.79
"Regeneration, Economy and Growth",Development and Housing,031500,Housing Solutions - Core,Supplies and Services,352001,Conference Expenses,09-Apr-2021,000009480197377,THE HONEST LAWYER,7011,Conferencesseminars fees etc,239.85,0.00,239.85
Children and Young Peoples Services,Head of Childrens Social Care,085332,Middlestone Moor CU,Supplies and Services,304999,Equipment and Materials,09-Apr-2021,000009480197393,Amazon Prime M43YH6NA4,5968,Misc equipment tools and materials,7.99,0.00,7.99
"Regeneration, Economy and Growth",Development and Housing,031576,B& B - Temp Accom,Supplies and Services,352001,Conference Expenses,09-Apr-2021,000009480197461,HI NEWCASTLE WASHI,7011,Conferencesseminars fees etc,128.58,21.43,107.15
"Regeneration, Economy and Growth",Development and Housing,031576,B& B - Temp Accom,Supplies and Services,352001,Conference Expenses,09-Apr-2021,000009480197461 - 1,HI NEWCASTLE WASHI,7011,Conferencesseminars fees etc,321.42,,321.42
"Regeneration, Economy and Growth",Development and Housing,031576,B& B - Temp Accom,Supplies and Services,352001,Conference Expenses,09-Apr-2021,000009480197467,HI NEWCASTLE WASHI,7011,Conferencesseminars fees etc,128.58,21.43,107.15
"Regeneration, Economy and Growth",Development and Housing,031576,B& B - Temp Accom,Supplies and Services,352001,Conference Expenses,09-Apr-2021,000009480197467 - 1,HI NEWCASTLE WASHI,7011,Conferencesseminars fees etc,321.42,,321.42
"Regeneration, Economy and Growth",Development and Housing,031576,B& B - Temp Accom,Supplies and Services,352001,Conference Expenses,09-Apr-2021,000009480197473,HI NEWCASTLE WASHI,7011,Conferencesseminars fees etc,17.16,2.86,14.30
"Regeneration, Economy and Growth",Development and Housing,031576,B& B - Temp Accom,Supplies and Services,352001,Conference Expenses,09-Apr-2021,000009480197473 - 1,HI NEWCASTLE WASHI,7011,Conferencesseminars fees etc,42.84,,42.84
"Regeneration, Economy and Growth",Development and Housing,031576,B& B - Temp Accom,Employees,040149,Recruitment Instruction and Training,09-Apr-2021,000009480197477,PREMIER INN,3811,Training-all costs,40.02,6.67,33.35
"Regeneration, Economy and Growth",Development and Housing,031576,B& B - Temp Accom,Employees,040149,Recruitment Instruction and Training,09-Apr-2021,000009480197477 - 1,PREMIER INN,3811,Training-all costs,99.98,,99.98
"Regeneration, Economy and Growth",Development and Housing,031576,B& B - Temp Accom,Supplies and Services,352001,Conference Expenses,09-Apr-2021,000009480197495,HI NEWCASTLE WASHI,7011,Conferencesseminars fees etc,450.00,0.00,450.00
"Regeneration, Economy and Growth",Development and Housing,031576,B& B - Temp Accom,Supplies and Services,352001,Conference Expenses,09-Apr-2021,000009480197505,HI NEWCASTLE WASHI,7011,Conferencesseminars fees etc,450.00,0.00,450.00
"Regeneration, Economy and Growth",Development and Housing,031576,B& B - Temp Accom,Supplies and Services,352001,Conference Expenses,09-Apr-2021,000009480197511,HI NEWCASTLE WASHI,7011,Conferencesseminars fees etc,100.00,0.00,100.00
Neighbourhoods and Climate Change,Environmental Services,010367,C&G - South Grounds Maintenance,Supplies and Services,304403,Equipment and Materials,09-Apr-2021,000009480197551,MAXWELLS DIY,5231,Other consumables,30.00,0.00,30.00
Neighbourhoods and Climate Change,Environmental Services,011060,C&G - Hardwick Park Catering,Premises,145009,Cleaning and Domestic Supplies,09-Apr-2021,000009480197589,ALLIANCE DISPOSABLES L,2842,Other cleaning and domestic costs,95.81,15.97,79.84
Neighbourhoods and Climate Change,Environmental Services,011060,C&G - Hardwick Park Catering,Supplies and Services,324117,Provisions E324,09-Apr-2021,000009480197599,JR HOLLAND FOODSERVICE,5499,Catering costs - provisions,38.64,0.00,38.64
Neighbourhoods and Climate Change,Environmental Services,010919,C&G - Countryside Site Management,Supplies and Services,304259,Equipment and Materials,09-Apr-2021,000009480197613,AMZNMKTPLACE AMAZON.CO,5999,Equipment-purchase and rental,8.99,1.50,7.49
"Regeneration, Economy and Growth",Development and Housing,031576,B& B - Temp Accom,Supplies and Services,364320,Grants to Voluntary Organisations,09-Apr-2021,000009480197619,HI NEWCASTLE WASHI,7011,Accommodation assistance,80.00,0.00,80.00
"Regeneration, Economy and Growth",Development and Housing,031578,Client Travel Reimbursements,Transport,235073,Public Transport,09-Apr-2021,000009480197627,BLUE LINE TAXIS,4121,Travel-clients/students/children,18.00,0.00,18.00
"Regeneration, Economy and Growth",Development and Housing,031576,B& B - Temp Accom,Supplies and Services,364320,Grants to Voluntary Organisations,09-Apr-2021,000009480197665,TOAST LETTINGS,7011,Accommodation assistance,420.00,0.00,420.00
"Regeneration, Economy and Growth",Development and Housing,031576,B& B - Temp Accom,Supplies and Services,364320,Grants to Voluntary Organisations,09-Apr-2021,000009480197673,TOAST LETTINGS,7011,Accommodation assistance,420.00,0.00,420.00
"Regeneration, Economy and Growth",Development and Housing,031576,B& B - Temp Accom,Supplies and Services,364320,Grants to Voluntary Organisations,09-Apr-2021,000009480197679,TOAST LETTINGS,7011,Accommodation assistance,420.00,0.00,420.00
"Regeneration, Economy and Growth",Development and Housing,031576,B& B - Temp Accom,Supplies and Services,364320,Grants to Voluntary Organisations,09-Apr-2021,000009480197687,TOAST LETTINGS,7011,Accommodation assistance,420.00,0.00,420.00
Neighbourhoods and Climate Change,Environmental Services,010367,C&G - South Grounds Maintenance,Supplies and Services,304999,Equipment and Materials,09-Apr-2021,000009480197795,Snowballs,5251,Misc equipment tools and materials,43.78,0.00,43.78
"Regeneration, Economy and Growth",Corporate Property and Land,030691,Catering - Durham Dales Centre,Supplies and Services,324117,Provisions E324,09-Apr-2021,000009480197855,JR HOLLAND FOODSERVICE,5499,Catering costs - provisions,28.03,0.00,28.03
"Regeneration, Economy and Growth",Development and Housing,031576,B& B - Temp Accom,Supplies and Services,364320,Grants to Voluntary Organisations,09-Apr-2021,000009480197905,THE HONEST LAWYER,7011,Accommodation assistance,400.00,0.00,400.00
Adult and Health Services,Head of Adults,055643,Hawthorn House LD Respite Unit,Supplies and Services,324117,Provisions E324,09-Apr-2021,000009480197913,JR HOLLAND FOODSERVICE,5499,Catering costs - provisions,18.59,0.00,18.59
Adult and Health Services,Head of Adults,055643,Hawthorn House LD Respite Unit,Supplies and Services,324117,Provisions E324,09-Apr-2021,000009480197921,JR HOLLAND FOODSERVICE,5499,Catering costs - provisions,19.38,0.00,19.38
Children and Young Peoples Services,Head of Childrens Social Care,085363,LAC & Permanence Team 3,Supplies and Services,340001,Postages E340,09-Apr-2021,000009480197939,POST OFFICE COUNTER,9402,Postages,2.69,0.00,2.69
Children and Young Peoples Services,Head of Early Help Inclusion & Vulnerable Children.,088102,Consett & Stanley 0-19 Targeted Family Support,Supplies and Services,384302,Miscellaneous Expenses,09-Apr-2021,000009480197945,AMZNMktplace,5999,Activity expenses,13.98,2.34,11.64
Children and Young Peoples Services,Head of Childrens Social Care,085363,LAC & Permanence Team 3,Supplies and Services,338045,Services,09-Apr-2021,000009480197951,STOCKTON BOROUGH COUNC,9399,Legal expenses 338045,22.00,0.00,22.00
Children and Young Peoples Services,Head of Early Help Inclusion & Vulnerable Children.,071489,Winter Family Fund,Supplies and Services,364301,Grants to Voluntary Organisations,09-Apr-2021,000009480197997,AMZNMKTPLACE AMAZON.CO,5999,Hardship,23.49,3.92,19.57
Children and Young Peoples Services,Head of Early Help Inclusion & Vulnerable Children.,088110,Easington & Peterlee 0-19 Targeted Family Support,Supplies and Services,364301,Grants to Voluntary Organisations,09-Apr-2021,000009480198001,SAINSBURYS (2303),5411,Hardship,24.50,0.00,24.50
Adult and Health Services,Head of Adults,055301,Stanley Pathways,Supplies and Services,324117,Provisions E324,09-Apr-2021,000009480198019,LIDL GB DURHAM,5411,Catering costs - provisions,13.03,0.00,13.03
"Regeneration, Economy and Growth",Development and Housing,031576,B& B - Temp Accom,Supplies and Services,364320,Grants to Voluntary Organisations,09-Apr-2021,000009480198073,HI NEWCASTLE WASHI,7011,Accommodation assistance,190.00,0.00,190.00
"Regeneration, Economy and Growth",Development and Housing,031576,B& B - Temp Accom,Supplies and Services,364320,Grants to Voluntary Organisations,09-Apr-2021,000009480198081,HI NEWCASTLE WASHI,7011,Accommodation assistance,400.00,0.00,400.00
"Regeneration, Economy and Growth",Development and Housing,031576,B& B - Temp Accom,Supplies and Services,364320,Grants to Voluntary Organisations,09-Apr-2021,000009480198089,HI NEWCASTLE WASHI,7011,Accommodation assistance,450.00,0.00,450.00
"Regeneration, Economy and Growth",Development and Housing,031576,B& B - Temp Accom,Supplies and Services,364320,Grants to Voluntary Organisations,09-Apr-2021,000009480198093,HI NEWCASTLE WASHI,7011,Accommodation assistance,100.00,0.00,100.00
"Regeneration, Economy and Growth",Development and Housing,031576,B& B - Temp Accom,Supplies and Services,364320,Grants to Voluntary Organisations,09-Apr-2021,000009480198095,HI NEWCASTLE WASHI,7011,Accommodation assistance,400.00,0.00,400.00
"Regeneration, Economy and Growth",Development and Housing,031576,B& B - Temp Accom,Supplies and Services,364320,Grants to Voluntary Organisations,09-Apr-2021,000009480198103,HI NEWCASTLE WASHI,7011,Accommodation assistance,450.00,0.00,450.00
"Regeneration, Economy and Growth",Development and Housing,031576,B& B - Temp Accom,Supplies and Services,364320,Grants to Voluntary Organisations,09-Apr-2021,000009480198109,HI NEWCASTLE WASHI,7011,Accommodation assistance,450.00,0.00,450.00
"Regeneration, Economy and Growth",Development and Housing,031576,B& B - Temp Accom,Supplies and Services,364320,Grants to Voluntary Organisations,09-Apr-2021,000009480198115,HI NEWCASTLE WASHI,7011,Accommodation assistance,450.00,0.00,450.00
"Regeneration, Economy and Growth",Development and Housing,031576,B& B - Temp Accom,Supplies and Services,364320,Grants to Voluntary Organisations,09-Apr-2021,000009480198121,HI NEWCASTLE WASHI,7011,Accommodation assistance,170.00,0.00,170.00
Children and Young Peoples Services,Head of Childrens Social Care,085351,Framwellgate Moor CU,Supplies and Services,384999,Miscellaneous Expenses,09-Apr-2021,000009480198165,Amazon.co.uk M48IV2NQ4,5969,Other expenses,9.20,1.53,7.67
Children and Young Peoples Services,Head of Childrens Social Care,085351,Framwellgate Moor CU,Transport,215995,Running Costs of Vehicles,09-Apr-2021,000009480198183,JET WHEATLEY HILL,5541,Vehicle running expenses,72.40,0.00,72.40
Children and Young Peoples Services,Head of Education and Skills,071802,Louisa Cent Nursery,Supplies and Services,324117,Provisions E324,09-Apr-2021,000009480198197,ASDA GROCERIES ONLINE,5411,Catering costs - provisions,180.49,0.00,180.49
Children and Young Peoples Services,Head of Education and Skills,071802,Louisa Cent Nursery,Supplies and Services,324117,Provisions E324,09-Apr-2021,000009480198203,ASDA GROCERIES ONLINE,5411,Catering costs - provisions,-2.85,0.00,-2.85
Children and Young Peoples Services,Head of Childrens Social Care,085332,Middlestone Moor CU,Supplies and Services,324117,Provisions E324,09-Apr-2021,000009480198251,ASDA SUPERSTORE 4987,5411,Catering costs - provisions,34.46,0.00,34.46
Neighbourhoods and Climate Change,Environmental Services,031238,North Pennines - Tees Swale,Supplies and Services,332047,Printing Stationery and Gen Off Exps,09-Apr-2021,000009480198275,PAYPAL BUMBLEBEECO,8641,Stationery,41.00,0.00,41.00
Adult and Health Services,Head of Adults,055310,Positive Journeys (Tudhoe),Supplies and Services,324117,Provisions E324,09-Apr-2021,000009480198313,WILKO RETAIL LIMITED,5399,Catering costs - provisions,2.50,0.00,2.50
Adult and Health Services,Head of Adults,055310,Positive Journeys (Tudhoe),Supplies and Services,324117,Provisions E324,09-Apr-2021,000009480198319,TESCO STORES 2371,5411,Catering costs - provisions,4.32,0.00,4.32
"Regeneration, Economy and Growth",Corporate Property and Land,021235,Catering - Wharton Park,Premises,145009,Cleaning and Domestic Supplies,09-Apr-2021,000009480198357,ALLIANCE DISPOSABLES L,2842,Other cleaning and domestic costs,72.79,12.13,60.66
"Regeneration, Economy and Growth",Corporate Property and Land,021235,Catering - Wharton Park,Supplies and Services,324117,Provisions E324,09-Apr-2021,000009480198365,JR HOLLAND FOODSERVICE,5499,Catering costs - provisions,17.48,0.00,17.48
Children and Young Peoples Services,Head of Childrens Social Care,085332,Middlestone Moor CU,Supplies and Services,324117,Provisions E324,09-Apr-2021,000009480198457,SAINSBURYS SACAT 0776,5411,Catering costs - provisions,27.00,0.00,27.00
Neighbourhoods and Climate Change,Environmental Services,011060,C&G - Hardwick Park Catering,Supplies and Services,324117,Provisions E324,09-Apr-2021,000009484817309,BATLEYS PERTH,5300,Catering costs - provisions,175.86,29.31,146.55
Neighbourhoods and Climate Change,Environmental Services,011060,C&G - Hardwick Park Catering,Supplies and Services,324117,Provisions E324,09-Apr-2021,000009484817309 - 1,BATLEYS PERTH,5300,Catering costs - provisions,34.85,,34.85
Adult and Health Services,Head of Adults,055643,Hawthorn House LD Respite Unit,Supplies and Services,324117,Provisions E324,09-Apr-2021,000009484817799,BATLEYS PERTH,5300,Catering costs - provisions,13.26,2.21,11.05
Adult and Health Services,Head of Adults,055643,Hawthorn House LD Respite Unit,Supplies and Services,324117,Provisions E324,09-Apr-2021,000009484817799 - 1,BATLEYS PERTH,5300,Catering costs - provisions,111.68,,111.68
Adult and Health Services,Head of Adults,055643,Hawthorn House LD Respite Unit,Supplies and Services,324117,Provisions E324,09-Apr-2021,000009484817805,BATLEYS PERTH,5300,Catering costs - provisions,8.04,0.00,8.04
"Regeneration, Economy and Growth",Business Durham CL0850,030689,Inward Investment and Aftercare,Third Party Payments,430100,Rendered by Private Contractors,10-Apr-2021,000009480196849,BLS monday.com,7399,Payments to sub-contractors,148.80,0.00,148.80
Children and Young Peoples Services,Head of Early Help Inclusion & Vulnerable Children.,071489,Winter Family Fund,Supplies and Services,364301,Grants to Voluntary Organisations,10-Apr-2021,000009480196895,ASDA GROCERIES ONLINE,5411,Hardship,51.51,0.00,51.51
Children and Young Peoples Services,Head of Early Help Inclusion & Vulnerable Children.,071489,Winter Family Fund,Supplies and Services,364301,Grants to Voluntary Organisations,10-Apr-2021,000009480196901,ASDA GROCERIES ONLINE,5411,Hardship,-0.01,0.00,-0.01
Adult and Health Services,Commissioning inc Supporting People,052103,Strat.Comm. Manager OP / PDSI 052103,Supplies and Services,384999,Miscellaneous Expenses,10-Apr-2021,000009480196921,Amazon.co.uk M45IM7394,5969,Other expenses,47.60,0.00,47.60
Children and Young Peoples Services,Head of Childrens Social Care,085357,LAC Bespoke Placements,Supplies and Services,352001,Conference Expenses,10-Apr-2021,000009480196967,Hotel on Booking.com,7011,Conferencesseminars fees etc,-488.80,0.00,-488.80
Children and Young Peoples Services,Head of Education and Skills,071732,Dean Bank Childcare,Supplies and Services,324117,Provisions E324,10-Apr-2021,000009480197315,SAINSBURYS SACAT (2303,5411,Catering costs - provisions,26.21,0.00,26.21
Children and Young Peoples Services,Head of Childrens Social Care,085334,West Rainton Satelite Home,Supplies and Services,304403,Equipment and Materials,10-Apr-2021,000009480197329,AMZNMktplace,5999,Other consumables,10.59,0.00,10.59
Children and Young Peoples Services,Head of Childrens Social Care,085332,Middlestone Moor CU,Supplies and Services,324117,Provisions E324,10-Apr-2021,000009480197397,IZ Thames fruit and v,5499,Catering costs - provisions,9.00,0.00,9.00
Children and Young Peoples Services,Head of Childrens Social Care,085332,Middlestone Moor CU,Supplies and Services,324117,Provisions E324,10-Apr-2021,000009480197401,TESCO STORES 2916,5411,Catering costs - provisions,25.60,0.00,25.60
Children and Young Peoples Services,Head of Childrens Social Care,085332,Middlestone Moor CU,Supplies and Services,384999,Miscellaneous Expenses,10-Apr-2021,000009480197409,TPS ONLINE UK ECOM,5977,Other expenses,67.15,0.00,67.15
Children and Young Peoples Services,Head of Early Help Inclusion & Vulnerable Children.,085956,Lumley,Supplies and Services,324117,Provisions E324,10-Apr-2021,000009480197519,TESCO STORES 6329,5411,Catering costs - provisions,53.57,0.00,53.57
Adult and Health Services,Head of Adults,055643,Hawthorn House LD Respite Unit,Supplies and Services,324117,Provisions E324,10-Apr-2021,000009480197819,SAINSBURYS SACAT 0776,5411,Catering costs - provisions,10.73,0.00,10.73
Children and Young Peoples Services,Head of Education and Skills,071802,Louisa Cent Nursery,Supplies and Services,324117,Provisions E324,10-Apr-2021,000009480197833,ASDA SUPERSTORE,5411,Catering costs - provisions,3.90,0.00,3.90
Children and Young Peoples Services,Head of Childrens Social Care,085332,Middlestone Moor CU,Supplies and Services,324117,Provisions E324,10-Apr-2021,000009480197865,CO-OP GROUP 310016,5411,Catering costs - provisions,4.45,0.00,4.45
Children and Young Peoples Services,Head of Childrens Social Care,085332,Middlestone Moor CU,Supplies and Services,324117,Provisions E324,10-Apr-2021,000009480197871,ASDA SUPERSTORE 4987,5411,Catering costs - provisions,42.94,0.00,42.94
Children and Young Peoples Services,Head of Childrens Social Care,085351,Framwellgate Moor CU,Supplies and Services,372009,Subscriptions E372,10-Apr-2021,000009480198173,NETFLIX.COM,4899,Subscriptions 372009,13.99,0.00,13.99
Children and Young Peoples Services,Head of Childrens Social Care,085351,Framwellgate Moor CU,Supplies and Services,348037,Subsistence E348,10-Apr-2021,000009480198191,Just Eat,5814,Subsistence,32.10,0.00,32.10
Children and Young Peoples Services,Head of Childrens Social Care,085332,Middlestone Moor CU,Supplies and Services,304999,Equipment and Materials,10-Apr-2021,000009480198255,GoGroopie,7278,Misc equipment tools and materials,46.99,0.00,46.99
Children and Young Peoples Services,Head of Childrens Social Care,085332,Middlestone Moor CU,Supplies and Services,304999,Equipment and Materials,10-Apr-2021,000009480198263,GoGroopie,7278,Misc equipment tools and materials,7.99,0.00,7.99
Children and Young Peoples Services,Head of Childrens Social Care,085341,High Etherley Satelite Home,Transport,235057,Public Transport,10-Apr-2021,000009480198379,ARRIVA DURHAM COUNTY L,4131,Staff travelling,7.20,0.00,7.20
Children and Young Peoples Services,Head of Childrens Social Care,085341,High Etherley Satelite Home,Supplies and Services,324117,Provisions E324,10-Apr-2021,000009480198387,WM MORRISONS STORE,5411,Catering costs - provisions,10.60,0.00,10.60
Children and Young Peoples Services,Head of Childrens Social Care,085341,High Etherley Satelite Home,Transport,235057,Public Transport,10-Apr-2021,000009480198397,BISHOP AUCKLAND SST,4112,Staff travelling,30.30,0.00,30.30
Neighbourhoods and Climate Change,Environmental Services,031200,North Pennines Core,Supplies and Services,344033,Telephones,10-Apr-2021,000009480198449,ZOOM.US 888-799-9666,4814,Telephones general-all costs,134.40,0.00,134.40
Children and Young Peoples Services,Head of Childrens Social Care,085332,Middlestone Moor CU,Supplies and Services,338099,Services,10-Apr-2021,000009480198463,PARKDEAN RESORTS H,7033,Other services,279.00,0.00,279.00
Children and Young Peoples Services,Head of Childrens Social Care,085332,Middlestone Moor CU,Supplies and Services,324117,Provisions E324,10-Apr-2021,000009480198467,WILKO RETAIL LIMITED,5399,Catering costs - provisions,21.10,0.00,21.10
Children and Young Peoples Services,Head of Childrens Social Care,085332,Middlestone Moor CU,Supplies and Services,304999,Equipment and Materials,10-Apr-2021,000009480198471,SUPERDRUG STORES PLC,5912,Misc equipment tools and materials,34.76,0.00,34.76
Children and Young Peoples Services,Head of Childrens Social Care,085341,High Etherley Satelite Home,Supplies and Services,324117,Provisions E324,11-Apr-2021,000009480196979,TESCO STORES 6329,5411,Catering costs - provisions,22.97,0.00,22.97
Children and Young Peoples Services,Head of Childrens Social Care,085342,16 Hickstead Rise (previously 9 Cedar Ave),Supplies and Services,324117,Provisions E324,11-Apr-2021,000009480197291,TESCO STORES 2916,5411,Catering costs - provisions,50.76,0.00,50.76
Children and Young Peoples Services,Head of Childrens Social Care,085342,16 Hickstead Rise (previously 9 Cedar Ave),Supplies and Services,348037,Subsistence E348,11-Apr-2021,000009480197295,Pizza Go,5812,Subsistence,22.10,0.00,22.10
Children and Young Peoples Services,Head of Childrens Social Care,085334,West Rainton Satelite Home,Supplies and Services,304221,Equipment and Materials,11-Apr-2021,000009480197337,SCREWFIX DIRECT,5211,Direct materials,9.79,0.00,9.79
Children and Young Peoples Services,Head of Early Help Inclusion & Vulnerable Children.,085954,Walworth,Supplies and Services,324117,Provisions E324,11-Apr-2021,000009480197527,TESCO STORES 6329,5411,Catering costs - provisions,72.80,0.00,72.80
Children and Young Peoples Services,Head of Early Help Inclusion & Vulnerable Children.,088109,Spennymoor & Shildon 0-19 Community Family Hub,Supplies and Services,304259,Equipment and Materials,11-Apr-2021,000009480197787,Amazon.co.uk M483O8T84,5969,Equipment-purchase and rental,191.70,0.00,191.70
Children and Young Peoples Services,Head of Early Help Inclusion & Vulnerable Children.,088110,Easington & Peterlee 0-19 Targeted Family Support,Supplies and Services,304259,Equipment and Materials,11-Apr-2021,000009480198005,Amazon.co.uk M43ES5JY4,5969,Equipment-purchase and rental,25.56,0.00,25.56
Children and Young Peoples Services,Head of Early Help Inclusion & Vulnerable Children.,085962,Aycliffe Secure - Durham,Supplies and Services,324117,Provisions E324,11-Apr-2021,000009480198283,TESCO STORES 6329,5411,Catering costs - provisions,76.40,0.00,76.40
Adult and Health Services,Head of Adults,055309,Peterlee Pathways,Supplies and Services,304403,Equipment and Materials,11-Apr-2021,000009480198431,AMZNMKTPLACE AMAZON.CO,5999,Other consumables,20.55,3.43,17.12
Children and Young Peoples Services,Head of Childrens Social Care,085332,Middlestone Moor CU,Supplies and Services,304403,Equipment and Materials,11-Apr-2021,000009480198473,SP THE SCHOOL OUTFIT,5734,Other consumables,16.00,0.00,16.00
Children and Young Peoples Services,Head of Childrens Social Care,085332,Middlestone Moor CU,Supplies and Services,324117,Provisions E324,11-Apr-2021,000009480198477,SAINSBURYS SACAT 0776,5411,Catering costs - provisions,44.84,0.00,44.84
Children and Young Peoples Services,Head of Childrens Social Care,085332,Middlestone Moor CU,Supplies and Services,324117,Provisions E324,11-Apr-2021,000009480198483,CO-OP GROUP FOOD,5411,Catering costs - provisions,1.45,0.00,1.45
Children and Young Peoples Services,Head of Childrens Social Care,085332,Middlestone Moor CU,Supplies and Services,324117,Provisions E324,11-Apr-2021,000009480198489,CO-OP GROUP FOOD,5411,Catering costs - provisions,0.69,0.00,0.69
Adult and Health Services,Head of Adults,055309,Peterlee Pathways,Supplies and Services,304999,Equipment and Materials,11-Apr-2021,000009480198519,HOME BARGAINS,5251,Misc equipment tools and materials,3.95,0.00,3.95
"Regeneration, Economy and Growth",Business Durham CL0850,030689,Inward Investment and Aftercare,Supplies and Services,304999,Equipment and Materials,12-Apr-2021,000009480196853,MAILCHIMP MONTHLY,5968,Misc equipment tools and materials,2.12,0.00,2.12
Children and Young Peoples Services,Head of Childrens Social Care,085332,Middlestone Moor CU,Supplies and Services,348037,Subsistence E348,12-Apr-2021,000009480198269,Just Eat,5814,Subsistence,60.50,0.00,60.50
Children and Young Peoples Services,Head of Childrens Social Care,085341,High Etherley Satelite Home,Supplies and Services,324117,Provisions E324,12-Apr-2021,000009484816431,TESCO STORES 6329,5411,Catering costs - provisions,160.51,0.00,160.51
Children and Young Peoples Services,Head of Childrens Social Care,085341,High Etherley Satelite Home,Supplies and Services,304999,Equipment and Materials,12-Apr-2021,000009484816443,BOOTS 6023,5912,Misc equipment tools and materials,7.99,0.00,7.99
Resources BK0010,Digital and Customer Services,065487,ICT Telephony Recharges,Supplies and Services,344033,Telephones,12-Apr-2021,000009484816457,AMZNMktplace,5999,Telephones general-all costs,174.60,29.10,145.50
Resources BK0010,Digital and Customer Services,065487,ICT Telephony Recharges,Supplies and Services,344033,Telephones,12-Apr-2021,000009484816457 - 1,AMZNMktplace,5999,Telephones general-all costs,0.60,,0.60
Children and Young Peoples Services,Head of Childrens Social Care - Excluded Services,085001,Durham Safeguarding Childrens Partnership,Supplies and Services,304259,Equipment and Materials,12-Apr-2021,000009484816463,WWW.ICO.ORG.UK,9399,Equipment-purchase and rental,40.00,0.00,40.00
"Regeneration, Economy and Growth",Development and Housing,031576,B& B - Temp Accom,Supplies and Services,364320,Grants to Voluntary Organisations,12-Apr-2021,000009484816499,HI NEWCASTLE WASHI,7011,Accommodation assistance,160.00,0.00,160.00
"Regeneration, Economy and Growth",Development and Housing,031576,B& B - Temp Accom,Supplies and Services,364320,Grants to Voluntary Organisations,12-Apr-2021,000009484816507,HI NEWCASTLE WASHI,7011,Accommodation assistance,450.00,0.00,450.00
Children and Young Peoples Services,Head of Childrens Social Care,085342,16 Hickstead Rise (previously 9 Cedar Ave),Supplies and Services,324117,Provisions E324,12-Apr-2021,000009484816575,TESCO STORES 2916,5411,Catering costs - provisions,7.29,0.00,7.29
Children and Young Peoples Services,Head of Childrens Social Care,085342,16 Hickstead Rise (previously 9 Cedar Ave),Supplies and Services,324117,Provisions E324,12-Apr-2021,000009484816583,TESCO STORES 2916,5411,Catering costs - provisions,65.38,0.00,65.38
Children and Young Peoples Services,Head of Childrens Social Care,085332,Middlestone Moor CU,Supplies and Services,324117,Provisions E324,12-Apr-2021,000009484816603,ALDI 59 774,5411,Catering costs - provisions,3.09,0.00,3.09
Children and Young Peoples Services,Head of Childrens Social Care,085332,Middlestone Moor CU,Supplies and Services,324117,Provisions E324,12-Apr-2021,000009484816611,ALDI 59 774,5411,Catering costs - provisions,59.21,0.00,59.21
Children and Young Peoples Services,Head of Childrens Social Care,085341,High Etherley Satelite Home,Supplies and Services,348037,Subsistence E348,12-Apr-2021,000009484816695,DOMINOS PIZZA,5812,Subsistence,43.93,0.00,43.93
Children and Young Peoples Services,Head of Childrens Social Care,085341,High Etherley Satelite Home,Supplies and Services,304259,Equipment and Materials,12-Apr-2021,000009484816701,JD SPORTS PLC,5941,Equipment-purchase and rental,85.10,0.00,85.10
"Regeneration, Economy and Growth",Development and Housing,030776,LINKCD Flexible Fund,Employees,040149,Recruitment Instruction and Training,12-Apr-2021,000009484816777,PAYPAL NEPACS,8398,Training-all costs,20.00,0.00,20.00
"Regeneration, Economy and Growth",Development and Housing,030776,LINKCD Flexible Fund,Employees,040149,Recruitment Instruction and Training,12-Apr-2021,000009484816783,PAYPAL NEPACS,8398,Training-all costs,20.00,0.00,20.00
"Regeneration, Economy and Growth",Development and Housing,030544,Rural Employability - Client Engagement,Employees,040149,Recruitment Instruction and Training,12-Apr-2021,000009484816891,PAYPAL NEPACS,8398,Training-all costs,20.00,0.00,20.00
"Regeneration, Economy and Growth",Development and Housing,031578,Client Travel Reimbursements,Transport,235073,Public Transport,12-Apr-2021,000009484816901,BLUE LINE TAXIS,4121,Travel-clients/students/children,26.70,0.00,26.70
Children and Young Peoples Services,Head of Early Help Inclusion & Vulnerable Children.,079599,Psychological-HQ,Supplies and Services,338099,Services,12-Apr-2021,000009484816923,PAYPAL NARRATIVETH,7277,Other services,39.56,0.00,39.56
Children and Young Peoples Services,Head of Early Help Inclusion & Vulnerable Children.,073998,TTF-Co-ordinator Grant,Transfer Payments,525033,Other,12-Apr-2021,000009484816979,ASDA GEORGE COM LEEDS,5411,Grants to individuals,2.94,0.49,2.45
Children and Young Peoples Services,Head of Early Help Inclusion & Vulnerable Children.,073998,TTF-Co-ordinator Grant,Transfer Payments,525033,Other,12-Apr-2021,000009484816979 - 1,ASDA GEORGE COM LEEDS,5411,Grants to individuals,38.01,,38.01
Children and Young Peoples Services,Head of Early Help Inclusion & Vulnerable Children.,073998,TTF-Co-ordinator Grant,Transfer Payments,525033,Other,12-Apr-2021,000009484816993,ARGOS LTD,5310,Grants to individuals,56.95,0.00,56.95
Neighbourhoods and Climate Change,Environmental Services,010900,Fleet - Meadowfield Fleet,Transport,215013,Running Costs of Vehicles,12-Apr-2021,000009484817061,DVLA VEHICLE TAX,9311,Vehicle Excise Duty (VED),157.50,0.00,157.50
Neighbourhoods and Climate Change,Environmental Services,010864,Fleet - Hackworth Road Fleet,Transport,215013,Running Costs of Vehicles,12-Apr-2021,000009484817067,DVLA VEHICLE TAX,9311,Vehicle Excise Duty (VED),157.50,0.00,157.50
Children and Young Peoples Services,Head of Early Help Inclusion & Vulnerable Children.,088109,Spennymoor & Shildon 0-19 Community Family Hub,Supplies and Services,384199,Miscellaneous Expenses,12-Apr-2021,000009484817103,WWW.IAIM.ORG.UK,5734,Other hired and contracted services,25.00,0.00,25.00
Children and Young Peoples Services,Head of Education and Skills,071732,Dean Bank Childcare,Supplies and Services,324117,Provisions E324,12-Apr-2021,000009484817157,ASDA GROCERIES ONLINE,5411,Catering costs - provisions,49.57,0.00,49.57
Children and Young Peoples Services,Head of Education and Skills,071732,Dean Bank Childcare,Supplies and Services,324117,Provisions E324,12-Apr-2021,000009484817167,ASDA GROCERIES ONLINE,5411,Catering costs - provisions,0.40,0.00,0.40
"Regeneration, Economy and Growth",Culture Sport and Tourism,054967,Theatre - Technical Staffing,Supplies and Services,304221,Equipment and Materials,12-Apr-2021,000009484817171,SCREWFIX DIRECT,5211,Direct materials,59.98,0.00,59.98
"Regeneration, Economy and Growth",Development and Housing,031500,Housing Solutions - Core,Supplies and Services,352001,Conference Expenses,12-Apr-2021,000009484817203,TRAVELODGE,3615,Conferencesseminars fees etc,198.82,0.00,198.82
"Regeneration, Economy and Growth",Development and Housing,031500,Housing Solutions - Core,Supplies and Services,352001,Conference Expenses,12-Apr-2021,000009484817213,THE HONEST LAWYER,7011,Conferencesseminars fees etc,239.85,0.00,239.85
"Regeneration, Economy and Growth",Development and Housing,030771,Durham Advance Flexible Fund,Employees,040149,Recruitment Instruction and Training,12-Apr-2021,000009484817235,PAYPAL NEPACS,8398,Training-all costs,20.00,0.00,20.00
Children and Young Peoples Services,Head of Early Help Inclusion & Vulnerable Children.,085952,Secure Education,Supplies and Services,324117,Provisions E324,12-Apr-2021,000009484817277,TESCO STORES 6329,5411,Catering costs - provisions,81.68,0.00,81.68
Neighbourhoods and Climate Change,Environmental Services,011060,C&G - Hardwick Park Catering,Supplies and Services,324117,Provisions E324,12-Apr-2021,000009484817319,FREEMAN CATERING BUTCH,5422,Catering costs - provisions,39.20,0.00,39.20
Neighbourhoods and Climate Change,Environmental Services,011060,C&G - Hardwick Park Catering,Supplies and Services,324117,Provisions E324,12-Apr-2021,000009484817329,FREEMAN CATERING BUTCH,5422,Catering costs - provisions,65.36,0.00,65.36
Neighbourhoods and Climate Change,Environmental Services,011060,C&G - Hardwick Park Catering,Supplies and Services,324117,Provisions E324,12-Apr-2021,000009484817335,JR HOLLAND FOODSERVICE,5499,Catering costs - provisions,11.42,0.00,11.42
Resources BK0010,People & Talent Management,010984,Training and Development,Supplies and Services,304259,Equipment and Materials,12-Apr-2021,000009484817359,GATESHEAD COUNCIL INT,9399,Equipment-purchase and rental,320.00,0.00,320.00
"Regeneration, Economy and Growth",Development and Housing,031581,Prevention Fund,Supplies and Services,384999,Miscellaneous Expenses,12-Apr-2021,000009484817387,LBWF INTERNET,9399,Other expenses,35.00,0.00,35.00
"Regeneration, Economy and Growth",Development and Housing,031576,B& B - Temp Accom,Supplies and Services,364320,Grants to Voluntary Organisations,12-Apr-2021,000009484817395,HI NEWCASTLE WASHI,7011,Accommodation assistance,480.00,0.00,480.00
Children and Young Peoples Services,Head of Childrens Social Care,085341,High Etherley Satelite Home,Supplies and Services,328041,Clothing uniforms and laundry E328,12-Apr-2021,000009484817549,PRETTYLITTLETHING.COM,5691,Clothing uniforms and laundry,42.49,0.00,42.49
Children and Young Peoples Services,Head of Childrens Social Care,085341,High Etherley Satelite Home,Supplies and Services,324117,Provisions E324,12-Apr-2021,000009484817555,LIDL GB SPENNYMOOR,5411,Catering costs - provisions,0.69,0.00,0.69
Children and Young Peoples Services,Head of Childrens Social Care,085341,High Etherley Satelite Home,Supplies and Services,384999,Miscellaneous Expenses,12-Apr-2021,000009484817567,Amazon.co.uk M40C470W4,5969,Other expenses,23.88,0.00,23.88
Children and Young Peoples Services,Head of Childrens Social Care,085352,New Childrens Home (previously Tow Law),Supplies and Services,324117,Provisions E324,12-Apr-2021,000009484817719,SAINSBURYS 0776,5411,Catering costs - provisions,124.82,0.00,124.82
Adult and Health Services,Head of Adults,055643,Hawthorn House LD Respite Unit,Supplies and Services,324117,Provisions E324,12-Apr-2021,000009484817809,FREEMAN CATERING BUTCH,5422,Catering costs - provisions,45.97,0.00,45.97
Adult and Health Services,Head of Adults,055643,Hawthorn House LD Respite Unit,Supplies and Services,324117,Provisions E324,12-Apr-2021,000009484817815,JR HOLLAND FOODSERVICE,5499,Catering costs - provisions,15.98,0.00,15.98
Children and Young Peoples Services,Head of Early Help Inclusion & Vulnerable Children.,071489,Winter Family Fund,Supplies and Services,384700,Miscellaneous Expenses,12-Apr-2021,000009484817849,ASDA GEORGE COM LEEDS,5411,Miscellaneous grants,89.50,14.92,74.58
Resources BK0010,Digital and Customer Services,065335,School Services - Implementations,Supplies and Services,304639,Equipment and Materials,12-Apr-2021,000009484817865,AMZNMktplace,5999,Technicians-supplies,17.49,2.92,14.57
Resources BK0010,Digital and Customer Services,065335,School Services - Implementations,Supplies and Services,304639,Equipment and Materials,12-Apr-2021,000009484817871,AMZNMktplace,5999,Technicians-supplies,21.99,3.67,18.32
Resources BK0010,Digital and Customer Services,065335,School Services - Implementations,Supplies and Services,304639,Equipment and Materials,12-Apr-2021,000009484817877,ALIEXPRESS.COM aliexpr,5311,Technicians-supplies,48.67,0.00,48.67
Children and Young Peoples Services,Head of Early Help Inclusion & Vulnerable Children.,085957,Secure Management,Supplies and Services,384302,Miscellaneous Expenses,12-Apr-2021,000009484817933,Amazon MP3,5735,Activity expenses,6.86,0.00,6.86
Children and Young Peoples Services,Head of Early Help Inclusion & Vulnerable Children.,085957,Secure Management,Supplies and Services,384302,Miscellaneous Expenses,12-Apr-2021,000009484817941,Amazon MP3,5735,Activity expenses,0.98,0.00,0.98
Children and Young Peoples Services,Head of Early Help Inclusion & Vulnerable Children.,085957,Secure Management,Premises,108099,Service Repairs and Maintenance,12-Apr-2021,000009484817945,MANUTAN UK LTD,5943,General repairs 108099,226.79,37.80,188.99
Adult and Health Services,Head of Adults,052229,Countywide AMHP Team,Supplies and Services,312009,Newspapers books and periodicals E312,12-Apr-2021,000009484817979,Amazon.co.uk M48BI6E94,5969,Newspapers books and periodicals,81.78,0.00,81.78
Resources BK0010,Procurement Sales & Business Services,065503,Business Support - Spectrum,Supplies and Services,384999,Miscellaneous Expenses,12-Apr-2021,000009484817989,NEXT DIRECTORY,5965,Other expenses,79.99,0.00,79.99
"Regeneration, Economy and Growth",Development and Housing,031576,B& B - Temp Accom,Supplies and Services,364320,Grants to Voluntary Organisations,12-Apr-2021,000009484818033,HI NEWCASTLE WASHI,7011,Accommodation assistance,80.00,0.00,80.00
"Regeneration, Economy and Growth",Development and Housing,031576,B& B - Temp Accom,Supplies and Services,364320,Grants to Voluntary Organisations,12-Apr-2021,000009484818041,HI NEWCASTLE WASHI,7011,Accommodation assistance,400.00,0.00,400.00
Children and Young Peoples Services,Head of Childrens Social Care,085332,Middlestone Moor CU,Supplies and Services,328041,Clothing uniforms and laundry E328,12-Apr-2021,000009484818171,SHOE ZONE (INTERNET),5661,Clothing uniforms and laundry,69.99,0.00,69.99
Neighbourhoods and Climate Change,Environmental Services,010341,Nei.Prot - N. Wardens,Supplies and Services,304259,Equipment and Materials,12-Apr-2021,000009484818203,AMZNMktplace,5999,Equipment-purchase and rental,47.97,0.00,47.97
"Regeneration, Economy and Growth",Culture Sport and Tourism,011290,Community Testing,Supplies and Services,304403,Equipment and Materials,12-Apr-2021,000009484818235,BOOKWHEN- SOFTWARE SUB,5734,Other consumables,82.80,0.00,82.80
Adult and Health Services,Head of Adults,055310,Positive Journeys (Tudhoe),Supplies and Services,324117,Provisions E324,12-Apr-2021,000009484818243,ASDA SUPERSTORE 4987,5411,Catering costs - provisions,1.69,0.00,1.69
Children and Young Peoples Services,Head of Childrens Social Care,085341,High Etherley Satelite Home,Supplies and Services,304403,Equipment and Materials,12-Apr-2021,000009484818289,CARD FACTORY,5947,Other consumables,15.58,0.00,15.58
Children and Young Peoples Services,Head of Childrens Social Care,085341,High Etherley Satelite Home,Supplies and Services,304259,Equipment and Materials,12-Apr-2021,000009484818295,JD SPORTS PLC,5941,Equipment-purchase and rental,130.10,0.00,130.10
Children and Young Peoples Services,Head of Childrens Social Care,085333,Coxhoe Satelite Home,Supplies and Services,324117,Provisions E324,12-Apr-2021,000009484818405,B&M 681 - DURHAM,5399,Catering costs - provisions,46.30,0.00,46.30
Children and Young Peoples Services,Head of Childrens Social Care,085333,Coxhoe Satelite Home,Supplies and Services,308011,Furniture,12-Apr-2021,000009484818411,FRANKS FACTORY FLOORIN,5713,Furniture repair and replacement,"1,400.00",0.00,1400.00
Children and Young Peoples Services,Head of Childrens Social Care,085333,Coxhoe Satelite Home,Transport,215995,Running Costs of Vehicles,12-Apr-2021,000009484818419,MOUNT PLEASANT GARAGE,5541,Vehicle running expenses,270.00,0.00,270.00
Resources BK0010,Digital and Customer Services,065432,Web Development Group,Supplies and Services,342033,Computers and Communications,12-Apr-2021,000009487337689,PROGRESS SOFTWARE CORP,7372,Computer hardware,365.00,0.00,365.00
Children and Young Peoples Services,Head of Education and Skills,078554,Adult Skills-Main,Supplies and Services,304403,Equipment and Materials,12-Apr-2021,000009487338737,AMZNMKTPLACE AMAZON.CO,5999,Other consumables,31.78,5.30,26.48
Children and Young Peoples Services,Head of Early Help Inclusion & Vulnerable Children.,088103,Consett & Stanley 0-19 Community Family Hub,Supplies and Services,304403,Equipment and Materials,12-Apr-2021,000009487338921,AMZNMKTPLACE AMAZON.CO,5999,Other consumables,24.99,4.17,20.82
Resources BK0010,Procurement Sales & Business Services,065503,Business Support - Spectrum,Supplies and Services,308011,Furniture,12-Apr-2021,000009487338997,Dunelm,5712,Furniture repair and replacement,9.95,0.00,9.95
"Regeneration, Economy and Growth",Corporate Property and Land,021235,Catering - Wharton Park,Supplies and Services,324117,Provisions E324,12-Apr-2021,000009487339253,BATLEYS PERTH,5300,Catering costs - provisions,136.73,22.79,113.94
"Regeneration, Economy and Growth",Development and Housing,031500,Housing Solutions - Core,Supplies and Services,348037,Subsistence E348,12-Apr-2021,000009493686493,CROXDALE INN,5812,Subsistence,150.00,0.00,150.00
"Regeneration, Economy and Growth",Development and Housing,031500,Housing Solutions - Core,Supplies and Services,348037,Subsistence E348,12-Apr-2021,000009493686503,CROXDALE INN,5812,Subsistence,135.00,0.00,135.00
"Regeneration, Economy and Growth",Development and Housing,031500,Housing Solutions - Core,Supplies and Services,348037,Subsistence E348,12-Apr-2021,000009493686521,CROXDALE INN,5812,Subsistence,150.00,0.00,150.00
"Regeneration, Economy and Growth",Development and Housing,031576,B& B - Temp Accom,Supplies and Services,364320,Grants to Voluntary Organisations,12-Apr-2021,000009493686869,CROXDALE INN,5812,Accommodation assistance,100.00,0.00,100.00
"Regeneration, Economy and Growth",Development and Housing,031500,Housing Solutions - Core,Supplies and Services,348037,Subsistence E348,12-Apr-2021,000009493688093,CROXDALE INN,5812,Subsistence,315.00,0.00,315.00
Children and Young Peoples Services,Head of Education and Skills,071801,Selby Cottage Childcare Centre,Supplies and Services,324117,Provisions E324,13-Apr-2021,000009487337617,TESCO STORES 2371,5411,Catering costs - provisions,30.46,0.00,30.46
Resources BK0010,Digital and Customer Services,065212,Digital Durham,Supplies and Services,342053,Computers and Communications,13-Apr-2021,000009487337631,ZOOM.US 888-799-9666,4814,Computer software,119.90,0.00,119.90
Resources BK0010,Digital and Customer Services,065482,Data Centres,Supplies and Services,342053,Computers and Communications,13-Apr-2021,000009487337647,BLS POWERMAPPER,5734,Computer software,238.80,0.00,238.80
Adult and Health Services,Head of Adults,052753,Social Care Direct 052753,Supplies and Services,304403,Equipment and Materials,13-Apr-2021,000009487337661,AMZNMKTPLACE AMAZON.CO,5999,Other consumables,21.12,3.52,17.60
Resources BK0010,Legal & Democratic Services,067910,Democratic Representation 067910,Supplies and Services,342053,Computers and Communications,13-Apr-2021,000009487337665,AMZNMktplace,5999,Computer software,261.00,43.50,217.50
Resources BK0010,Digital and Customer Services,065487,ICT Telephony Recharges,Supplies and Services,344033,Telephones,13-Apr-2021,000009487337665 - 1,AMZNMktplace,5999,Telephones general-all costs,1.00,,1.00
Resources BK0010,Legal & Democratic Services,067910,Democratic Representation 067910,Supplies and Services,344033,Telephones,13-Apr-2021,000009487337675,AMZNMktplace,5999,Telephones general-all costs,130.50,21.75,108.75
Resources BK0010,Legal & Democratic Services,067910,Democratic Representation 067910,Supplies and Services,344033,Telephones,13-Apr-2021,000009487337675 - 1,AMZNMktplace,5999,Telephones general-all costs,0.50,,0.50
Resources BK0010,Legal & Democratic Services,067910,Democratic Representation 067910,Supplies and Services,344033,Telephones,13-Apr-2021,000009487337701,AMZNMktplace,5999,Telephones general-all costs,261.00,43.50,217.50
Resources BK0010,Legal & Democratic Services,067910,Democratic Representation 067910,Supplies and Services,344033,Telephones,13-Apr-2021,000009487337701 - 1,AMZNMktplace,5999,Telephones general-all costs,1.00,,1.00
"Regeneration, Economy and Growth",Development and Housing,030773,CLLD North,Supplies and Services,304259,Equipment and Materials,13-Apr-2021,000009487337787,JD SPORTS INTERNET,5941,Equipment-purchase and rental,46.99,0.00,46.99
Adult and Health Services,Head of Adults,055302,Durham Pathways,Supplies and Services,324117,Provisions E324,13-Apr-2021,000009487337815,SAINSBURYS SACAT 0776,5411,Catering costs - provisions,5.80,0.00,5.80
Adult and Health Services,Head of Adults,055302,Durham Pathways,Supplies and Services,304403,Equipment and Materials,13-Apr-2021,000009487337823,AMZNMKTPLACE AMAZON.CO,5999,Other consumables,8.57,1.43,7.14
Neighbourhoods and Climate Change,Environmental Services,010383,C&G - South Street Cleansing,Supplies and Services,304403,Equipment and Materials,13-Apr-2021,000009487337833,W E & J ROWLE,5947,Other consumables,22.96,0.00,22.96
Neighbourhoods and Climate Change,Environmental Services,010383,C&G - South Street Cleansing,Supplies and Services,328041,Clothing uniforms and laundry E328,13-Apr-2021,000009487337839,THOMAS OWEN & SONS /N/,5611,Clothing uniforms and laundry,55.20,0.00,55.20
Neighbourhoods and Climate Change,Environmental Services,010383,C&G - South Street Cleansing,Supplies and Services,328041,Clothing uniforms and laundry E328,13-Apr-2021,000009487337847,THOMAS OWEN & SONS /N/,5611,Clothing uniforms and laundry,28.56,0.00,28.56
Children and Young Peoples Services,Head of Childrens Social Care,085332,Middlestone Moor CU,Supplies and Services,324117,Provisions E324,13-Apr-2021,000009487337979,HOME BARGAINS SPENNYMO,5251,Catering costs - provisions,36.13,0.00,36.13
Children and Young Peoples Services,Head of Childrens Social Care,085332,Middlestone Moor CU,Supplies and Services,324117,Provisions E324,13-Apr-2021,000009487338039,LIDL GB SPENNYMOOR,5411,Catering costs - provisions,9.93,0.00,9.93
Children and Young Peoples Services,Head of Childrens Social Care,085332,Middlestone Moor CU,Supplies and Services,324117,Provisions E324,13-Apr-2021,000009487338045,TESCO STORES 2371,5411,Catering costs - provisions,43.33,0.00,43.33
Neighbourhoods and Climate Change,Environmental Services,031233,North Pennines - Pennine Peatlife,Supplies and Services,340001,Postages E340,13-Apr-2021,000009487338105,POST OFFICE COUNTER,9402,Postages,6.85,0.00,6.85
Neighbourhoods and Climate Change,Environmental Services,010367,C&G - South Grounds Maintenance,Supplies and Services,304221,Equipment and Materials,13-Apr-2021,000009487338123,MULCAHY LAWN,5261,Direct materials,36.00,0.00,36.00
"Regeneration, Economy and Growth",Development and Housing,030776,LINKCD Flexible Fund,Transport,235057,Public Transport,13-Apr-2021,000009487338141,GO NORTH EAST LIMITED,4131,Staff travelling,7.00,0.00,7.00
Children and Young Peoples Services,Head of Early Help Inclusion & Vulnerable Children.,071670,Willington Childrens Centre,Supplies and Services,304259,Equipment and Materials,13-Apr-2021,000009487338187,AMZNMktplace,5999,Equipment-purchase and rental,26.76,4.46,22.30
Children and Young Peoples Services,Head of Early Help Inclusion & Vulnerable Children.,088106,Ferryhill & N.Aycliffe 0-19 Targeted Family Support,Supplies and Services,304259,Equipment and Materials,13-Apr-2021,000009487338193,SP BIG-LIFE-JOURNAL-,5399,Equipment-purchase and rental,41.97,0.00,41.97
Children and Young Peoples Services,Head of Early Help Inclusion & Vulnerable Children.,088115,Young Parents Programme 088115,Supplies and Services,384302,Miscellaneous Expenses,13-Apr-2021,000009487338197,AMZNMktplace,5999,Activity expenses,25.16,4.20,20.96
Neighbourhoods and Climate Change,Environmental Services,010367,C&G - South Grounds Maintenance,Supplies and Services,304221,Equipment and Materials,13-Apr-2021,000009487338225,BTL TIMBER AND HARDWAR,5099,Direct materials,40.80,0.00,40.80
Children and Young Peoples Services,Head of Early Help Inclusion & Vulnerable Children.,085952,Secure Education,Supplies and Services,384302,Miscellaneous Expenses,13-Apr-2021,000009487338245,Amazon.co.uk M465591T4,5969,Activity expenses,76.50,0.00,76.50
Children and Young Peoples Services,Head of Early Help Inclusion & Vulnerable Children.,073998,TTF-Co-ordinator Grant,Transfer Payments,525033,Other,13-Apr-2021,000009487338311,WILKO.COM,5399,Grants to individuals,65.00,10.83,54.17
Children and Young Peoples Services,Head of Early Help Inclusion & Vulnerable Children.,073998,TTF-Co-ordinator Grant,Transfer Payments,525033,Other,13-Apr-2021,000009487338317,ASDA GEORGE COM LEEDS,5411,Grants to individuals,-26.95,0.00,-26.95
Children and Young Peoples Services,Head of Early Help Inclusion & Vulnerable Children.,088109,Spennymoor & Shildon 0-19 Community Family Hub,Supplies and Services,304221,Equipment and Materials,13-Apr-2021,000009487338363,JEWSON LTD,5211,Direct materials,72.00,0.00,72.00
Children and Young Peoples Services,Head of Early Help Inclusion & Vulnerable Children.,088109,Spennymoor & Shildon 0-19 Community Family Hub,Supplies and Services,304221,Equipment and Materials,13-Apr-2021,000009487338371,SCREWFIX DIRECT,5211,Direct materials,14.99,0.00,14.99
Children and Young Peoples Services,Head of Childrens Social Care,085342,16 Hickstead Rise (previously 9 Cedar Ave),Supplies and Services,324117,Provisions E324,13-Apr-2021,000009487338375,TESCO STORES 2916,5411,Catering costs - provisions,93.40,0.00,93.40
Children and Young Peoples Services,Head of Education and Skills,071732,Dean Bank Childcare,Supplies and Services,324117,Provisions E324,13-Apr-2021,000009487338381,CO-OP GROUP 010503,5411,Catering costs - provisions,24.25,0.00,24.25
"Regeneration, Economy and Growth",Culture Sport and Tourism,054967,Theatre - Technical Staffing,Supplies and Services,304259,Equipment and Materials,13-Apr-2021,000009487338389,SPORTSDIRECT 264,5941,Equipment-purchase and rental,32.99,0.00,32.99
"Regeneration, Economy and Growth",Development and Housing,030771,Durham Advance Flexible Fund,Employees,040149,Recruitment Instruction and Training,13-Apr-2021,000009487338401,CENTRE OF EXCELLEN,8299,Training-all costs,29.00,0.00,29.00
Neighbourhoods and Climate Change,Environmental Services,010301,C&G - North Grounds Maintenance,Supplies and Services,304221,Equipment and Materials,13-Apr-2021,000009487338439,B & Q 1343,5200,Direct materials,14.68,0.00,14.68
Neighbourhoods and Climate Change,Environmental Services,010301,C&G - North Grounds Maintenance,Supplies and Services,304221,Equipment and Materials,13-Apr-2021,000009487338445,TOOLSTATION LTD,5211,Direct materials,105.96,0.00,105.96
"Regeneration, Economy and Growth",Development and Housing,031576,B& B - Temp Accom,Supplies and Services,352001,Conference Expenses,13-Apr-2021,000009487338451,AYCLIFFE BIZ,7011,Conferencesseminars fees etc,266.00,0.00,266.00
"Regeneration, Economy and Growth",Development and Housing,031576,B& B - Temp Accom,Supplies and Services,352001,Conference Expenses,13-Apr-2021,000009487338457,AYCLIFFE BIZ,7011,Conferencesseminars fees etc,266.00,0.00,266.00
"Regeneration, Economy and Growth",Development and Housing,031623,Rough Sleeping,Supplies and Services,324117,Provisions E324,13-Apr-2021,000009487338461,SAINSBURYS 2082,5411,Catering costs - provisions,27.93,0.00,27.93
"Regeneration, Economy and Growth",Development and Housing,031623,Rough Sleeping,Supplies and Services,344033,Telephones,13-Apr-2021,000009487338467,ARGOS DARLINGTON I,5310,Telephones general-all costs,12.50,0.00,12.50
Children and Young Peoples Services,Head of Early Help Inclusion & Vulnerable Children.,088116,South Area - Teenage Parent Programme,Supplies and Services,384999,Miscellaneous Expenses,13-Apr-2021,000009487338473,Amazon.co.uk M431551N4,5969,Other expenses,173.88,28.98,144.90
Children and Young Peoples Services,Head of Early Help Inclusion & Vulnerable Children.,088116,South Area - Teenage Parent Programme,Supplies and Services,384999,Miscellaneous Expenses,13-Apr-2021,000009487338473 - 1,Amazon.co.uk M431551N4,5969,Other expenses,0.12,,0.12
Children and Young Peoples Services,Head of Early Help Inclusion & Vulnerable Children.,088116,South Area - Teenage Parent Programme,Supplies and Services,384999,Miscellaneous Expenses,13-Apr-2021,000009487338477,Amazon.co.uk M45N861P4,5969,Other expenses,173.88,28.98,144.90
Children and Young Peoples Services,Head of Early Help Inclusion & Vulnerable Children.,088116,South Area - Teenage Parent Programme,Supplies and Services,384999,Miscellaneous Expenses,13-Apr-2021,000009487338477 - 1,Amazon.co.uk M45N861P4,5969,Other expenses,0.12,,0.12
Children and Young Peoples Services,Head of Early Help Inclusion & Vulnerable Children.,088107,Ferryhill & Newton Aycliffe 0-19 Community Family Hub,Supplies and Services,304403,Equipment and Materials,13-Apr-2021,000009487338489,AMZNMktplace,5999,Other consumables,4.41,0.00,4.41
Children and Young Peoples Services,Head of Early Help Inclusion & Vulnerable Children.,088107,Ferryhill & Newton Aycliffe 0-19 Community Family Hub,Supplies and Services,304403,Equipment and Materials,13-Apr-2021,000009487338495,AMZNMktplace,5999,Other consumables,19.50,3.25,16.25
Children and Young Peoples Services,Head of Early Help Inclusion & Vulnerable Children.,088107,Ferryhill & Newton Aycliffe 0-19 Community Family Hub,Supplies and Services,304403,Equipment and Materials,13-Apr-2021,000009487338495 - 1,AMZNMktplace,5999,Other consumables,15.65,,15.65
Children and Young Peoples Services,Head of Early Help Inclusion & Vulnerable Children.,088107,Ferryhill & Newton Aycliffe 0-19 Community Family Hub,Supplies and Services,304403,Equipment and Materials,13-Apr-2021,000009487338499,AMZNMktplace,5999,Other consumables,18.71,3.12,15.59
Children and Young Peoples Services,Head of Early Help Inclusion & Vulnerable Children.,088116,South Area - Teenage Parent Programme,Supplies and Services,304403,Equipment and Materials,13-Apr-2021,000009487338503,AMZNMKTPLACE AMAZON.CO,5999,Other consumables,40.92,6.82,34.10
Children and Young Peoples Services,Head of Early Help Inclusion & Vulnerable Children.,088116,South Area - Teenage Parent Programme,Supplies and Services,304403,Equipment and Materials,13-Apr-2021,000009487338503 - 1,AMZNMKTPLACE AMAZON.CO,5999,Other consumables,0.03,,0.03
Children and Young Peoples Services,Head of Education and Skills,075021,DurhamWorks Progression and Learning,Supplies and Services,364301,Grants to Voluntary Organisations,13-Apr-2021,000009487338529,GO NORTH EAST LIMITED,4131,Hardship,4.50,0.00,4.50
Children and Young Peoples Services,Head of Education and Skills,075021,DurhamWorks Progression and Learning,Supplies and Services,364301,Grants to Voluntary Organisations,13-Apr-2021,000009487338535,GO NORTH EAST LIMITED,4131,Hardship,4.50,0.00,4.50
Children and Young Peoples Services,Head of Education and Skills,075021,DurhamWorks Progression and Learning,Supplies and Services,364301,Grants to Voluntary Organisations,13-Apr-2021,000009487338541,GO NORTH EAST LIMITED,4131,Hardship,4.50,0.00,4.50
Children and Young Peoples Services,Head of Education and Skills,075021,DurhamWorks Progression and Learning,Supplies and Services,364301,Grants to Voluntary Organisations,13-Apr-2021,000009487338545,SAINSBURY`S,5411,Hardship,21.95,0.00,21.95
Children and Young Peoples Services,Head of Education and Skills,075021,DurhamWorks Progression and Learning,Supplies and Services,364301,Grants to Voluntary Organisations,13-Apr-2021,000009487338549,MARKS&SPENCER PLC,5411,Hardship,18.50,0.00,18.50
Resources BK0010,People & Talent Management,010984,Training and Development,Supplies and Services,352001,Conference Expenses,13-Apr-2021,000009487338553,RICARDO-AEA LTD,7392,Conferencesseminars fees etc,192.00,32.00,160.00
Children and Young Peoples Services,Head of Childrens Social Care,085551,Short Break Services-Park Hse Sher,Supplies and Services,324117,Provisions E324,13-Apr-2021,000009487338635,ALDI 12 774,5411,Catering costs - provisions,31.38,0.00,31.38
Children and Young Peoples Services,Head of Childrens Social Care,085331,New Lea Childrens Home,Supplies and Services,324117,Provisions E324,13-Apr-2021,000009487338679,TESCO STORES 6329,5411,Catering costs - provisions,17.00,0.00,17.00
Adult and Health Services,Head of Adults,055643,Hawthorn House LD Respite Unit,Supplies and Services,324117,Provisions E324,13-Apr-2021,000009487338713,CO-OP GROUP 010465,5411,Catering costs - provisions,5.20,0.00,5.20
Children and Young Peoples Services,Head of Early Help Inclusion & Vulnerable Children.,071489,Winter Family Fund,Supplies and Services,364301,Grants to Voluntary Organisations,13-Apr-2021,000009487338827,ASDA GEORGE COM LEEDS,5411,Hardship,-15.00,0.00,-15.00
Neighbourhoods and Climate Change,Environmental Services,010367,C&G - South Grounds Maintenance,Supplies and Services,304221,Equipment and Materials,13-Apr-2021,000009487338843,SCREWFIX DIR LTD,5211,Direct materials,2.29,0.00,2.29
Neighbourhoods and Climate Change,Environmental Services,010367,C&G - South Grounds Maintenance,Supplies and Services,304221,Equipment and Materials,13-Apr-2021,000009487338849,SAM TURNER SONS LTD,5261,Direct materials,6.00,0.00,6.00
Neighbourhoods and Climate Change,Environmental Services,010367,C&G - South Grounds Maintenance,Supplies and Services,304221,Equipment and Materials,13-Apr-2021,000009487338853,SAM TURNER SONS LTD,5261,Direct materials,6.00,0.00,6.00
Children and Young Peoples Services,Head of Childrens Social Care,085334,West Rainton Satelite Home,Supplies and Services,304999,Equipment and Materials,13-Apr-2021,000009487338859,HOME BARGAINS,5251,Misc equipment tools and materials,18.14,0.00,18.14
Children and Young Peoples Services,Head of Childrens Social Care,085334,West Rainton Satelite Home,Supplies and Services,324117,Provisions E324,13-Apr-2021,000009487338865,TESCO STORES 2371,5411,Catering costs - provisions,22.00,0.00,22.00
Children and Young Peoples Services,Head of Childrens Social Care,085334,West Rainton Satelite Home,Supplies and Services,324117,Provisions E324,13-Apr-2021,000009487338867,TESCO STORES 2371,5411,Catering costs - provisions,38.02,0.00,38.02
Children and Young Peoples Services,Head of Education and Skills,070264,EDC Premises,Supplies and Services,304221,Equipment and Materials,13-Apr-2021,000009487338871,WEAR VALLEY DECORATING,5198,Direct materials,34.99,0.00,34.99
Neighbourhoods and Climate Change,Environmental Services,010301,C&G - North Grounds Maintenance,Supplies and Services,304403,Equipment and Materials,13-Apr-2021,000009487338891,BESCOL,5231,Other consumables,45.36,0.00,45.36
Children and Young Peoples Services,Head of Childrens Social Care,085363,LAC & Permanence Team 3,Supplies and Services,338045,Services,13-Apr-2021,000009487338895,DARLINGTON BC INTERNET,9399,Legal expenses 338045,22.00,0.00,22.00
Children and Young Peoples Services,Head of Childrens Social Care,085363,LAC & Permanence Team 3,Supplies and Services,338045,Services,13-Apr-2021,000009487338899,Durham County CNCL,9399,Legal expenses 338045,22.00,0.00,22.00
Children and Young Peoples Services,Head of Early Help Inclusion & Vulnerable Children.,071489,Winter Family Fund,Supplies and Services,384700,Miscellaneous Expenses,13-Apr-2021,000009487338905,AMZNMKTPLACE AMAZON.CO,5999,Miscellaneous grants,14.99,0.00,14.99
Children and Young Peoples Services,Head of Early Help Inclusion & Vulnerable Children.,071489,Winter Family Fund,Supplies and Services,384700,Miscellaneous Expenses,13-Apr-2021,000009487338907,SAINSBURY`S,5411,Miscellaneous grants,177.45,0.00,177.45
Resources BK0010,Digital and Customer Services,065335,School Services - Implementations,Supplies and Services,304639,Equipment and Materials,13-Apr-2021,000009487338933,AMZNMktplace,5999,Technicians-supplies,57.06,9.52,47.54
Children and Young Peoples Services,Head of Early Help Inclusion & Vulnerable Children.,085956,Lumley,Supplies and Services,384302,Miscellaneous Expenses,13-Apr-2021,000009487338983,Amazon.co.uk M40N24184,5969,Activity expenses,31.05,5.18,25.87
"Regeneration, Economy and Growth",Transport and Contracted Services,032375,School & Workplace Travel Plans Revenue,Supplies and Services,372009,Subscriptions E372,13-Apr-2021,000009487338991,WWW.CTC.ORG.UK,8699,Subscriptions 372009,82.00,0.00,82.00
Children and Young Peoples Services,Head of Early Help Inclusion & Vulnerable Children.,085801,CDYJS - Support,Supplies and Services,344033,Telephones,13-Apr-2021,000009487339075,MIP TESCO MOBILE TOPUP,4814,Telephones general-all costs,20.00,0.00,20.00
Children and Young Peoples Services,Head of Childrens Social Care,085351,Framwellgate Moor CU,Supplies and Services,308011,Furniture,13-Apr-2021,000009487339097,IKEA LTD 143 GATESHEAD,5712,Furniture repair and replacement,18.60,0.00,18.60
Children and Young Peoples Services,Head of Childrens Social Care,085351,Framwellgate Moor CU,Supplies and Services,348037,Subsistence E348,13-Apr-2021,000009487339103,MCDONALDS,5812,Subsistence,1.98,0.00,1.98
Children and Young Peoples Services,Head of Education and Skills,071802,Louisa Cent Nursery,Supplies and Services,324117,Provisions E324,13-Apr-2021,000009487339109,ALDI 11 774,5411,Catering costs - provisions,4.87,0.00,4.87
"Regeneration, Economy and Growth",Development and Housing,031500,Housing Solutions - Core,Supplies and Services,352001,Conference Expenses,13-Apr-2021,000009487339155,HI NEWCASTLE WASHI,7011,Conferencesseminars fees etc,95.00,0.00,95.00
"Regeneration, Economy and Growth",Development and Housing,031500,Housing Solutions - Core,Supplies and Services,352001,Conference Expenses,13-Apr-2021,000009487339221,THE HONEST LAWYER,7011,Conferencesseminars fees etc,300.00,0.00,300.00
Adult and Health Services,Head of Adults,055309,Peterlee Pathways,Supplies and Services,384999,Miscellaneous Expenses,13-Apr-2021,000009487339267,Amazon.co.uk M43CN21S4,5969,Other expenses,20.19,3.37,16.82
"Regeneration, Economy and Growth",Development and Housing,030771,Durham Advance Flexible Fund,Supplies and Services,344033,Telephones,13-Apr-2021,000009487339315,WWW.CARPHONEWAREHO,4812,Telephones general-all costs,64.99,0.00,64.99
"Regeneration, Economy and Growth",Development and Housing,031576,B& B - Temp Accom,Employees,040149,Recruitment Instruction and Training,13-Apr-2021,000009490451595,PREMIER INN,3811,Training-all costs,109.00,0.00,109.00
Children and Young Peoples Services,Head of Early Help Inclusion & Vulnerable Children.,088107,Ferryhill & Newton Aycliffe 0-19 Community Family Hub,Supplies and Services,304403,Equipment and Materials,13-Apr-2021,000009490451621,AMZNMKTPLACE AMAZON.CO,5999,Other consumables,12.98,2.16,10.82
Children and Young Peoples Services,Head of Early Help Inclusion & Vulnerable Children.,088116,South Area - Teenage Parent Programme,Supplies and Services,304403,Equipment and Materials,13-Apr-2021,000009490451625,AMZNMKTPLACE AMAZON.CO,5999,Other consumables,59.96,10.00,49.96
"Regeneration, Economy and Growth",Development and Housing,031500,Housing Solutions - Core,Supplies and Services,348037,Subsistence E348,13-Apr-2021,000009493686513,CROXDALE INN,5812,Subsistence,50.00,0.00,50.00
"Regeneration, Economy and Growth",Culture Sport and Tourism,054967,Theatre - Technical Staffing,Supplies and Services,304403,Equipment and Materials,14-Apr-2021,000007504154314,Premier Farnell,5065,Other consumables,8.68,0.00,8.68
"Regeneration, Economy and Growth",Culture Sport and Tourism,054967,Theatre - Technical Staffing,Supplies and Services,304403,Equipment and Materials,14-Apr-2021,000007504154318,Premier Farnell,5065,Other consumables,244.99,0.00,244.99
"Regeneration, Economy and Growth",Culture Sport and Tourism,054967,Theatre - Technical Staffing,Supplies and Services,304403,Equipment and Materials,14-Apr-2021,000007504154326,Premier Farnell,5065,Other consumables,104.62,0.00,104.62
Resources BK0010,Digital and Customer Services,065432,Web Development Group,Supplies and Services,342033,Computers and Communications,14-Apr-2021,000009487337711,PROGRESS SOFTWARE CORP,7372,Computer hardware,10.04,0.00,10.04
Children and Young Peoples Services,Head of Early Help Inclusion & Vulnerable Children.,085957,Secure Management,Supplies and Services,372009,Subscriptions E372,14-Apr-2021,000009487338511,TESCO SUBSCRIPTION,5968,Subscriptions 372009,6.99,0.00,6.99
Children and Young Peoples Services,Head of Childrens Social Care,085341,High Etherley Satelite Home,Supplies and Services,324117,Provisions E324,14-Apr-2021,000009490451097,SAINSBURYS 2199,5411,Catering costs - provisions,2.44,0.00,2.44
Children and Young Peoples Services,Head of Childrens Social Care,085341,High Etherley Satelite Home,Supplies and Services,328041,Clothing uniforms and laundry E328,14-Apr-2021,000009490451101,ARGOS BISHOP AUCKL,5310,Clothing uniforms and laundry,62.99,0.00,62.99
"Regeneration, Economy and Growth",Business Durham CL0850,030689,Inward Investment and Aftercare,Supplies and Services,304999,Equipment and Materials,14-Apr-2021,000009490451105,MOZ INC,5817,Misc equipment tools and materials,130.71,0.00,130.71
"Regeneration, Economy and Growth",Business Durham CL0850,030689,Inward Investment and Aftercare,Supplies and Services,336005,Advertising E336,14-Apr-2021,000009490451107,LINKEDIN-651 7677734,7311,Advertising other than for staff,57.60,0.00,57.60
Children and Young Peoples Services,Head of Education and Skills,071801,Selby Cottage Childcare Centre,Supplies and Services,304403,Equipment and Materials,14-Apr-2021,000009490451135,AMZNMktplace,5999,Other consumables,7.99,1.33,6.66
Children and Young Peoples Services,Head of Early Help Inclusion & Vulnerable Children.,085801,CDYJS - Support,Supplies and Services,344033,Telephones,14-Apr-2021,000009490451143,AMZNMktplace,5999,Telephones general-all costs,8.49,1.42,7.07
Resources BK0010,Digital and Customer Services,065487,ICT Telephony Recharges,Supplies and Services,344033,Telephones,14-Apr-2021,000009490451147,WWW.MTRGROUP.CO.UK,4812,Telephones general-all costs,61.20,0.00,61.20
Children and Young Peoples Services,Head of Childrens Social Care,085561,Social Work Academy,Supplies and Services,384999,Miscellaneous Expenses,14-Apr-2021,000009490451151,Amazon.co.uk M42T93GM4,5969,Other expenses,30.00,5.00,25.00
"Regeneration, Economy and Growth",Development and Housing,031576,B& B - Temp Accom,Supplies and Services,364320,Grants to Voluntary Organisations,14-Apr-2021,000009490451165,HI NEWCASTLE WASHI,7011,Accommodation assistance,380.00,0.00,380.00
"Regeneration, Economy and Growth",Development and Housing,031576,B& B - Temp Accom,Supplies and Services,364320,Grants to Voluntary Organisations,14-Apr-2021,000009490451167,HI NEWCASTLE WASHI,7011,Accommodation assistance,91.44,15.24,76.20
"Regeneration, Economy and Growth",Development and Housing,031576,B& B - Temp Accom,Supplies and Services,364320,Grants to Voluntary Organisations,14-Apr-2021,000009490451167 - 1,HI NEWCASTLE WASHI,7011,Accommodation assistance,228.56,,228.56
"Regeneration, Economy and Growth",Development and Housing,031576,B& B - Temp Accom,Supplies and Services,364320,Grants to Voluntary Organisations,14-Apr-2021,000009490451171,HI NEWCASTLE WASHI,7011,Accommodation assistance,450.00,0.00,450.00
"Regeneration, Economy and Growth",Development and Housing,031576,B& B - Temp Accom,Supplies and Services,364320,Grants to Voluntary Organisations,14-Apr-2021,000009490451175,HI NEWCASTLE WASHI,7011,Accommodation assistance,270.00,0.00,270.00
Children and Young Peoples Services,Head of Childrens Social Care,085501,Child Care Cases Legal Expenses,Supplies and Services,304403,Equipment and Materials,14-Apr-2021,000009490451191,DARLINGTON BC INTERNET,9399,Other consumables,11.00,0.00,11.00
Children and Young Peoples Services,Head of Childrens Social Care,085501,Child Care Cases Legal Expenses,Supplies and Services,304403,Equipment and Materials,14-Apr-2021,000009490451195,BIRMINGHAM REGISTER,9399,Other consumables,38.50,0.00,38.50
"Regeneration, Economy and Growth",Development and Housing,030773,CLLD North,Supplies and Services,304259,Equipment and Materials,14-Apr-2021,000009490451199,M and M Direct Ltd,5941,Equipment-purchase and rental,41.95,0.00,41.95
"Regeneration, Economy and Growth",Development and Housing,030773,CLLD North,Supplies and Services,304259,Equipment and Materials,14-Apr-2021,000009490451203,JD SPORTS INTERNET,5941,Equipment-purchase and rental,46.99,0.00,46.99
"Regeneration, Economy and Growth",Development and Housing,030773,CLLD North,Supplies and Services,304259,Equipment and Materials,14-Apr-2021,000009490451207,JD SPORTS INTERNET,5941,Equipment-purchase and rental,-46.99,0.00,-46.99
Children and Young Peoples Services,Head of Education and Skills,075021,DurhamWorks Progression and Learning,Supplies and Services,364301,Grants to Voluntary Organisations,14-Apr-2021,000009490451211,GO NORTH EAST LIMITED,4131,Hardship,17.00,0.00,17.00
Children and Young Peoples Services,Head of Education and Skills,075021,DurhamWorks Progression and Learning,Supplies and Services,364301,Grants to Voluntary Organisations,14-Apr-2021,000009490451213,GO NORTH EAST LIMITED,4131,Hardship,17.00,0.00,17.00
Children and Young Peoples Services,Head of Education and Skills,075021,DurhamWorks Progression and Learning,Supplies and Services,364301,Grants to Voluntary Organisations,14-Apr-2021,000009490451217,GO NORTH EAST LIMITED,4131,Hardship,68.00,0.00,68.00
Children and Young Peoples Services,Head of Education and Skills,075021,DurhamWorks Progression and Learning,Supplies and Services,364301,Grants to Voluntary Organisations,14-Apr-2021,000009490451221,SCREWFIX DIRECT,5211,Hardship,7.98,1.33,6.65
Children and Young Peoples Services,Head of Education and Skills,075021,DurhamWorks Progression and Learning,Supplies and Services,364301,Grants to Voluntary Organisations,14-Apr-2021,000009490451221 - 1,SCREWFIX DIRECT,5211,Hardship,6.00,,6.00
Children and Young Peoples Services,Head of Education and Skills,075021,DurhamWorks Progression and Learning,Supplies and Services,364301,Grants to Voluntary Organisations,14-Apr-2021,000009490451223,SCREWFIX DIRECT,5211,Hardship,43.97,0.00,43.97
Adult and Health Services,Head of Adults,055302,Durham Pathways,Supplies and Services,304403,Equipment and Materials,14-Apr-2021,000009490451227,AMZNMktplace,5999,Other consumables,38.14,6.36,31.78
Adult and Health Services,Head of Adults,055302,Durham Pathways,Supplies and Services,304403,Equipment and Materials,14-Apr-2021,000009490451233,AMZNMktplace,5999,Other consumables,7.39,1.23,6.16
Adult and Health Services,Head of Adults,055302,Durham Pathways,Supplies and Services,304403,Equipment and Materials,14-Apr-2021,000009490451237,AMZNMktplace,5999,Other consumables,23.94,3.99,19.95
Adult and Health Services,Head of Adults,055302,Durham Pathways,Supplies and Services,304403,Equipment and Materials,14-Apr-2021,000009490451237 - 1,AMZNMktplace,5999,Other consumables,0.04,,0.04
Dedicated Schools Grant BG0015,DSG High Needs Block,079050,SENSS-Sensory,Supplies and Services,304403,Equipment and Materials,14-Apr-2021,000009490451257,AMZNMktplace,5999,Other consumables,34.95,5.83,29.12
Children and Young Peoples Services,Head of Childrens Social Care,085332,Middlestone Moor CU,Supplies and Services,324117,Provisions E324,14-Apr-2021,000009490451267,ICELAND,5411,Catering costs - provisions,6.00,0.00,6.00
Children and Young Peoples Services,Head of Childrens Social Care,085332,Middlestone Moor CU,Supplies and Services,304999,Equipment and Materials,14-Apr-2021,000009490451273,IKEA LTD 143 GATESHEAD,5712,Misc equipment tools and materials,4.50,0.00,4.50
"Regeneration, Economy and Growth",Development and Housing,030776,LINKCD Flexible Fund,Transport,235057,Public Transport,14-Apr-2021,000009490451341,GO NORTH EAST LIMITED,4131,Staff travelling,7.00,0.00,7.00
Children and Young Peoples Services,Head of Early Help Inclusion & Vulnerable Children.,088115,Young Parents Programme 088115,Supplies and Services,384302,Miscellaneous Expenses,14-Apr-2021,000009490451355,ASDA GROCERIES ONLINE,5411,Activity expenses,36.45,0.00,36.45
"Regeneration, Economy and Growth",Development and Housing,030770,Durham Advance,Supplies and Services,304221,Equipment and Materials,14-Apr-2021,000009490451363,SCREWFIX DIRECT,5211,Direct materials,47.88,7.98,39.90
"Regeneration, Economy and Growth",Development and Housing,030770,Durham Advance,Supplies and Services,304221,Equipment and Materials,14-Apr-2021,000009490451363 - 1,SCREWFIX DIRECT,5211,Direct materials,30.05,,30.05
Children and Young Peoples Services,Head of Childrens Social Care,085332,Middlestone Moor CU,Supplies and Services,324117,Provisions E324,14-Apr-2021,000009490451375,SQ GELATO JOJO,5499,Catering costs - provisions,2.50,0.00,2.50
"Regeneration, Economy and Growth",Development and Housing,030544,Rural Employability - Client Engagement,Supplies and Services,304259,Equipment and Materials,14-Apr-2021,000009490451401,GEN REGISTER OFFICE,9399,Equipment-purchase and rental,14.00,0.00,14.00
"Regeneration, Economy and Growth",Development and Housing,031576,B& B - Temp Accom,Supplies and Services,364320,Grants to Voluntary Organisations,14-Apr-2021,000009490451405,HI NEWCASTLE WASHI,7011,Accommodation assistance,80.00,0.00,80.00
Children and Young Peoples Services,Head of Early Help Inclusion & Vulnerable Children.,073998,TTF-Co-ordinator Grant,Transfer Payments,525033,Other,14-Apr-2021,000009490451459,FRANKS THE FLOORIN,5713,Grants to individuals,250.00,0.00,250.00
"Regeneration, Economy and Growth",Development and Housing,031576,B& B - Temp Accom,Supplies and Services,364320,Grants to Voluntary Organisations,14-Apr-2021,000009490451479,TRAVELODGE,3615,Accommodation assistance,13.56,2.26,11.30
"Regeneration, Economy and Growth",Development and Housing,031576,B& B - Temp Accom,Supplies and Services,364320,Grants to Voluntary Organisations,14-Apr-2021,000009490451479 - 1,TRAVELODGE,3615,Accommodation assistance,33.85,,33.85
Neighbourhoods and Climate Change,Environmental Services,010900,Fleet - Meadowfield Fleet,Transport,215013,Running Costs of Vehicles,14-Apr-2021,000009490451485,DVLA VEHICLE TAX,9311,Vehicle Excise Duty (VED),167.50,0.00,167.50
Neighbourhoods and Climate Change,Environmental Services,010551,Fleet - Chilton Fleet,Transport,215013,Running Costs of Vehicles,14-Apr-2021,000009490451489,DVLA VEHICLE TAX,9311,Vehicle Excise Duty (VED),157.50,0.00,157.50
Neighbourhoods and Climate Change,Environmental Services,010900,Fleet - Meadowfield Fleet,Transport,215013,Running Costs of Vehicles,14-Apr-2021,000009490451491,DVLA VEHICLE TAX,9311,Vehicle Excise Duty (VED),167.50,0.00,167.50
Neighbourhoods and Climate Change,Environmental Services,010864,Fleet - Hackworth Road Fleet,Transport,215013,Running Costs of Vehicles,14-Apr-2021,000009490451495,DVLA VEHICLE TAX,9311,Vehicle Excise Duty (VED),167.50,0.00,167.50
Neighbourhoods and Climate Change,Environmental Services,010561,Fleet - Morrison Busty Fleet,Transport,215013,Running Costs of Vehicles,14-Apr-2021,000009490451497,DVLA VEHICLE TAX,9311,Vehicle Excise Duty (VED),167.50,0.00,167.50
Neighbourhoods and Climate Change,Environmental Services,010900,Fleet - Meadowfield Fleet,Transport,215013,Running Costs of Vehicles,14-Apr-2021,000009490451501,DVLA VEHICLE TAX,9311,Vehicle Excise Duty (VED),167.50,0.00,167.50
Neighbourhoods and Climate Change,Environmental Services,010561,Fleet - Morrison Busty Fleet,Transport,215013,Running Costs of Vehicles,14-Apr-2021,000009490451505,DVLA VEHICLE TAX,9311,Vehicle Excise Duty (VED),157.50,0.00,157.50
Neighbourhoods and Climate Change,Environmental Services,010561,Fleet - Morrison Busty Fleet,Transport,215013,Running Costs of Vehicles,14-Apr-2021,000009490451507,DVLA VEHICLE TAX,9311,Vehicle Excise Duty (VED),167.50,0.00,167.50
Neighbourhoods and Climate Change,Environmental Services,010900,Fleet - Meadowfield Fleet,Transport,215013,Running Costs of Vehicles,14-Apr-2021,000009490451509,DVLA VEHICLE TAX,9311,Vehicle Excise Duty (VED),167.50,0.00,167.50
Children and Young Peoples Services,Head of Education and Skills,071732,Dean Bank Childcare,Supplies and Services,304403,Equipment and Materials,14-Apr-2021,000009490451525,AMZNMktplace,5999,Other consumables,22.99,3.83,19.16
Children and Young Peoples Services,Head of Education and Skills,071732,Dean Bank Childcare,Supplies and Services,324117,Provisions E324,14-Apr-2021,000009490451527,B&M 035 - SHILDON,5399,Catering costs - provisions,72.27,0.00,72.27
Neighbourhoods and Climate Change,Environmental Services,010314,Nei.Prot - Bereavement Services,Supplies and Services,304259,Equipment and Materials,14-Apr-2021,000009490451549,Durham County CNCL,9399,Equipment-purchase and rental,11.00,0.00,11.00
"Regeneration, Economy and Growth",Development and Housing,031500,Housing Solutions - Core,Supplies and Services,352001,Conference Expenses,14-Apr-2021,000009490451553,HI NEWCASTLE WASHI,7011,Conferencesseminars fees etc,95.00,0.00,95.00
Children and Young Peoples Services,Head of Early Help Inclusion & Vulnerable Children.,085962,Aycliffe Secure - Durham,Supplies and Services,304403,Equipment and Materials,14-Apr-2021,000009490451565,AMZNMktplace,5999,Other consumables,22.98,0.00,22.98
"Regeneration, Economy and Growth",Development and Housing,030771,Durham Advance Flexible Fund,Supplies and Services,384999,Miscellaneous Expenses,14-Apr-2021,000009490451579,Amazon.co.uk M48AT2G74,5969,Other expenses,76.99,0.00,76.99
Children and Young Peoples Services,Head of Early Help Inclusion & Vulnerable Children.,088107,Ferryhill & Newton Aycliffe 0-19 Community Family Hub,Supplies and Services,304403,Equipment and Materials,14-Apr-2021,000009490451619,AMZNMktplace,5999,Other consumables,4.25,0.71,3.54
Children and Young Peoples Services,Head of Early Help Inclusion & Vulnerable Children.,085956,Lumley,Supplies and Services,384302,Miscellaneous Expenses,14-Apr-2021,000009490451637,Pandora Jewellery UK L,5944,Activity expenses,47.99,0.00,47.99
Children and Young Peoples Services,Head of Early Help Inclusion & Vulnerable Children.,085954,Walworth,Transfer Payments,515002,Social Services Clients,14-Apr-2021,000009490451641,FLANNELS.COM,5691,Pocket money,44.99,7.50,37.49
Children and Young Peoples Services,Head of Early Help Inclusion & Vulnerable Children.,085956,Lumley,Transfer Payments,515002,Social Services Clients,14-Apr-2021,000009490451643,AMZNMktplace,5999,Pocket money,24.48,4.08,20.40
Children and Young Peoples Services,Head of Early Help Inclusion & Vulnerable Children.,085962,Aycliffe Secure - Durham,Supplies and Services,324117,Provisions E324,14-Apr-2021,000009490451647,TESCO STORES 6329,5411,Catering costs - provisions,72.07,0.00,72.07
Children and Young Peoples Services,Head of Early Help Inclusion & Vulnerable Children.,085956,Lumley,Transfer Payments,515002,Social Services Clients,14-Apr-2021,000009490451653,SMYTHSTOYS.COM,5945,Pocket money,19.99,0.00,19.99
Children and Young Peoples Services,Head of Early Help Inclusion & Vulnerable Children.,085957,Secure Management,Supplies and Services,332047,Printing Stationery and Gen Off Exps,14-Apr-2021,000009490451661,EUROFFICE.CO.UK,5943,Stationery,20.14,3.36,16.78
Children and Young Peoples Services,Head of Early Help Inclusion & Vulnerable Children.,088115,Young Parents Programme 088115,Supplies and Services,324117,Provisions E324,14-Apr-2021,000009490451665,ASDA GROCERIES ONLINE,5411,Catering costs - provisions,20.24,0.00,20.24
Neighbourhoods and Climate Change,Environmental Services,010367,C&G - South Grounds Maintenance,Supplies and Services,304221,Equipment and Materials,14-Apr-2021,000009490451667,MULCAHY LAWN,5261,Direct materials,60.00,0.00,60.00
Neighbourhoods and Climate Change,Environmental Services,011060,C&G - Hardwick Park Catering,Premises,145009,Cleaning and Domestic Supplies,14-Apr-2021,000009490451675,ALLIANCE DISPOSABLES L,2842,Other cleaning and domestic costs,543.06,90.51,452.55
"Regeneration, Economy and Growth",Development and Housing,031576,B& B - Temp Accom,Supplies and Services,364320,Grants to Voluntary Organisations,14-Apr-2021,000009490451729,HI NEWCASTLE WASHI,7011,Accommodation assistance,86.00,0.00,86.00
Children and Young Peoples Services,Head of Childrens Social Care,085341,High Etherley Satelite Home,Supplies and Services,324117,Provisions E324,14-Apr-2021,000009490451827,SPAR - GEM WEST AUCKLA,5411,Catering costs - provisions,5.30,0.00,5.30
Adult and Health Services,Head of Adults,055643,Hawthorn House LD Respite Unit,Supplies and Services,324117,Provisions E324,14-Apr-2021,000009490451887,SAINSBURYS SACAT 0776,5411,Catering costs - provisions,14.20,0.00,14.20
"Regeneration, Economy and Growth",Corporate Property and Land,020079,Bldg Serv - R&M Div 79- Electrical,Supplies and Services,304221,Equipment and Materials,14-Apr-2021,000009490451895,ADEXA DIRECT,5722,Direct materials,250.80,0.00,250.80
Children and Young Peoples Services,Head of Childrens Social Care,085342,16 Hickstead Rise (previously 9 Cedar Ave),Supplies and Services,348037,Subsistence E348,14-Apr-2021,000009490451907,KFC - DARLINGTON DT,5814,Subsistence,15.47,0.00,15.47
Children and Young Peoples Services,Head of Childrens Social Care,085342,16 Hickstead Rise (previously 9 Cedar Ave),Supplies and Services,304999,Equipment and Materials,14-Apr-2021,000009490451911,HOME BARGAINS,5251,Misc equipment tools and materials,16.02,0.00,16.02
Children and Young Peoples Services,Head of Childrens Social Care,085342,16 Hickstead Rise (previously 9 Cedar Ave),Supplies and Services,304999,Equipment and Materials,14-Apr-2021,000009490451913,THE RANGE,5311,Misc equipment tools and materials,58.19,0.00,58.19
Children and Young Peoples Services,Head of Childrens Social Care,085352,New Childrens Home (previously Tow Law),Employees,040149,Recruitment Instruction and Training,14-Apr-2021,000009490451927,FISHPETSREPTILES,8999,Training-all costs,27.74,0.00,27.74
Children and Young Peoples Services,Head of Childrens Social Care,085352,New Childrens Home (previously Tow Law),Supplies and Services,304221,Equipment and Materials,14-Apr-2021,000009490451929,B&Q DIRECT,5200,Direct materials,80.00,0.00,80.00
Children and Young Peoples Services,Head of Childrens Social Care,085633,Families First Chester-Le-Street,Supplies and Services,364340,Grants to Voluntary Organisations,14-Apr-2021,000009490451941,GO NORTH EAST LIMITED,4131,Contact expenses,10.60,0.00,10.60
Adult and Health Services,Head of Adults,055643,Hawthorn House LD Respite Unit,Supplies and Services,324117,Provisions E324,14-Apr-2021,000009490451947,JR HOLLAND FOODSERVICE,5499,Catering costs - provisions,8.01,0.00,8.01
Adult and Health Services,Head of Adults,055643,Hawthorn House LD Respite Unit,Supplies and Services,324117,Provisions E324,14-Apr-2021,000009490451951,JR HOLLAND FOODSERVICE,5499,Catering costs - provisions,15.78,0.00,15.78
Children and Young Peoples Services,Head of Childrens Social Care,085334,West Rainton Satelite Home,Supplies and Services,324117,Provisions E324,14-Apr-2021,000009490451963,TESCO STORES 2371,5411,Catering costs - provisions,195.10,0.00,195.10
Children and Young Peoples Services,Head of Childrens Social Care,085363,LAC & Permanence Team 3,Supplies and Services,338045,Services,14-Apr-2021,000009490451975,HM PASSPORT OFFICE,9399,Legal expenses 338045,49.00,0.00,49.00
Children and Young Peoples Services,Head of Childrens Social Care,085363,LAC & Permanence Team 3,Supplies and Services,338045,Services,14-Apr-2021,000009490451979,DARLINGTON BC INTERNET,9399,Legal expenses 338045,22.00,0.00,22.00
Children and Young Peoples Services,Head of Early Help Inclusion & Vulnerable Children.,071489,Winter Family Fund,Supplies and Services,364301,Grants to Voluntary Organisations,14-Apr-2021,000009490451985,ASDA GEORGE COM LEEDS,5411,Hardship,113.95,0.00,113.95
Children and Young Peoples Services,Head of Early Help Inclusion & Vulnerable Children.,071489,Winter Family Fund,Supplies and Services,384700,Miscellaneous Expenses,14-Apr-2021,000009490451989,SAINSBURY`S,5411,Miscellaneous grants,-6.50,0.00,-6.50
Resources BK0010,Digital and Customer Services,065335,School Services - Implementations,Supplies and Services,304639,Equipment and Materials,14-Apr-2021,000009490451997,LAPSAFE SELF SERVICE S,5999,Technicians-supplies,23.94,0.00,23.94
Resources BK0010,Digital and Customer Services,065335,School Services - Implementations,Supplies and Services,304639,Equipment and Materials,14-Apr-2021,000009490452001,CABLES DIRECT LTD,8999,Technicians-supplies,269.64,0.00,269.64
Children and Young Peoples Services,Head of Early Help Inclusion & Vulnerable Children.,085956,Lumley,Supplies and Services,304259,Equipment and Materials,14-Apr-2021,000009490452041,A S CATERING SUPPLIES,5046,Equipment-purchase and rental,43.73,7.29,36.44
"Regeneration, Economy and Growth",Transport and Contracted Services,031704,Care Connect - CCTV Countywide,Supplies and Services,384956,Miscellaneous Expenses,14-Apr-2021,000009490452045,SECURITY INDUSTRY,7393,Licences,190.00,0.00,190.00
Neighbourhoods and Climate Change,Environmental Services,010301,C&G - North Grounds Maintenance,Supplies and Services,304221,Equipment and Materials,14-Apr-2021,000009490452069,BREWERS,5211,Direct materials,156.85,0.00,156.85
Neighbourhoods and Climate Change,Environmental Services,010301,C&G - North Grounds Maintenance,Supplies and Services,304221,Equipment and Materials,14-Apr-2021,000009490452071,TOOLSTATION LTD,5211,Direct materials,159.98,0.00,159.98
Children and Young Peoples Services,Head of Childrens Social Care,085344,Childrens Residential Emergency Staffing,Supplies and Services,324117,Provisions E324,14-Apr-2021,000009490452091,TESCO STORES 2916,5411,Catering costs - provisions,46.89,0.00,46.89
"Regeneration, Economy and Growth",Development and Housing,031500,Housing Solutions - Core,Supplies and Services,352001,Conference Expenses,14-Apr-2021,000009490452145,HI NEWCASTLE WASHI,7011,Conferencesseminars fees etc,450.00,0.00,450.00
"Regeneration, Economy and Growth",Development and Housing,031500,Housing Solutions - Core,Supplies and Services,352001,Conference Expenses,14-Apr-2021,000009490452149,HI NEWCASTLE WASHI,7011,Conferencesseminars fees etc,270.00,0.00,270.00
Children and Young Peoples Services,Head of Early Help Inclusion & Vulnerable Children.,085962,Aycliffe Secure - Durham,Supplies and Services,384999,Miscellaneous Expenses,14-Apr-2021,000009490452153,Amazon.co.uk M41XP4GK4,5969,Other expenses,62.93,0.00,62.93
Children and Young Peoples Services,Head of Early Help Inclusion & Vulnerable Children.,085962,Aycliffe Secure - Durham,Supplies and Services,304221,Equipment and Materials,14-Apr-2021,000009490452157,B&Q DIRECT,5200,Direct materials,62.85,0.00,62.85
Resources BK0010,Legal & Democratic Services,067801,Registrars,Supplies and Services,340001,Postages E340,14-Apr-2021,000009490452183,ROYAL MAIL ONLINE SHOP,9402,Postages,79.44,0.00,79.44
Resources BK0010,Legal & Democratic Services,067953,Coroner County Durham & Darlington,Supplies and Services,384999,Miscellaneous Expenses,14-Apr-2021,000009490452187,Amazon.co.uk M48J64G64,5969,Other expenses,81.12,13.52,67.60
Resources BK0010,Legal & Democratic Services,067953,Coroner County Durham & Darlington,Supplies and Services,384999,Miscellaneous Expenses,14-Apr-2021,000009490452187 - 1,Amazon.co.uk M48J64G64,5969,Other expenses,101.34,,101.34
Adult and Health Services,Head of Adults,055310,Positive Journeys (Tudhoe),Supplies and Services,324117,Provisions E324,14-Apr-2021,000009490452197,ASDA SUPERSTORE 4987,5411,Catering costs - provisions,1.09,0.00,1.09
"Regeneration, Economy and Growth",Development and Housing,031500,Housing Solutions - Core,Supplies and Services,352001,Conference Expenses,14-Apr-2021,000009490452213,HI NEWCASTLE WASHI,7011,Conferencesseminars fees etc,450.00,0.00,450.00
"Regeneration, Economy and Growth",Development and Housing,031500,Housing Solutions - Core,Supplies and Services,352001,Conference Expenses,14-Apr-2021,000009490452217,HI NEWCASTLE WASHI,7011,Conferencesseminars fees etc,450.00,0.00,450.00
"Regeneration, Economy and Growth",Corporate Property and Land,021235,Catering - Wharton Park,Premises,145009,Cleaning and Domestic Supplies,14-Apr-2021,000009490452249,ALLIANCE DISPOSABLES L,2842,Other cleaning and domestic costs,71.74,11.96,59.78
"Regeneration, Economy and Growth",Corporate Property and Land,021235,Catering - Wharton Park,Supplies and Services,324117,Provisions E324,14-Apr-2021,000009490452253,JR HOLLAND FOODSERVICE,5499,Catering costs - provisions,36.51,0.00,36.51
Children and Young Peoples Services,Head of Education and Skills,076001,Music Service,Supplies and Services,304259,Equipment and Materials,14-Apr-2021,000009490452281,PAYPAL SONGSINBSL,5735,Equipment-purchase and rental,9.99,0.00,9.99
Children and Young Peoples Services,Head of Childrens Social Care,085332,Middlestone Moor CU,Supplies and Services,324117,Provisions E324,14-Apr-2021,000009490452303,SAINSBURYS SACAT 0776,5411,Catering costs - provisions,72.30,0.00,72.30
Children and Young Peoples Services,Head of Childrens Social Care,085332,Middlestone Moor CU,Supplies and Services,328041,Clothing uniforms and laundry E328,14-Apr-2021,000009490452307,ARGOS LTD,5310,Clothing uniforms and laundry,150.00,0.00,150.00
Children and Young Peoples Services,Head of Early Help Inclusion & Vulnerable Children.,071641,Horden Childrens Centre,Supplies and Services,304259,Equipment and Materials,14-Apr-2021,000009490452371,Amazon.co.uk M45A35GE4,5969,Equipment-purchase and rental,18.45,3.09,15.36
Children and Young Peoples Services,Head of Early Help Inclusion & Vulnerable Children.,071641,Horden Childrens Centre,Supplies and Services,304259,Equipment and Materials,14-Apr-2021,000009490452375,AMZNMKTPLACE AMAZON.CO,5999,Equipment-purchase and rental,45.00,7.50,37.50
Children and Young Peoples Services,Head of Early Help Inclusion & Vulnerable Children.,071641,Horden Childrens Centre,Supplies and Services,304259,Equipment and Materials,14-Apr-2021,000009490452375 - 1,AMZNMKTPLACE AMAZON.CO,5999,Equipment-purchase and rental,0.49,,0.49
Children and Young Peoples Services,Head of Early Help Inclusion & Vulnerable Children.,071641,Horden Childrens Centre,Supplies and Services,304259,Equipment and Materials,14-Apr-2021,000009490452381,AMZNMKTPLACE AMAZON.CO,5999,Equipment-purchase and rental,73.50,12.25,61.25
Children and Young Peoples Services,Head of Early Help Inclusion & Vulnerable Children.,071641,Horden Childrens Centre,Supplies and Services,304259,Equipment and Materials,14-Apr-2021,000009490452381 - 1,AMZNMKTPLACE AMAZON.CO,5999,Equipment-purchase and rental,0.25,,0.25
Children and Young Peoples Services,Head of Education and Skills,071732,Dean Bank Childcare,Supplies and Services,304403,Equipment and Materials,14-Apr-2021,000009493686385,AMZNMKTPLACE AMAZON.CO,5999,Other consumables,38.99,0.00,38.99
"Regeneration, Economy and Growth",Development and Housing,031576,B& B - Temp Accom,Supplies and Services,348037,Subsistence E348,14-Apr-2021,000009493686649,CROXDALE INN,5812,Subsistence,500.00,0.00,500.00
"Regeneration, Economy and Growth",Development and Housing,031576,B& B - Temp Accom,Supplies and Services,348037,Subsistence E348,14-Apr-2021,000009493686663,CROXDALE INN,5812,Subsistence,260.00,0.00,260.00
Children and Young Peoples Services,Head of Early Help Inclusion & Vulnerable Children.,088116,South Area - Teenage Parent Programme,Supplies and Services,304403,Equipment and Materials,14-Apr-2021,000009493686683,AMZNMKTPLACE AMAZON.CO,5999,Other consumables,59.76,9.96,49.80
Children and Young Peoples Services,Head of Early Help Inclusion & Vulnerable Children.,088116,South Area - Teenage Parent Programme,Supplies and Services,304403,Equipment and Materials,14-Apr-2021,000009493686683 - 1,AMZNMKTPLACE AMAZON.CO,5999,Other consumables,0.12,,0.12
Children and Young Peoples Services,Head of Childrens Social Care,085342,16 Hickstead Rise (previously 9 Cedar Ave),Supplies and Services,328041,Clothing uniforms and laundry E328,14-Apr-2021,000009493687205,PRIMARK,5651,Clothing uniforms and laundry,60.50,0.00,60.50
Children and Young Peoples Services,Head of Childrens Social Care,085342,16 Hickstead Rise (previously 9 Cedar Ave),Supplies and Services,328041,Clothing uniforms and laundry E328,14-Apr-2021,000009493687211,PRIMARK,5651,Clothing uniforms and laundry,14.30,0.00,14.30
Children and Young Peoples Services,Head of Early Help Inclusion & Vulnerable Children.,085962,Aycliffe Secure - Durham,Supplies and Services,304403,Equipment and Materials,15-Apr-2021,000007504154406,AMZNMKTPLACE AMAZON.CO,5999,Other consumables,27.95,0.00,27.95
Neighbourhoods and Climate Change,Environmental Services,011060,C&G - Hardwick Park Catering,Supplies and Services,324117,Provisions E324,15-Apr-2021,000007504154646,BATLEYS PERTH,5300,Catering costs - provisions,192.12,32.02,160.10
Neighbourhoods and Climate Change,Environmental Services,011060,C&G - Hardwick Park Catering,Supplies and Services,324117,Provisions E324,15-Apr-2021,000007504154646 - 1,BATLEYS PERTH,5300,Catering costs - provisions,179.84,,179.84
Neighbourhoods and Climate Change,Environmental Services,011060,C&G - Hardwick Park Catering,Supplies and Services,324117,Provisions E324,15-Apr-2021,000007504154664,BATLEYS PERTH,5300,Catering costs - provisions,40.74,6.79,33.95
Neighbourhoods and Climate Change,Environmental Services,011060,C&G - Hardwick Park Catering,Supplies and Services,324117,Provisions E324,15-Apr-2021,000007504154664 - 1,BATLEYS PERTH,5300,Catering costs - provisions,4.04,,4.04
Children and Young Peoples Services,Head of Education and Skills,075021,DurhamWorks Progression and Learning,Supplies and Services,364301,Grants to Voluntary Organisations,15-Apr-2021,000007504154726,MATALAN.CO.UK,5691,Hardship,9.95,0.00,9.95
